{"text_format":"1","workbook":"xlsx","n_sheets":8,"sheets":["Allgemeines Garten","Kleinstrukturen","Moose","Flechten","Artenliste","Artenliste_M","Substrat","Substrat_M"],"not_rendered":{"charts":0,"images":1,"macros":1,"external_links":4,"defined_names":12,"comments":0,"pivot_tables":0},"unopened":[],"bounds":{"document_bytes":16777216,"sheet_cells":100000,"rows_first":2000,"rows_last":500,"rows_between":2000,"halvings":0,"cell_chars":16384,"cell_head_chars":4096},"cells_cut":0,"cells_raw":0,"read":"whole","date_system":"1900"}

{"sheet":"Allgemeines Garten","index":0,"n_rows":30,"n_cols":2,"rows_kept":30,"cut":false,"hidden":false,"merged":[[24,0,24,2],[18,0,18,1],[6,1,6,2],[0,0,0,2],[2,0,2,2],[3,1,3,2],[4,1,4,2],[5,1,5,2],[19,0,19,2],[27,0,27,2],[29,0,29,2],[26,0,26,2],[7,0,8,0],[9,1,9,2],[12,1,12,2],[13,1,13,2],[14,1,14,2],[16,0,16,2],[11,0,11,2],[21,0,21,1],[23,0,23,1],[25,0,25,1],[17,0,17,1],[20,0,20,1],[22,0,22,2]]}
["Moose und Flechten in Gärten - allg. Angaben zum Garten"]
[]
["Adresse des Garten"]
["Strassenname"]
["Hausnummer"]
["Gemeinde"]
["Kanton"]
["Schweizerkoordinaten des ungefähren Zentrums des Grundstücks\n(LV 95; siebenstellig, siehe map.geo.admin.ch) ","West-Ost\n(z.B. 2683000 für den Hauptbahnhof Zürich)"]
[null,"Süd-Nord\n(z.B. 1248115 für den Hauptbahnhof Zürich)"]
["Fläche des Gartens [m2]\n(siehe Anleitung)"]
[]
["Wem gehört das Grundstück?"]
["Namen, Vornamen der EigentümerInnen des Grundstücks"]
["Kontaktadresse"]
["Email\n(wenn möglich, nicht zwingend)"]
[]
["Zur Geschichte & Pflege des Gartens"]
["Wann wurde das Haus gebaut?  [Jahreszahl]"]
["Wurden in den vergangenen Jahren grössere Umgestaltungen (> 30% der Fläche) durchgeführt? [ja/nein]"]
["[wenn ja, ist der Zeipunkt bekannt?]"]
["Seit wann wird der Garten von den gleichen Personen gepflegt? [Jahreszahl]"]
["Werden Moose und Flechten im untersuchten Garten aktiv bekämpft (z.B. Vertikutieren des Rasens, Pflege von Steinplatten mit einem Hochdruckreiniger, Jäten von Fugen zwischen Platten etc.?  [ja/nein]"]
["[wenn ja, bitte kurze Beschreibung der Massnahmen]"]
["Werden Pestizide (Herbizide, Fungizide, Insektizide etc.) verwendet? [ja/nein]"]
["[wenn ja, bitte kurze Beschreibung der Art  und des Einsatzes der verwendeten Mittel]"]
["Werden Düngemittel ausgebracht (z.B. Kompost, Mist, Mineraldünger etc.) ? [ja/nein]"]
["[wenn ja, bitte kurze Beschreibung der Art und des Einsatzes des Düngers]"]
["Bemerkungen zum Garten"]
[]
["Bitte den Garten mit ein paar Fotos dokumentieren :-)"]

{"sheet":"Kleinstrukturen","index":1,"n_rows":137,"n_cols":4,"rows_kept":137,"cut":false,"hidden":false,"merged":[[0,0,0,3],[2,0,2,3],[22,0,22,3]]}
["Moose und Flechten in Gärten - Kleinstrukturen im Garten"]
[]
["Ziel: grobe, standardisierte Beschreibung der strukturellen Vielfalt des Gartens\n\nVorgehen:\n(1) sind die, in der Liste aufgeführten Strukturelemente im Garten vorhanden?\n(2) grobe Schätzung der Fläche der vorhandenen Strukturelementen in Quadratmetern. Bei Bäumen/Sträuchern wird die Fläche, die durch die Krone abgedeckt wird (Projektion auf den Boden) geschätzt. Bei senkrechten Flächen wie z.B. Mauern wird die Fläche der Mauer geschätzt (Mauern des Wohnhauses werden nicht berücksichtigt)."]
[]
["Struktur","vorhanden?\n[ja/nein]","Fläche\n[m2]","Anmerkung"]
["Rasen\n(Grasfläche mit häufigem Schnitt; Vegetation kaum je über 15 cm hoch; inkl. stark vermooste Bereiche)"]
["Wiese / Blumenwiese\n(Grasfläche, die selten geschnitten wird; Vegetation ausser nach dem Schnitt über 15 cm hoch)"]
["Gemüsebeete, Kräuterbeete, Beerenkulturen"]
["Blumenbeete, Rabatten mit Stauden oder Rosen"]
["Bodendecker\n(Cotoneaster, Immergrün, Efeu etc.)"]
["Kleingehölze\n(niedriger als 3 m)"]
["Grossgehölze\n(höher als 3 m)"]
["Unversiegelter Bodenbelag\n(z.B. Kies- oder Sandplätze, Wege, Sitzplätze oder Parkplätze aus Steinplatten mit wasserdurchlässigen Fugen)"]
["Versiegelter Bodenbelag\n(keine oder wasserundurchlässige Fuge, z.B. Wege, Abstellplätze, Parkplätze aus Teer, Beton etc.)"]
["Wasserflächen\n(Teiche, Bächlein, Brunnen etc.)"]
["Verwilderte, aufgelassene Bereiche\n(mind. 1 Jahr nicht gepflegt, z.B. ungepflegtes Bord hinter dem Haus)"]
["Elemente aus Gestein\n(Trockenmauern, Mauern mit Mörtel in den Fugen, Betonmauern, Drahtschotterkörbe, Einfassungen von Rabatten / Wegen, Steinhaufen, Steingärten, Alpinum, Granitstelen, Felsen, Steinblöcke, Findlinge etc.\nHausmauern und Hausdächer werden nicht aufgenommen)"]
["Totholz\n(Strünke oder Stämme, Ø mind. 8 cm; keine Unterscheidung zwischen Holzkörper und Rinde)"]
["Bearbeitetes Holz\n(z.B. Holzzäune, Holzgeländer, Holzbänke, Holzpalisaden)"]
["Metall & Plastik\n(Metalzäune, Metallgeländer, Metallgitter, Dolendeckel, Skulpturen, Plastikplanen etc.)"]
["Kleine Gebäude\n(z.B. Gartenhäuschen, Spielhäuschen, Velounterstand, Pergola, Schöpflein, gedeckter Sitzplatz etc.)"]
[]
["Allg. Anmerkungen zu Strukturen im Garten"]
[]
[]
[]
[]
[]
[]
[]
[]
[]
[]
[]
[]
[]
[]
[]
[]
[]
[]
[]
[]
[]
[]
[]
[]
[]
[]
[]
[]
[]
[]
[]
[]
[]
[]
[]
[]
[]
[]
[]
[]
[]
[]
[]
[]
[]
[]
[]
[]
[]
[]
[]
[]
[]
[]
[]
[]
[]
[]
[]
[]
[]
[]
[]
[]
[]
[]
[]
[]
[]
[]
[]
[]
[]
[]
[]
[]
[]
[]
[]
[]
[]
[]
[]
[]
[]
[]
[]
[]
[]
[]
[]
[]
[]
[]
[]
[]
[]
[]
[]
[]
[]
[]
[]
[]
[]
[]
[]
[]
[]
[]
["Totholz (Strünke oder Stämme; Durchmesser mind. 8 cm; keine Unterscheidung zwischen Holzkörper und Rinde)"]
["Freiliegende Felsen, Findlinge, Steinblöcke etc. (Durchmesser mind. 50 cm)"]
["Holzzäune, Holzgeländer, Holzbänke  etc."]
["Metalzäune, Metallgeländer, Metallgitter etc."]

{"sheet":"Moose","index":2,"n_rows":9,"n_cols":4,"rows_kept":9,"cut":false,"hidden":false,"merged":[[4,1,4,3],[5,1,5,3],[6,1,6,3],[0,0,0,3],[2,1,2,3],[3,1,3,3]]}
["Moose und Flechten in Gärten - Artenliste Moose"]
[]
["Koordinaten des Zentrums des Gartens","                                                       /"]
["Datum der Erhebung im Garten"]
["Wieviel Zeit wurde für die Kartierung der Moose im Garten benötigt? [Min.]"]
["Namen der KartiereInnen"]
["Namen der BestimmerInnen der gesammelten Belege"]
[]
["Artname","Substrat","Beleg\n[ja/nein]","Belegnummer\n(falls vorhanden)"]

{"sheet":"Flechten","index":3,"n_rows":31,"n_cols":13,"rows_kept":31,"cut":false,"hidden":false,"merged":[[6,1,6,3],[0,0,0,3],[2,1,2,3],[3,1,3,3],[4,1,4,3],[5,1,5,3]]}
["Moose und Flechten in Gärten - Artenliste Flechten"]
[]
["Koordinaten des Zentrums des Gartens","                                                       /"]
["Datum der Erhebung im Garten"]
["Wieviel Zeit wurde für die Kartierung der Flechten im Garten benötigt? [Min.]"]
["Namen der KartiereInnen"]
["Namen der BestimmerInnen der gesammelten Belege"]
[]
["Artname","Substrat","Beleg\n[ja/nein]","Belegnummer\n(falls vorhanden)",null,null,null,null,null,null,null,"DB Code Art","DB Code Substrat"]
["","",null,null,null,null,null,null,null,null,null,{"$f":"VLOOKUP(A10, Artenliste!$A$3:$B$2635, 2, TRUE)","v":{"$error":"#N/A"}},{"$f":"VLOOKUP(B10, Substrat!$A$2:$F$340, 2, FALSE)","v":{"$error":"#N/A"}}]
[null,null,null,null,null,null,null,null,null,null,null,{"$f":"VLOOKUP(A11, Artenliste!$A$3:$B$2635, 2, TRUE)","v":{"$error":"#N/A"}},{"$f":"VLOOKUP(B11, Substrat!$A$2:$F$340, 2, FALSE)","v":{"$error":"#N/A"}}]
[null,null,null,null,null,null,null,null,null,null,null,{"$f":"VLOOKUP(A12, Artenliste!$A$3:$B$2635, 2, TRUE)","v":{"$error":"#N/A"}},{"$f":"VLOOKUP(B12, Substrat!$A$2:$F$340, 2, FALSE)","v":{"$error":"#N/A"}}]
[null,null,null,null,null,null,null,null,null,null,null,{"$f":"VLOOKUP(A13, Artenliste!$A$3:$B$2635, 2, TRUE)","v":{"$error":"#N/A"}},{"$f":"VLOOKUP(B13, Substrat!$A$2:$F$340, 2, FALSE)","v":{"$error":"#N/A"}}]
[null,null,null,null,null,null,null,null,null,null,null,{"$f":"VLOOKUP(A14, Artenliste!$A$3:$B$2635, 2, TRUE)","v":{"$error":"#N/A"}},{"$f":"VLOOKUP(B14, Substrat!$A$2:$F$340, 2, FALSE)","v":{"$error":"#N/A"}}]
[null,null,null,null,null,null,null,null,null,null,null,{"$f":"VLOOKUP(A15, Artenliste!$A$3:$B$2635, 2, TRUE)","v":{"$error":"#N/A"}},{"$f":"VLOOKUP(B15, Substrat!$A$2:$F$340, 2, FALSE)","v":{"$error":"#N/A"}}]
[null,null,null,null,null,null,null,null,null,null,null,{"$f":"VLOOKUP(A16, Artenliste!$A$3:$B$2635, 2, TRUE)","v":{"$error":"#N/A"}},{"$f":"VLOOKUP(B16, Substrat!$A$2:$F$340, 2, FALSE)","v":{"$error":"#N/A"}}]
[null,null,null,null,null,null,null,null,null,null,null,{"$f":"VLOOKUP(A17, Artenliste!$A$3:$B$2635, 2, TRUE)","v":{"$error":"#N/A"}},{"$f":"VLOOKUP(B17, Substrat!$A$2:$F$340, 2, FALSE)","v":{"$error":"#N/A"}}]
[null,null,null,null,null,null,null,null,null,null,null,{"$f":"VLOOKUP(A18, Artenliste!$A$3:$B$2635, 2, TRUE)","v":{"$error":"#N/A"}},{"$f":"VLOOKUP(B18, Substrat!$A$2:$F$340, 2, FALSE)","v":{"$error":"#N/A"}}]
[null,null,null,null,null,null,null,null,null,null,null,{"$f":"VLOOKUP(A19, Artenliste!$A$3:$B$2635, 2, TRUE)","v":{"$error":"#N/A"}},{"$f":"VLOOKUP(B19, Substrat!$A$2:$F$340, 2, FALSE)","v":{"$error":"#N/A"}}]
[null,null,null,null,null,null,null,null,null,null,null,{"$f":"VLOOKUP(A20, Artenliste!$A$3:$B$2635, 2, TRUE)","v":{"$error":"#N/A"}},{"$f":"VLOOKUP(B20, Substrat!$A$2:$F$340, 2, FALSE)","v":{"$error":"#N/A"}}]
[null,null,null,null,null,null,null,null,null,null,null,{"$f":"VLOOKUP(A21, Artenliste!$A$3:$B$2635, 2, TRUE)","v":{"$error":"#N/A"}},{"$f":"VLOOKUP(B21, Substrat!$A$2:$F$340, 2, FALSE)","v":{"$error":"#N/A"}}]
[null,null,null,null,null,null,null,null,null,null,null,{"$f":"VLOOKUP(A22, Artenliste!$A$3:$B$2635, 2, TRUE)","v":{"$error":"#N/A"}},{"$f":"VLOOKUP(B22, Substrat!$A$2:$F$340, 2, FALSE)","v":{"$error":"#N/A"}}]
[null,null,null,null,null,null,null,null,null,null,null,{"$f":"VLOOKUP(A23, Artenliste!$A$3:$B$2635, 2, TRUE)","v":{"$error":"#N/A"}},{"$f":"VLOOKUP(B23, Substrat!$A$2:$F$340, 2, FALSE)","v":{"$error":"#N/A"}}]
[null,null,null,null,null,null,null,null,null,null,null,{"$f":"VLOOKUP(A24, Artenliste!$A$3:$B$2635, 2, TRUE)","v":{"$error":"#N/A"}},{"$f":"VLOOKUP(B24, Substrat!$A$2:$F$340, 2, FALSE)","v":{"$error":"#N/A"}}]
[null,null,null,null,null,null,null,null,null,null,null,{"$f":"VLOOKUP(A25, Artenliste!$A$3:$B$2635, 2, TRUE)","v":{"$error":"#N/A"}},{"$f":"VLOOKUP(B25, Substrat!$A$2:$F$340, 2, FALSE)","v":{"$error":"#N/A"}}]
[null,null,null,null,null,null,null,null,null,null,null,{"$f":"VLOOKUP(A26, Artenliste!$A$3:$B$2635, 2, TRUE)","v":{"$error":"#N/A"}},{"$f":"VLOOKUP(B26, Substrat!$A$2:$F$340, 2, FALSE)","v":{"$error":"#N/A"}}]
[null,null,null,null,null,null,null,null,null,null,null,{"$f":"VLOOKUP(A27, Artenliste!$A$3:$B$2635, 2, TRUE)","v":{"$error":"#N/A"}},{"$f":"VLOOKUP(B27, Substrat!$A$2:$F$340, 2, FALSE)","v":{"$error":"#N/A"}}]
[null,null,null,null,null,null,null,null,null,null,null,{"$f":"VLOOKUP(A28, Artenliste!$A$3:$B$2635, 2, TRUE)","v":{"$error":"#N/A"}},{"$f":"VLOOKUP(B28, Substrat!$A$2:$F$340, 2, FALSE)","v":{"$error":"#N/A"}}]
[null,null,null,null,null,null,null,null,null,null,null,{"$f":"VLOOKUP(A29, Artenliste!$A$3:$B$2635, 2, TRUE)","v":{"$error":"#N/A"}},{"$f":"VLOOKUP(B29, Substrat!$A$2:$F$340, 2, FALSE)","v":{"$error":"#N/A"}}]
[null,null,null,null,null,null,null,null,null,null,null,{"$f":"VLOOKUP(A30, Artenliste!$A$3:$B$2635, 2, TRUE)","v":{"$error":"#N/A"}},{"$f":"VLOOKUP(B30, Substrat!$A$2:$F$340, 2, FALSE)","v":{"$error":"#N/A"}}]
[null,null,null,null,null,null,null,null,null,null,null,{"$f":"VLOOKUP(A31, Artenliste!$A$3:$B$2635, 2, TRUE)","v":{"$error":"#N/A"}},{"$f":"VLOOKUP(B31, Substrat!$A$2:$F$340, 2, FALSE)","v":{"$error":"#N/A"}}]

{"sheet":"Artenliste","index":4,"n_rows":2635,"n_cols":2,"rows_kept":2635,"cut":false,"hidden":false,"merged":[]}
["FlorApp_neue Version"]
["Liart_Species","Liart_code"]
["Absconditella",5003]
["Absconditella annexa (Arnold) Vezda",1541]
["Absconditella delutula (Nyl.) Coppins & H. Kilias",1535]
["Absconditella lignicola Vezda & Pisút",8000]
["Absconditella pauxilla Vezda & Vivant",1540]
["Acarospora",5004]
["Acarospora admissa (Nyl.) Kullh.",22044]
["Acarospora albomarginata (H. Magn.) Clauzade & Cl. Roux",21527]
["Acarospora badiofusca (Nyl.) Th. Fr. s.lat.",2914]
["Acarospora badiofusca (Nyl.) Th. Fr. subsp. badiofusca ","25000"]
["Acarospora badiofusca (Nyl.) Th. Fr. subsp. badiorubra Clauzade & Cl. Roux","1802"]
["Acarospora bullata Anzi",29]
["Acarospora chrysocardia Poelt & M. Steiner",7]
["Acarospora cinerascens J. Steiner",20368]
["Acarospora commixta H. Magn.",20731]
["Acarospora complanata H. Magn.",1808]
["Acarospora discreta (Ach.) Th. Fr.",22090]
["Acarospora freyi H. Magn.",20767]
["Acarospora fuscata (Schrad.) Arnold",10]
["Acarospora gallica H. Magn.",1544]
["Acarospora glaucocarpa (Ach.) Körb.",11]
["Acarospora heufleriana Körb.",6]
["Acarospora hospitans H. Magn.",1590]
["Acarospora imbricatula H. Magn.",20513]
["Acarospora impressula Th. Fr.",2915]
["Acarospora insolata H. Magn.","1594"]
["Acarospora laqueata Stizenb.",21423]
["Acarospora macrospora (Hepp)  A. Massal. ex Bagl.",14]
["Acarospora melaplaca (Nyl.) Arnold",1574]
["Acarospora modenensis H. Magn.",20737]
["Acarospora moenium (Vain.) Räsänen",4560]
["Acarospora murorum A. Massal.",1563]
["Acarospora nitrophila H. Magn. s. lat.",130]
["Acarospora nitrophila H. Magn. subsp. nitrophila ",25001]
["Acarospora nitrophila H. Magn. subsp. normanii (H. Magn.) Clauzade & Cl. Roux",25002]
["Acarospora nitrophila H. Magn. subsp. praeruptorum (H. Magn.) Clauzade & Cl. Roux",1812]
["Acarospora nodulosa (Dufour) Hue s. lat.",8004]
["Acarospora nodulosa (Dufour) Hue var. nodulosa ",1545]
["Acarospora nodulosa (Dufour) Hue var. reagens (Zahlbr.) Clauzade & Cl. Roux",1546]
["Acarospora oligospora (Nyl.) Arnold",1561]
["Acarospora peliscypha Th. Fr.",1542]
["Acarospora rugulosa Körb.","4967"]
["Acarospora schleicheri\n (Ach.) A. Massal.",20]
["Acarospora similis H. Magn.",20732]
["Acarospora sinopica (Wahlenb.) Körb.",24]
["Acarospora tongletii (Hue) Hue s.lat.","25003"]
["Acarospora tongletii (Hue) Hue var. paupera (H. Magn.) Clauzade & Cl. Roux",1571]
["Acarospora tongletii (Hue) Hue var. tongletii ","1566"]
["Acarospora umbilicata Bagl.",31]
["Acarospora valdobbiensis  Bagl. & Carestia",22034]
["Acarospora veronensis A. Massal.",30]
["Acarospora versicolor Bagl. & Carestia",1578]
["Acolium inquinans (Sm.) A. Massal.",474]
["Acolium karelicum (Vain.) M. Prieto & Wedin",3199]
["Acolium sessile (Pers.) Arnold",2223]
["Acrocordia",5006]
["Acrocordia cavata (Ach.) R. C. Harris",32]
["Acrocordia conoidea (Fr.) Körb. s. lat. ",33]
["Acrocordia conoidea (Fr.) Körb. var. conoidea ","25004"]
["Acrocordia conoidea (Fr.) Körb. var. glacialis (Bagl. & Carestia) Vězda","25005"]
["Acrocordia gemmata (Ach.) A. Massal. s. lat.",34]
["Acrocordia gemmata (Ach.) A. Massal. var. gemmata ","25006"]
["Acrocordia gemmata (Ach.) A. Massal. var. rhododendri Hinteregger","25007"]
["Acrocordia salweyi (Leight. ex Nyl.) A. L. Sm.",36]
["Adelolecia",22104]
["Adelolecia kolaensis (Nyl.) Hertel & Rambold",3503]
["Adelolecia pilati (Hepp) Hertel & Hafellner",1818]
["Agonimia",5010]
["Agonimia allobata (Stizenb.) P. James",1149]
["Agonimia borysthenica Dymytrova, Breuss & S.Y. Kondr.",8297]
["Agonimia flabelliformis Halda, Czarnota & Guzow-Krzeminska ","25008"]
["Agonimia gelatinosa (Ach.) M. Brand & Diederich",6041]
["Agonimia globulifera M. Brand & Diederich",8275]
["Agonimia octospora Coppins & P. James",37]
["Agonimia opuntiella (Buschardt & Poelt) Vezda",6042]
["Agonimia repleta Czarnota & Coppins","25009"]
["Agonimia tristicula (Nyl.) Zahlbr.",38]
["Agonimia vouauxii (de Lesd.) M. Brand & Diederich",6043]
["Ainoa",22105]
["Ainoa mooreana (Carroll) Lumbsch & I. Schmitt",1433]
["Alectoria",22106]
["Alectoria nigricans (Ach.) Nyl.",39]
["Alectoria ochroleuca (Hoffm.) A. Massal.",40]
["Alectoria sarmentosa (Ach.) Ach.",1647]
["Allantoparmelia",22107]
["Allantoparmelia alpicola (Th. Fr.) Essl.",43]
["Allocetraria",22108]
["Allocetraria madreporiformis (Ach.) Kärnefelt & A. Thell",3205]
["Alyxoria culmigena (Lib.) Ertz","948"]
["Alyxoria mougeotii (A. Massal.) Ertz, Frisch & G. Thor",952]
["Alyxoria ochrocheila (Nyl.) Ertz & Tehler",954]
["Alyxoria varia (Pers.) Ertz & Tehler","964"]
["Alyxoria varia aggr.",2771]
["Amandinea",5016]
["Amandinea punctata (Hoffm.) Coppins & Scheid.","212"]
["Amygdalaria",22109]
["Amygdalaria panaeola (Ach.) Hertel & Brodo",3876]
["Amylora",22110]
["Amylora cervinocuprea (Arnold) Rambold",20796]
["Anaptychia",22111]
["Anaptychia bryorum Poelt",1829]
["Anaptychia ciliaris (L.) Körb.",45]
["Anaptychia crinalis (Schleich.) Vezda ex J. Nowak",1826]
["Anaptychia runcinata (With.) J. R. Laundon",47]
["Anema",22112]
["Anema decipiens (A. Massal.) Forssell",1832]
["Anema nummularium (Dufour ex Durieu & Mont.) Nyl. ex Forssell",20574]
["Anisomeridium",5021]
["Anisomeridium biforme (Borrer) R. C. Harris",48]
["Anisomeridium macrocarpum (Körb.) V. Wirth",88]
["Anisomeridium polypori (Ellis & Everh.) M. E. Barr",49]
["Anisomeridium viridescens (Coppins) R. C. Harris",1660]
["Anzina",22113]
["Anzina carneonivea (Anzi) Scheid. s. lat.",1834]
["Anzina carneonivea (Anzi) Scheid. var. carneonivea ","25010"]
["Anzina carneonivea (Anzi) Scheid. var. tetraspora Scheid","25011"]
["Aphanopsis",22114]
["Aphanopsis coenosa (Ach.) Coppins & P. James",763]
["Arctoparmelia",22115]
["Arctoparmelia incurva (Pers.) Hale",1000]
["Arthonia",5026]
["Arthonia apatetica (A. Massal.) Th. Fr.",2798]
["Arthonia atra (Pers.) A. Schneid.",938]
["Arthonia calcarea (Sm.) Ertz & Diederich","940"]
["Arthonia calcicola Nyl.",1843]
["Arthonia cinereopruinosa Schaer.",55]
["Arthonia didyma Körb.",56]
["Arthonia dispersa (Schrad.) Nyl.",1856]
["Arthonia excipienda (Nyl.) Leight.",21617]
["Arthonia faginea Müll. Arg.",1858]
["Arthonia fuliginosa (Turner & Borrer) Flot.",302]
["Arthonia galactites (DC.) Dufour",57]
["Arthonia helvola (Nyl.) Nyl.",1836]
["Arthonia ilicinella Nyl.",62]
["Arthonia incarnata Th. Fr. ex Almq.","1837"]
["Arthonia lapidicola (Taylor) Branth & Rostr.",1852]
["Arthonia ligniaria Hellb.",8021]
["Arthonia mediella Nyl.",1848]
["Arthonia medusula (Pers.) Nyl.",1862]
["Arthonia radiata (Pers.) Ach.",69]
["Arthonia reniformis (Pers.) Nyl.",1861]
["Arthonia ruana A. Massal.",97]
["Arthonia spadicea Leight.  var. spadicea ","25012"]
["Arthonia spadicea Leight.  var. subspadicea (Nyl.) Redinger","25013"]
["Arthonia spadicea Leight. s. l.",70]
["Arthonia stellaris Kremp.",71]
["Arthonia tenellula Nyl.",1855]
["Arthonia viburnea Müll. Arg.",20330]
["Arthonia vinosa Leight.",73]
["Arthothelium",5028]
["Arthothelium spectabile A. Massal.",1877]
["Arthrorhaphis",22116]
["Arthrorhaphis alpina (Schaer.) R. Sant.",99]
["Arthrorhaphis citrinella (Ach.) Poelt",100]
["Arthrorhaphis grisea Th. Fr.",1882]
["Arthrorhaphis vacillans Th. Fr. & Almq. Ex Th. Fr.",101]
["Arthrosporum",22117]
["Arthrosporum populorum A. Massal.",134]
["Aspicilia",5033]
["Aspicilia aquatica (Fr.)  Körb.",127]
["Aspicilia bricconensis Hue",122]
["Aspicilia caesiocinerea (Nyl. ex Malbr.) Arnold",102]
["Aspicilia calcarea (L.) Bagl.",103]
["Aspicilia candida (Anzi) Hue",128]
["Aspicilia capituligera (Poelt) Poelt",20915]
["Aspicilia cinerea (L.) Körb.",104]
["Aspicilia contorta (Hoffm.) Körb.",107]
["Aspicilia coronata (A. Massal.) B. de Lesd.",1883]
["Aspicilia fumosula (Müll. Arg.) Hue",20828]
["Aspicilia gibbosa (Ach.) Körb.",22364]
["Aspicilia goettweigensis (Zahlbr.) Hue",20588]
["Aspicilia grisea Arnold",112]
["Aspicilia helvetica Hue",22039]
["Aspicilia henrici B. de Lesd.",21034]
["Aspicilia inornata Arnold",123]
["Aspicilia intermutans (Nyl.) Arnold",114]
["Aspicilia laevata (Ach.) Arnold",115]
["Aspicilia mastrucata (Wahlenb.) Th. Fr.",1902]
["Aspicilia mauritii Hue",22040]
["Aspicilia niesenensis (H. Magn.) Hafe",21032]
["Aspicilia obscurata (Fr. ex Nyl.) Arnold",21920]
["Aspicilia plumbeola (Müll. Arg.) Hue",20827]
["Aspicilia polychroma Anzi s. lat.",1290]
["Aspicilia polychroma Anzi subsp. hypertrophica Cl. Roux","25014"]
["Aspicilia polychroma Anzi subsp. polychroma",1886]
["Aspicilia simoënsis Räsänen",4582]
["Aspicilia supertegens Arnold",125]
["Aspicilia verrucigera Hue",21035]
["Aspicilia verrucosa (Ach.) Körb. s. lat.",971]
["Aspicilia verrucosa (Ach.) Körb. subsp.  verrucosa","25016"]
["Aspicilia verrucosa (Ach.) Körb. subsp. mutabilis (Ach.) Cl. Roux","25015"]
["Aspicilia verruculosa Kremp.",1884]
["Aspilidea",22118]
["Aspilidea myrinii (Fr.) Hafellner",1921]
["Atla",22119]
["Atla alpina Savic & Tibell",22063]
["Bacidia",5037]
["Bacidia absistens (Nyl.) Arnold",129]
["Bacidia arceutina (Ach.) Arnold",131]
["Bacidia auerswaldii (Hepp ex Stizenb.) Mig.",1905]
["Bacidia bagliettoana (A. Massal. & De Not.) Jatta",158]
["Bacidia biatorina (Körb.) Vain.",136]
["Bacidia circumspecta (Nyl. ex Vain.) Malme",142]
["Bacidia coprodes (Körb. ex Arnold) Lettau",8285]
["Bacidia fraxinea Lönnr.",2828]
["Bacidia friesiana (Hepp) Körb.",147]
["Bacidia fuscoviridis (Anzi) Lettau",157]
["Bacidia herbarum (Stizenb.) Arnold",151]
["Bacidia heterochroa (Müll. Arg.) Zahlbr.",25248]
["Bacidia igniarii (Nyl.) Oxner",21169]
["Bacidia illudens (Nyl.) Lynge",6044]
["Bacidia incompta (Borrer) Anzi",153]
["Bacidia laminularis (Müll. Arg.) Zahlbr.",21014]
["Bacidia laurocerasi (Delise ex Duby) Zahlbr.",155]
["Bacidia polychroa (Th. Fr.) Körb.",1908]
["Bacidia rosella (Pers.) De Not.",163]
["Bacidia rubella (Hoffm.) A. Massal.",164]
["Bacidia scoliciosporoides (Bagl. & Carestia) Lettau",22032]
["Bacidia subincompta (Nyl.) Arnold",168]
["Bacidia trachona (Ach.) Lettau",170]
["Bacidia vermifera (Nyl.) Th. Fr.",21094]
["Bacidia viridescens (A. Massal.) Th. Fr.",1911]
["Bacidia viridifarinosa Coppins & P. James",169]
["Bacidina",2392]
["Bacidina adastra (Sparrius & Aptroot) M. Hauck & V. Wirth",8253]
["Bacidina arnoldiana (Körb.) V. Wirth & Vezda","25017"]
["Bacidina assulata (Körb.) S. Ekman",133]
["Bacidina brandii (Coppens  Von den Boom) M. Hauck &V. Wirth","25018"]
["Bacidina caligans (Nyl.) Llop & Hladún",138]
["Bacidina chloroticula (Nyl.) Vězda & Poelt",141]
["Bacidina delicata (Larbal. ex Leight.) V. Wirth & Vězda",144]
["Bacidina egenula (Nyl.) Vezda",145]
["Bacidina etayana (van den Boom & Vězda) M. Hauck & V. Wirth",8254]
["Bacidina inundata (Fr.) Vězda",154]
["Bacidina neosquamulosa (Aptroot & Herk) S. Ekman",6031]
["Bacidina phacodes (Körb.) Vězda",161]
["Bacidina sulphurella (Samp.) M. Hauck & V. Wirth","25019"]
["Bactrospora",22120]
["Bactrospora dryina (Ach.) A. Massal.",3340]
["Bactrospora patellarioides (Nyl.) Almq.","20811"]
["Baeomyces",22121]
["Baeomyces placophyllus Ach.",174]
["Baeomyces rufus (Huds.) Rebent. s.lat.",176]
["Baeomyces rufus (Huds.) Rebent. var. callianthus Lettau","21113"]
["Baeomyces rufus (Huds.) Rebent. var. rufus ","25020"]
["Bagliettoa","25021"]
["Bagliettoa baldensis (A. Massal.) Vězda",1479]
["Bagliettoa calciseda (DC.) Gueidan & Cl. Roux",4355]
["Bagliettoa limborioides A. Massal.",20780]
["Bagliettoa marmorea (Scop.) Gueidan & Cl. Roux",1482]
["Bagliettoa parmigera (J. Steiner) Vězda & Poelt ",4871]
["Bagliettoa parmigerella (Zahlbr.) Vězda & Poelt",1502]
["Bagliettoa steineri (Kušan) Vězda",4353]
["Bellemerea",22122]
["Bellemerea alpina (Sommerf.) Clauzade & Cl. Roux",1922]
["Bellemerea cinereorufescens (Ach.) Clauzade & Cl. Roux",21360]
["Bellemerea diamarta (Ach.) Hafellner & Cl. Roux",4544]
["Bellemerea sanguinea (Kremp.) Hafellner & Cl. Roux","20205"]
["Bellemerea subcandida (Arnold) Hafellner & Cl. Roux",20206]
["Bellemerea subnivea (Müll. Arg.) Hafeller",20936]
["Biatora",5043]
["Biatora beckhausii (Körb.) Tuck.",135]
["Biatora brunnea Anzi",20597]
["Biatora chrysantha (Zahlbr.) Printzen",718]
["Biatora cuprea (Sommerf.) Fr.",753]
["Biatora efflorescens (Hedl.) Räsänen",696]
["Biatora fallax Hepp",2829]
["Biatora flavopunctata (Tønsberg) Hinter. & Printzen",1731]
["Biatora globulosa (Flörke) Fr.",310]
["Biatora helvola Körb. ex Hellb.",709]
["Biatora hemipolia (Nyl.) S. Ekman & Printzen",1906]
["Biatora meiocarpa (Nyl.) Arnold",700]
["Biatora mendax Anzi",21100]
["Biatora ocelliformis (Nyl.) Arnold",747]
["Biatora rufidula (Graewe) S. Ekman & Printzen",6024]
["Biatora subduplex (Nyl.) Räsänen ex Printzen",6006]
["Biatora vacciniicola (Tønsberg) Printzen",1742]
["Biatora vernalis (L.) Fr.",791]
["Biatora veteranorum Coppins & Sérus.",6016]
["Biatorella",22123]
["Biatorella fallacissima (Müll. Arg.) Zahlbr.",22033]
["Biatorella germanica A. Massal. ex Körb.",181]
["Biatorella hemisphaerica Anzi",1944]
["Biatoridium",22124]
["Biatoridium delitescens (Arnold) Hafellner",1938]
["Biatoridium monasteriense J. Lahm ex Körb.",182]
["Bilimbia",22125]
["Bilimbia accedens Arnold",4740]
["Bilimbia lobulata (Sommerf.) Hafellner & Coppins",1422]
["Bilimbia microcarpa (Th. Fr.) Th. Fr.","1903"]
["Bilimbia sabuletorum (Schreb.) Arnold s. lat.",165]
["Bilimbia sabuletorum (Schreb.) Arnold var. dolosa (Duby) ined.","25022"]
["Bilimbia sabuletorum (Schreb.) Arnold var. sabuletorum ","25023"]
["Bilimbia sabuletorum aggr.",2840]
["Blennothallia","25024"]
["Blennothallia crispa (Huds.) Otálora, P.M. Jørg. & Wedin s. l.",440]
["Blennothallia crispa (Huds.) Otálora, P.M. Jørg. & Wedin var. crispa ","25025"]
["Blennothallia crispa (Huds.) Otálora, P.M. Jørg. & Wedin var. metzleri (Arnold) ined.","25026"]
["Botryolepraria",22127]
["Botryolepraria lesdainii (Hue) Canals, Hern.-Mar., Gómez-Bolea & Llimona",814]
["Brianaria","25027"]
["Brianaria bauschiana (Körb.) S. Ekman & M. Svenss.",873]
["Brianaria lutulata (Nyl.) S. Ekman & M. Svenss.",882]
["Brianaria sylvicola (Flot. ex Körb.) S. Ekman & M. Svenss.",893]
["Brodoa",22128]
["Brodoa atrofusca (Schaer.) Goward",3323]
["Brodoa intestiniformis (Vill.) Goward",581]
["Bryobilimbia","25028"]
["Bryobilimbia ahlesii (Hepp) Fryday, Printzen & S. Ekman","4915"]
["Bryobilimbia diapensiae (Th. Fr.) Fryday, Printzen & S. Ekman",4917]
["Bryobilimbia hypnorum (Lib.) Fryday, Printzen & S. Ekman",730]
["Bryobilimbia sanguineoatra (Wulfen) Fryday, Printzen & S. Ekman","2833"]
["Bryocaulon",22129]
["Bryocaulon divergens (Ach.) Kärnefelt","20805"]
["Bryodina rhypariza (Nyl.) Hafellner & Türk",3365]
["Bryonora",22130]
["Bryonora castanea (Hepp) Poelt",3367]
["Bryonora curvescens (Mudd) Poelt",3425]
["Bryonora pruinosa (Th. Fr.) Holt.-Hartw.",6046]
["Bryophagus",22131]
["Bryoria",5052]
["Bryoria bicolor (Ehrh.) Brodo & D. Hawksw.","188"]
["Bryoria capillaris (Ach.) Brodo & D. Hawksw","189"]
["Bryoria carpatica (Motyka) Bystrek",21768]
["Bryoria fremontii (Tuck.) Brodo & D. Hawksw.",1824]
["Bryoria furcellata (Fr.) Brodo & D. Hawksw.",191]
["Bryoria fuscescens (Gyelnik) Brodo & D.Hawksw. ex RL2021","25029"]
["Bryoria nadvornikiana (Gyeln.) Brodo & D. Hawksw.",195]
["Bryoria simplicior (Vain.) Brodo & D. Hawksw.",1821]
["Bryoria smithii (Du Rietz) Brodo & D. Hawksw.",198]
["Bryostigma muscigenum (Th. Fr.) Frisch & G. Thor ",66]
["Buellia",5053]
["Buellia abstracta (Nyl.) H. Olivier",20322]
["Buellia aethalea (Ach.) Th. Fr.",200]
["Buellia arborea Coppins & Tønsberg",1684]
["Buellia arnoldii Servít",1968]
["Buellia asterella Poelt & Sulzer",1949]
["Buellia disciformis (Fr.) Mudd f. disciformis ","25030"]
["Buellia disciformis (Fr.) Mudd f. microspora (Vain.) Zahlbr.","25031"]
["Buellia disciformis (Fr.) Mudd s. lal.",204]
["Buellia dispersa ( A. Massal.) A. Massal.",20292]
["Buellia elegans Poelt",1950]
["Buellia epigaea (Pers.) Tuck.",1959]
["Buellia erubescens Arnold",205]
["Buellia fusca (Anzi) Kernst.",20698]
["Buellia griseovirens (Turner & Borrer ex Sm.) Almb.",207]
["Buellia jugorum (Arnold) Arnold",1998]
["Buellia leptocline (Flot.) A. Massal.",2000]
["Buellia leptolepis Bagl. & Carestia",20924]
["Buellia miriquidica Scheid.",3000]
["Buellia ocellata (Flot.) Körb.",3004]
["Buellia sanguinolenta T. Schauer",1969]
["Buellia schaereri De Not.",215]
["Buellia spuria (Schaer.) Anzi",3009]
["Buellia stellulata (Taylor) Mudd",216]
["Buellia subdisciformis (Leight.) Jatta",217]
["Buellia subsquamosa J. Steiner",20476]
["Buellia tyrolensis Körb.",21587]
["Buellia uberior Anzi",3001]
["Buellia uberiuscula (Nyl.) Zahlbr.",20324]
["Buellia vilis Th. Fr.",3013]
["Bunodophoron",22132]
["Bunodophoron melanocarpum (Sw.) Wedin",1334]
["Byssoloma",5055]
["Byssoloma marginatum (Arnold) Sérus.",2830]
["Byssoloma subdiscordans (Nyl.) P. James",221]
["Caeruleum",22133]
["Caeruleum heppii (Hepp ex Arnold) K. Knudsen",13]
["Calicium",5057]
["Calicium abietinum Pers.",223]
["Calicium adaequatum Nyl.",237]
["Calicium adspersum Pers.",224]
["Calicium corynellum (Ach.) Ach.",2156]
["Calicium denigratum (Vain.) Tibell",235]
["Calicium glaucellum Ach.",225]
["Calicium lenticulare Ach.",229]
["Calicium lucidum (Th. Fr.) M. Prieto & Wedin",3198]
["Calicium montanum Tibell",6010]
["Calicium notarisii (Tul.) M. Prieto & Wedin",475]
["Calicium parvum Tibell",226]
["Calicium pinastri Tibell",8249]
["Calicium pinicola (Tibell) M. Prieto & Wedin",3197]
["Calicium quercinum Pers.",227]
["Calicium salicinum Pers.",228]
["Calicium tigillare (Ach.) Pers.",476]
["Calicium trabinellum (Ach.) Ach.",234]
["Calicium viride Pers.",231]
["Callome","25032"]
["Callome multipartita (Sm.) Otálora, P.M. Jørg. & Wedin",452]
["Callopisma",22134]
["Caloplaca",5058]
["Caloplaca albopruinosa (Arnold) H. Ol",21588]
["Caloplaca alnetorum Giralt, Nimis & Poelt",2941]
["Caloplaca alociza (A. Massal.) Mig.",3023]
["Caloplaca alstrupii Sochting","22093"]
["Caloplaca ammiospila (Wahlenb. ex Ach.) H. Olivier","3097"]
["Caloplaca arcis (Poelt & Vezda) Arup",8287]
["Caloplaca arenaria (Pers.) Müll. Arg.",3053]
["Caloplaca arnoldii (Wedd.) Zahlbr. ex Ginzb. s. l.",236]
["Caloplaca arnoldii (Wedd.) Zahlbr. ex Ginzb. subsp. arnoldii ","25033"]
["Caloplaca arnoldii (Wedd.) Zahlbr. ex Ginzb. subsp. oblitterata (Pers.) Gaya","25034"]
["Caloplaca arnoldiiconfusa Gaya & Nav.-Ros.",21969]
["Caloplaca asserigena (Stizenb. ex J. Lahm) H. Olivier","3074"]
["Caloplaca athroocarpa (Anzi) Jatta",3047]
["Caloplaca aurantia (Pers.) Hellb.",239]
["Caloplaca australis  (Arnold) Zahlbr.",3265]
["Caloplaca biatorina (A. Massal.) J. Steiner",2916]
["Caloplaca bryochrysion Poelt",8274]
["Caloplaca cacuminum Poelt",3057]
["Caloplaca cerina (Hedw.) Th. Fr.",241]
["Caloplaca cerinella (Nyl.) Flagey",242]
["Caloplaca cerinelloides (Erichsen) Poelt",4615]
["Caloplaca chalybaea (Fr.) Müll. Arg.",243]
["Caloplaca chanousiae Sambo",3266]
["Caloplaca chlorina (Flot.) H. Olivier",244]
["Caloplaca chrysodeta (Vain.) Dombr. Comb. Inval.",4616]
["Caloplaca chrysophthalma Degel.",3061]
["Caloplaca cirrochroa (Ach.) Th. Fr.",246]
["Caloplaca citrina (Hoffm.) Th. Fr.","247"]
["Caloplaca coccinea (Müll. Arg.) Poelt",3068]
["Caloplaca conversa (Kremp.) Jatta",3083]
["Caloplaca coralliza Arup & Akelius",8290]
["Caloplaca coronata (Kremp. ex Körb.) J. Steiner",3062]
["Caloplaca crenularia (With.) J. R. Laundon s. lat.",253]
["Caloplaca crenularia (With.) J. R. Laundon var. contigua (A. Massal.) ined.","25035"]
["Caloplaca crenularia (With.) J. R. Laundon var. crenularia ","25036"]
["Caloplaca crenularia (With.) J. R. Laundon var. depauperata (H. Magn.) Calat. & Barreno","25037"]
["Caloplaca crenulatella (Nyl.) H. Olivier",3059]
["Caloplaca dalmatica (A. Massal.) H. Olivier s.lat",2855]
["Caloplaca decipiens (Arnold) Blomb. & Forssell",250]
["Caloplaca demissa (Flot.) Arup & Grube",645]
["Caloplaca dichroa Arup",22076]
["Caloplaca diphyodes (Nyl.) Jatta",21983]
["Caloplaca epithallina Lynge",3105]
["Caloplaca erythrocarpa (Pers.) Zwackh",3103]
["Caloplaca ferrarii (Bagl.) Jatta",20659]
["Caloplaca ferruginea (Huds.) Th. Fr.",21737]
["Caloplaca ferruginea aggr.","252"]
["Caloplaca flavescens (Huds.) J. R. Laundon s. lat.",259]
["Caloplaca flavescens (Huds.) J. R. Laundon var. brevilobata (Nyl.) ined.","25038"]
["Caloplaca flavescens (Huds.) J. R. Laundon var. flavescens ","25039"]
["Caloplaca flavocitrina (Nyl.) H. Olivier",8255]
["Caloplaca furfuracea H. Magn.",4624]
["Caloplaca glaucescens (Bagl. & Carestia) Jatta",22028]
["Caloplaca granulosa (Müll. Arg.) J. Steiner",257]
["Caloplaca grimmiae (Nyl.) H. Olivier",4627]
["Caloplaca haematites (Chaub.) Zwackh",258]
["Caloplaca herbidella (Nyl. ex Hue) H. Magn.",260]
["Caloplaca heufleriana (A. Massal.) Zahlbr.",22036]
["Caloplaca holocarpa (Hoffm.) A. E. Wade",261]
["Caloplaca hungarica H. Mag",8060]
["Caloplaca hungarica H. Magn.",4635]
["Caloplaca inconnexa (Nyl.) Zahlbr.",8059]
["Caloplaca isidiigera Vezda",263]
["Caloplaca jungermanniae (Vahl) Th. Fr.",3089]
["Caloplaca livida (Hepp) Jatta",3049]
["Caloplaca lobulata (Flörke) Hellb.",3045]
["Caloplaca lucifuga G. Thor",245]
["Caloplaca monacensis (Leder.) Lettau ","25040"]
["Caloplaca nivalis (Körb.) Th. Fr. ",3048]
["Caloplaca nubigena (Kremp.) Dalla Torre & Sarnth. s. lat.",3070]
["Caloplaca nubigena (Kremp.) Dalla Torre & Sarnth. var. keissleri (Servít) Clauzade & Cl. Roux","25041"]
["Caloplaca nubigena (Kremp.) Dalla Torre & Sarnth. var. nubigena ","25042"]
["Caloplaca oasis (A. Massal.) Szatala f. lithophila auct.","25043"]
["Caloplaca oasis (A. Massal.) Szatala f. oasis ","25044"]
["Caloplaca oasis (A. Massal.) Szatala s. lat.","3073"]
["Caloplaca obliterans (Nyl.) Blomb. & Forssell",270]
["Caloplaca obscurella (J. Lahm ex Körb.) Th. Fr.",3382]
["Caloplaca ochracea (Schaer.) Th. Fr.",272]
["Caloplaca percrocata (Arnold) J. Steiner",3106]
["Caloplaca pollinii (A. Massal.) Jatta",3095]
["Caloplaca polycarpa (A. Massal.) Zahlbr.",2917]
["Caloplaca proteus Poelt",3029]
["Caloplaca pseudofulgensia Gaya & Nav.-Ros.",21970]
["Caloplaca pulchrevirens (Anzi) Jatta",20870]
["Caloplaca pusilla (A. Massal.) Zahlbr.",21971]
["Caloplaca raesaenenii Bredkin",21553]
["Caloplaca rubelliana (Ach.) Lojka",3065]
["Caloplaca rubroaurantiaca B. de Lesd.",20252]
["Caloplaca saxicola (Hoffm.) Nordin",277]
["Caloplaca saxifragarum Poelt",3078]
["Caloplaca schistidii (Anzi) Zahlbr.",3261]
["Caloplaca scotoplaca (Nyl.) H. Magn.",3107]
["Caloplaca sinapisperma (Lam. & DC.) Maheu & A. Gillet",3099]
["Caloplaca sorocarpa (Vain.) Zahlbr.",3085]
["Caloplaca stillicidiorum (Vahl) Lynge s. lat.","25045"]
["Caloplaca subsoluta (Nyl.) Zahlbr.",3066]
["Caloplaca teicholyta (Ach.) J. Steiner",281]
["Caloplaca tetraspora (Nyl.) H. Olivier",3098]
["Caloplaca tiroliensis Zahlbr.",3090]
["Caloplaca turkuensis (Vain.) Zahlbr.",238]
["Caloplaca ulcerosa Coppins & P. James",283]
["Caloplaca variabilis (Pers.) Müll. Arg.",284]
["Caloplaca viridirufa (Ach.) Zahlbr",3081]
["Caloplaca vitellinula (Nyl.) H. Olivier",20923]
["Caloplaca xantholyta (Nyl.) Jatta",826]
["Caloplaca xerica Poelt & Vezda",3091]
["Calvitimela",22135]
["Calvitimela aglaea (Sommerf.) Hafellner",693]
["Calvitimela armeniaca (DC.) Hafellner",697]
["Calvitimela melaleuca (Sommerf.) R. Sant.",20897]
["Candelaria",22136]
["Candelaria concolor (Dicks.) Stein",289]
["Candelaria pacifica M. Westb. & Arup",22080]
["Candelariella",5060]
["Candelariella aggregata M. Westb.",22081]
["Candelariella antennaria Räsänen",22082]
["Candelariella aurella (Hoffm.) Zahlbr. s. lat.",291]
["Candelariella aurella (Hoffm.) Zahlbr. subsp.  aurella",25046]
["Candelariella aurella (Hoffm.) Zahlbr. subsp. glebulosa (Asta, Clauzade & Cl. Roux) Cl. Roux comb. inval.",25047]
["Candelariella boleana Etayo, Palice & T. Sprib.",22083]
["Candelariella coralliza (Nyl.) H. Magn.",292]
["Candelariella efflorescens  aggr.","25048"]
["Candelariella efflorescens R. C. Harris & W. R. Buck",4639]
["Candelariella granuliformis M. Westb.",22085]
["Candelariella lutella (Vain.) Räsänen",293]
["Candelariella medians (Nyl.) A. L. Sm.",296]
["Candelariella reflexa (Nyl.) Lettau",297]
["Candelariella subdeflexa (Nyl.) Lettau",3113]
["Candelariella superdistans (Nyl.) Malme",20883]
["Candelariella unisepta (Stizenb.) Zahlbr.",20932]
["Candelariella viae-lacteae G. Thor & V. Wirth",2831]
["Candelariella vitellina (Hoffm.) Müll. Arg. f. flavovirella (Nyl.) Alb. Hend.","25049"]
["Candelariella vitellina (Hoffm.) Müll. Arg. f. vitellina ","25050"]
["Candelariella vitellina (Hoffm.) Müll. Arg. s. lat.",298]
["Candelariella xanthostigma (Ach.) Lettau",299]
["Candelariella xanthostigmoides (Müll. Arg.) R. W. Rogers",22086]
["Carbonea",22137]
["Carbonea aggregantula (Müll. Arg.) Diederich & Triebel",2506]
["Carbonea assimilis (Hampe ex Körb.) Hafellner & Hertel",3480]
["Carbonea atronivea (Arnold) Hertel",303]
["Carbonea distans (Kremp.) Hafellner & Obermayer",3495]
["Carbonea supersparsa (Nyl.) Hertel",2162]
["Carbonea vitellinaria (Nyl.) Hertel",2163]
["Carbonea vorticosa (Flörke) Hertel",793]
["Catapyrenium",5063]
["Catapyrenium cinereum (Pers.) Körb.",300]
["Catapyrenium daedaleum (Kremp.) Stein",3121]
["Catapyrenium psoromoides (Borrer) R. Sant.",3125]
["Catillaria",5064]
["Catillaria anisospora (Müll. Arg.) Zahlbr.",22031]
["Catillaria atomarioides (Müll. Arg.) H. Kilias",308]
["Catillaria chalybeia (Borrer) A. Massal.",306]
["Catillaria contristans (Nyl.) Zahlbr.",309]
["Catillaria endodesmia (Müll. Arg.) Zahlbr.",20091]
["Catillaria erysiboides (Nyl.) Th. Fr.",3135]
["Catillaria fungoides Etayo & v.d. Boom sp. nov.","25051"]
["Catillaria lenticularis (Ach.) Th. Fr.",311]
["Catillaria minuta (A. Massal.) Lettau",3127]
["Catillaria modesta (Müll. Arg.) Coppins",20889]
["Catillaria nigroclavata (Nyl.) J. Steiner",316]
["Catillaria picila (A. Massal.) Coppins",3126]
["Catillaria rugulosa (Hepp) Lettau",21003]
["Catillaria scotinodes (Nyl.) Coppins",8071]
["Catinaria",22138]
["Catinaria atropurpurea (Schaer.) Vezda & Poelt",183]
["Catinaria papillosa Coppins",6032]
["Catolechia",22139]
["Catolechia wahlenbergii (Flot. ex Ach.) Körb.",325]
["Celothelium ",25249]
["Celothelium lutescens F. Berger & Aptroot",25250]
["Cephalophysis",22141]
["Cephalophysis leucospila (Aniz) H. Kilias & Schei var. caelivicina (Poelt & Hertel) H. Kilias & Scheid.",22046]
["Cephalophysis leucospila (Aniz) H. Kilias & Schei. s. lat.","25052"]
["Cephalophysis leucospila (Aniz) H. Kilias & Schei. var. leucospila (Anzi) H. Kilias & Scheid.",20473]
["Cetraria",22142]
["Cetraria aculeata (Schreb.) Fr.",430]
["Cetraria ericetorum Opiz",331]
["Cetraria islandica (L.) Ach. s. lat.","333"]
["Cetraria islandica (L.) Ach. subsp. crispiformis (Räsänen) Kärnefelt",334]
["Cetraria islandica (L.) Ach. subsp. islandica (L.) Ach.",8256]
["Cetraria muricata (Ach.) Eckfeldt",431]
["Cetraria obtusata (Schaer.) Van den Boom & Sipman",21123]
["Cetraria sepincola (Ehrh.) Ach.",338]
["Cetrariella",22143]
["Cetrariella commixta (Nyl.) A. Thell & Kärnefelt",328]
["Cetrariella sorediella (Lettau) V.J. Rico & A. Thell",21965]
["Cetrelia",5071]
["Cetrelia cetrarioides (Delise ex Duby) W. L. Culb. & C. F. Culb.",1688]
["Cetrelia chicitae (W. L. Culb.) W. L. Culb. & C. F. Culb.",1690]
["Cetrelia monachorum (Zahlbr.) W. L. Culb. & C. F. Culb.","25053"]
["Cetrelia olivetorum (Nyl.) W. L. Culb. & C. F. Culb.",339]
["Cetrelia olivetorum aggr.",25054]
["Chaenotheca",5072]
["Chaenotheca brachypoda (Ach.) Tibell",467]
["Chaenotheca brunneola (Ach.) Müll. Arg.",341]
["Chaenotheca chlorella (Ach.) Müll. Arg.",342]
["Chaenotheca chrysocephala (Ach.) Th. Fr.",343]
["Chaenotheca cinerea (Pers.) Tibell",352]
["Chaenotheca ferruginea (Sm.) Mig.",344]
["Chaenotheca furfuracea (L.) Tibell",466]
["Chaenotheca gracilenta (Ach.) Mattson & Middelb.",4666]
["Chaenotheca hispidula (Ach.) Zahlbr.",345]
["Chaenotheca laevigata Nadv.",340]
["Chaenotheca phaeocephala (Turner) Th. Fr.",347]
["Chaenotheca sphaerocephala Nadv.",8257]
["Chaenotheca stemonea (Ach.) Müll. Arg.",348]
["Chaenotheca subroscida (Eitner) Zahlbr. ",346]
["Chaenotheca trichialis (Ach.) Th. Fr.",349]
["Chaenotheca xyloxena Nadv.",350]
["Cheiromycina",22144]
["Cheiromycina flabelliformis B. Sutton",6025]
["Chrysothrix",22145]
["Chrysothrix caesia (Flot.) Ertz & Tehler",1850]
["Chrysothrix candelaris (L.) J. R. Laundon",354]
["Chrysothrix chlorina (Ach.) J. R. Laundon",355]
["Cladonia",5078]
["Cladonia acuminata (Ach.) Norrl.",3160]
["Cladonia amaurocraea (Flörke) Schaer.",398]
["Cladonia arbuscula (Wallr.) Flot.  subsp. squarrosa (Wallr.) Ruoss",357]
["Cladonia arbuscula (Wallr.) Flot. s. lat.",1560]
["Cladonia arbuscula (Wallr.) Flot. subsp.  arbuscula",360]
["Cladonia arbuscula aggr.","25055"]
["Cladonia bacilliformis (Nyl.) Sarnth.",3162]
["Cladonia bellidiflora (Ach.) Schaer.",362]
["Cladonia borealis S. Stenroos",7000]
["Cladonia botrytes (K. G. Hagen) Willd.",363]
["Cladonia caespiticia (Pers.) Flörke",364]
["Cladonia cariosa (Ach.) Spreng.",366]
["Cladonia carneola (Fr.) Fr.",367]
["Cladonia cenotea (Ach.) Schaer.",368]
["Cladonia cervicornis (Ach.) Flot.  subsp. verticillata (Hoffm.) Ahti",370]
["Cladonia cervicornis (Ach.) Flot. s. lat.","2919"]
["Cladonia cervicornis (Ach.) Flot. subsp. cervicornis ",369]
["Cladonia chlorophaea (Flörke ex Sommerf.) Spreng.",371]
["Cladonia chlorophaea aggr.","25056"]
["Cladonia ciliata Stirt.",380]
["Cladonia coccifera (L.) Willd.",374]
["Cladonia coniocraea (Flörke) Spreng.",375]
["Cladonia convoluta (Lam.) ","377"]
["Cladonia cornuta (L.) Hoffm.",1693]
["Cladonia crispata (Ach.) Flot. s. lat.",2920]
["Cladonia crispata (Ach.) Flot. var. cetrariiformis (Delise) Vain.",4655]
["Cladonia crispata (Ach.) Flot. var. crispata ",379]
["Cladonia cryptochlorophaea Asahina",3169]
["Cladonia cyanipes (Sommerf.) Nyl.",3161]
["Cladonia decorticata (Flörke) Spreng.",3163]
["Cladonia deformis (L.) Hoffm.",382]
["Cladonia digitata (L.) Hoffm.",383]
["Cladonia diversa Asperges ex S. Stenroos",21537]
["Cladonia ecmocyna Leight.",3155]
["Cladonia fimbriata (L.) Fr.",384]
["Cladonia firma (Nyl.) Nyl.","385"]
["Cladonia floerkeana (Fr.) Flörke",386]
["Cladonia foliacea (Huds.) Willd.",387]
["Cladonia furcata (Huds.) Schrad.",389]
["Cladonia glauca Flörke","391"]
["Cladonia gracilis (L.) Willd subsp. elongata (Wulfen) Vain.","3158 "]
["Cladonia gracilis (L.) Willd subsp. gracilis ",392]
["Cladonia gracilis (L.) Willd subsp. turbinata (Ach.) Ahti",3159]
["Cladonia gracilis (L.) Willd. s. lat.",1626]
["Cladonia grayi G. Merr. ex Sandst.",3166]
["Cladonia humilis (With.) J. R. Laundon",376]
["Cladonia incrassata Flörke",394]
["Cladonia macilenta Hoffm.",396]
["Cladonia macroceras (Delise) Hav.",3157]
["Cladonia macroceras aggr.","25057"]
["Cladonia macrophylla (Schaer.) Stenh.",397]
["Cladonia macrophyllodes Nyl.",3174]
["Cladonia merochlorophaea Asahina",3170]
["Cladonia mitis Sandst.",402]
["Cladonia monomorpha Aptroot, Sipman & Herk","25058"]
["Cladonia norvegica Tønsberg & Holien",4657]
["Cladonia novochlorophaea (Sipman) Brodo & Ahti",3171]
["Cladonia ochrochlora Flörke",403]
["Cladonia parasitica (Hoffm.) Hoffm.",404]
["Cladonia peziziformis (With.) J. R. Laundon",365]
["Cladonia phyllophora Hoffm.",405]
["Cladonia pleurota (Flörke) Schaer.",406]
["Cladonia pocillum (Ach.) Grognot",407]
["Cladonia polycarpoides Nyl.",400]
["Cladonia polydactyla (Flörke) Spreng.",408]
["Cladonia portentosa (Dufour) Coem.",409]
["Cladonia pseudopityrea Vain.",7005]
["Cladonia pyxidata (L.) Hoffm.",410]
["Cladonia pyxidata aggr.","25059"]
["Cladonia ramulosa (With.) J. R. Laundon",359]
["Cladonia rangiferina (L.) F. H. Wigg.",411]
["Cladonia rangiformis Hoffm.",412]
["Cladonia rei Schaer.",414]
["Cladonia scabriuscula (Delise) Nyl.",415]
["Cladonia squamosa Hoffm. s. lat.",418]
["Cladonia squamosa Hoffm. var. squamosa ","416"]
["Cladonia squamosa Hoffm. var. subsquamosa (Nyl. ex Leight.) Vain.","417"]
["Cladonia stellaris (Opiz) Pouzar & Vezda",413]
["Cladonia straminea (Sommerf.) Flörke",401]
["Cladonia strepsilis (Ach.) Grognot",420]
["Cladonia stygia (Fr.) Ruoss",4659]
["Cladonia subcervicornis (Vain.) Kernst.",421]
["Cladonia subrangiformis Sandst.",390]
["Cladonia subulata (L.) F. H. Wigg.",422]
["Cladonia sulphurina (Michx.) Fr.",423]
["Cladonia symphycarpa (Flörke) Fr.",4656]
["Cladonia trassii Ahti",7009]
["Cladonia turgida Hoffm.",428]
["Cladonia uliginosa (Ahti) Ahti",6048]
["Cladonia umbricola Tønsberg & Ahti",4660]
["Cladonia uncialis (L.) F. H. Wigg. s. lat.",1627]
["Cladonia uncialis (L.) F.H. Wigg. subsp.  uncialis",426]
["Cladonia uncialis (L.) F.H. Wigg. subsp. biuncialis (Hoffm.) M. Choisy",4661]
["Clauzadea",22146]
["Clauzadea chondrodes (A. Massal.) Hafellner & Türk","3175"]
["Clauzadea immersa (Hoffm.) Hafellner & Bellem.",734]
["Clauzadea metzleri (Körb.) Clauzade & Cl. Roux ex D. Hawksw.",749]
["Clauzadea monticola (Ach. ex Schaer.) Hafellner & Bellem.",751]
["Clavascidium","25060"]
["Clavascidium lacinulatum (Ach.) M. Prieto s. lat.","8064"]
["Clavascidium lacinulatum (Ach.) M. Prieto var. atrans (Breuss) M. Prieto","25061"]
["Clavascidium lacinulatum (Ach.) M. Prieto var. lacinulatum ","25062"]
["Cliostomum",22147]
["Cliostomum corrugatum (Ach.) Fr.",3138]
["Cliostomum flavidulum Hafellner & Kalb",22057]
["Cliostomum griffithii (Sm.) Coppins",429]
["Cliostomum haematommatis (Keissler) D. Hawksw., Earl.-Benn. & Coppins",25251]
["Cliostomum leprosum (Räsänen) Holien & Tønsberg",1696]
["Cliostomum pallens (Kullh.) S. Ekman",6035]
["Coenogonium",22148]
["Coenogonium luteum (Dicks.) Kalb & Lücking",490]
["Coenogonium pineti (Ach.) Lücking & Lumbsch",489]
["Collema",5088]
["Collema flaccidum (Ach.) Ach.",445]
["Collema furfuraceum (Arnold) Du Rietz",449]
["Collema glebulentum (Nyl. ex Cromb.) Degel.",450]
["Collema nigrescens (Huds.) DC.","25063"]
["Collema nigrescens aggr. ???",453]
["Collema subflaccidum Degel.",457]
["Collema subnigrescens Degel.",458]
["Collema thysanoeum Ach.",20366]
["Collemopsidium caesium (Nyl.) Coppins & Aptroot","21013"]
["Collemopsidium minutulum (Bornet) ined.","7008"]
["Coniocarpon cinnabarinum DC.,",72]
["Coniocarpon elegans (Ach.) Duby","58"]
["Cornicularia",22150]
["Cornicularia normoerica (Gunnerus) Du Rietz",472]
["Cresponea",22151]
["Cresponea premnea (Ach.) Egea & Torrente","20400"]
["Cryptodiscus gloeocapsa (Nitschke ex Arnold) Baloch, Gilenstam & Wedin",187]
["Cyphelium","5099"]
["Cyphelium trachylioides (Branth & Rostr.) Keissl.",3202]
["Cystocoleus",22154]
["Cystocoleus ebeneus (Dillwyn) Thwaites",477]
["Dactylina",22155]
["Dactylina ramulosa (Hook.) Tuck.",3206]
["Degelia",22156]
["Dendrographa decolorans (Turner & Borrer) Ertz & Tehler",1315]
["Dendrographa latebrarum (Ach.) Ertz & Tehler",816]
["Dermatocarpon",22158]
["Dermatocarpon arnoldianum Degel","3203"]
["Dermatocarpon intestiniforme (Körb.) Hasse",3207]
["Dermatocarpon leptophyllum (Ach.) K.G.W. Lång",482]
["Dermatocarpon luridum (With.) J. R. Laundon",487]
["Dermatocarpon meiophyllizum Vain","3217"]
["Dermatocarpon miniatum (L.) W. Mann s. lat.","1607"]
["Dermatocarpon miniatum (L.) W. Mann var. cirsodes (Ach.) Zahlbr.",25064]
["Dermatocarpon miniatum (L.) W. Mann var. miniatum ",25065]
["Dermatocarpon rivulorum (Arnold) Dalla Torre & Sarnth.",486]
["Dibaeis",22159]
["Dibaeis baeomyces (L. f.) Rambold & Hertel",175]
["Dimelaena",22160]
["Dimelaena oreina (Ach.) Norman",4048]
["Diploicia canescens (Dicks.) A. Massal.",491]
["Diploschistes",22161]
["Diploschistes actinostomus (Ach.) Zahlbr.",20844]
["Diploschistes diacapsis (Ach.) Lumbsch",3466]
["Diploschistes euganeus (A. Massal.) J. Steiner",22365]
["Diploschistes gypsaceus (Ach.) Zahlbr.",3225]
["Diploschistes muscorum (Scop.) R. Sant.",494]
["Diploschistes scruposus (Schreb.) Norman",495]
["Diplotomma",22162]
["Diplotomma alboatrum (Hoffm.) Flot.",496]
["Diplotomma hedinii (H. Magn.) P. Clerc & Cl. Roux",20965]
["Diplotomma lutosum A. Massal.",1979]
["Diplotomma pharcidium (Ach.) M. Choisy",1972]
["Diplotomma scheideggerianum (Bricaud & Cl. Roux) Nimis",22366]
["Diplotomma venustum (Körb.) Körb.",1981]
["Dirina",22163]
["Dirina massiliensis Durieu & Mont.","25260"]
["Eiglera",22164]
["Eiglera flavida (Hepp) Hafellner",110]
["Eiglera homalomorpha (Nyl.) Clauzade & Cl. Roux ex Hafellner & Türk",3232]
["Elixia",22165]
["Elixia flexella (Ach.) Lumbsch",1209]
["Enchylium","25066"]
["Enchylium coccophorum (Tuck.) Otálora, P.M. Jørg. & Wedin,",3191]
["Enchylium conglomeratum (Hoffm.) Otálora, P.M. Jørg. & Wedin",3188]
["Enchylium ligerinum (Hy) Otálora, P.M. Jørg. & Wedin",3189]
["Enchylium limosum (Ach.) Otálora, P.M. Jørg. & Wedin",451]
["Enchylium polycarpon (Hoffm.) Otálora, P.M. Jørg. & Wedin",455]
["Enchylium tenax (Sw.) Gray",2857]
["Endocarpon",22166]
["Endocarpon adscendens (Anzi) Müll. Arg.",3241]
["Endocarpon latzelianum Servít",3238]
["Endocarpon pallidulum (Nyl.) Nyl.",8288]
["Endocarpon pusillum Hedw.",3236]
["Enterographa",22167]
["Enterographa zonata (Körb.) Källsten",967]
["Eopyrenula",22168]
["Eopyrenula avellanae Coppins",1698]
["Eopyrenula leucoplaca (Wallr.) R. C. Harris",3242]
["Ephebe",22169]
["Ephebe hispidula (Ach.) Horw.",21061]
["Ephebe lanata (L.) Vain.",509]
["Epilichen",22171]
["Epilichen scabrosus (Ach.) Clem.",510]
["Epiphloea",22172]
["Epiphloea byssinum (Hoffm.) Henssen & P. M. Jørg.",831]
["Euopsis",22173]
["Euopsis granatina (Sommerf.) Nyl.",21064]
["Euopsis pulvinata (Schaer.) Vain.",1219]
["Evernia",5134]
["Evernia divaricata (L.) Ach.",3246]
["Evernia mesomorpha Nyl.",3247]
["Evernia perfragilis Llano",7007]
["Evernia prunastri (L.) Ach.",511]
["Farnoldia",22174]
["Farnoldia dissipabilis (Nyl.) Hertel",3254]
["Farnoldia hypocrita (A. Massal.) Fröberg s. lat.",20700]
["Farnoldia hypocrita (A. Massal.) Fröberg var. hypocrita ","25067"]
["Farnoldia hypocrita (A. Massal.) Fröberg var. ligans (Nyl.) Hafellner & Türk","25068"]
["Farnoldia jurana (Schaer.) Hertel s. lat.",863]
["Farnoldia jurana (Schaer.) Hertel subsp.  jurana","25071"]
["Farnoldia jurana (Schaer.) Hertel subsp. bicincta (Hertel) Clauzade & Cl. Roux ex Hafellner & Türk","25069"]
["Farnoldia jurana (Schaer.) Hertel subsp. caerulea (Kremp.) M. Brand,","25070"]
["Farnoldia jurana (Schaer.) Hertel subsp. muveranii (Müll. Arg.) Hafellner & Türk ","25072"]
["Farnoldia micropsis (A. Massal.) Hertel",3252]
["Farnoldia similigena (Nyl.) Hertel",3253]
["Felipes ","25073"]
["Felipes leucopellaeus (Ach.) Frisch & G. Thor",65]
["Fellhanera",5136]
["Fellhanera bouteillei (Desm.) Vezda",305]
["Fellhanera gyrophorica Sérus., Coppins, Diederich & Scheid.",512]
["Fellhanera ochracea Sparrius & Aptroot",21507]
["Fellhanera subtilis (Vezda) Diederich & Sérus.",162]
["Fellhanera viridisorediata Aptroot, M. Brand & Spier",6027]
["Fellhaneropsis",22175]
["Fellhaneropsis myrtillicola (Erichsen) Sérus. & Coppins",2723]
["Fellhaneropsis vezdae (Coppins & P. James) Sérus. & Coppins",171]
["Flavocetraria",22176]
["Flavocetraria cucullata (Bellardi) Kärnefelt & A. Thell",3148]
["Flavocetraria nivalis (L.) Kärnefelt & A. Thell",336]
["Flavoparmelia",22177]
["Flavoparmelia caperata (L.) Hale",987]
["Flavoparmelia soredians (Nyl.) Hale",1018]
["Flavopunctelia",22178]
["Flavopunctelia flaventior (Stirt.) Hale",3682]
["Flavopunctelia soredica (Nyl.) Hale",3683]
["Frigidopyrenia",22179]
["Frigidopyrenia bryospila (Nyl.) Grube",6049]
["Frutidella",22180]
["Frutidella caesioatra (Schaer.) Kalb",6050]
["Frutidella furfuracea (Anzi) M. Westb. & M. Svenss.",733]
["Fulgensia",5139]
["Fuscidea",5141]
["Fuscidea arboricola Coppins & Tønsberg",1703]
["Fuscidea austera (Nyl.) P. James",514]
["Fuscidea cyathoides (Ach.) V. Wirth & Vezda",516]
["Fuscidea gothoburgensis (H. Magn.) V. Wirth & Vezda",518]
["Fuscidea kochiana (Hepp) V. Wirth & Vezda",520]
["Fuscidea lightfootii (Sm.) Coppins & P. James",521]
["Fuscidea lygaea (Ach.) V. Wirth & Vezda",3276]
["Fuscidea mollis (Wahlenb.) V. Wirth & Vezda",3273]
["Fuscidea praeruptorum (Du Rietz & H. Magn.) V. Wirth & Vezda",525]
["Fuscidea pusilla Tønsberg",1705]
["Fuscopannaria",22181]
["Fuscopannaria confusa (P. M. Jørg.) P. M. Jørg.",8148]
["Fuscopannaria leucosticta (Tuck. ex E. Michener) P. M. Jørg.","20837"]
["Fuscopannaria mediterranea (Tav.) P. M. Jørg.",978]
["Fuscopannaria nebulosa (Hoffm.) ined.",906]
["Fuscopannaria praetermissa (Nyl.) P. M. Jørg.",1030]
["Gabura","25074"]
["Gabura fascicularis (L.) P.M. Jørg.",444]
["Gloeoheppia",22182]
["Gloeoheppia turgida (Ach.) Gyeln.",20838]
["Glypholecia scabra (Pers.) Müll. Arg.",28]
["Gomphillus",22183]
["Gomphillus calycioides (Delise ex Duby) Nyl.",528]
["Graphis",22185]
["Graphis betulina (Pers.) Ach.","25075"]
["Graphis elegans (Sm.) Ach.",532]
["Graphis macrocarpa (Pers.) Röhl.","25076"]
["Graphis pulverulenta (Pers.) Ach.","25077"]
["Graphis scripta (L.) Ach.","25078"]
["Graphis scripta aggr.",533]
["Gregorella",22186]
["Gregorella humida (Kullh.) Lumbsch",4737]
["Gyalecta",22187]
["Gyalecta carneola (Ach.) Hellb.",972]
["Gyalecta derivata (Nyl.) H. Olivier",4669]
["Gyalecta erythrozona Lettau",3289]
["Gyalecta fagicola (Arnold) Kremp., ",973]
["Gyalecta flotowii Körb.","536"]
["Gyalecta foveolaris (Ach.) Schaer.",537]
["Gyalecta geoica (Ach.) Ach.",538]
["Gyalecta hypoleuca (Ach.) Zahlbr.",3746]
["Gyalecta jenensis (Batsch) Zahlbr. s. lat.",539]
["Gyalecta jenensis (Batsch) Zahlbr. var. jenensis ","25079"]
["Gyalecta jenensis (Batsch) Zahlbr. var. macrospora Vězda","25080"]
["Gyalecta leucaspis (Kremp.) Kremp.",3288]
["Gyalecta ophiospora (Lettau) Baloch & Lücking",3661]
["Gyalecta peziza (Mont.) Anzi",540]
["Gyalecta rosea (Schaer.) ined.",22026]
["Gyalecta subclausa Anzi",3293]
["Gyalecta truncigena (Ach.) Hepp",541]
["Gyalecta truncigena (Ach.) Hepp aggr. ",1711]
["Gyalecta ulmi (Sw.) Zahlbr.",542]
["Gyalidea",22188]
["Gyalidea asteriscus (Anzi) Aptroot & Lücking",4131]
["Gyalidea diaphana  (Körb ex Nyl.) Vězda",545]
["Gyalidea fritzei (Stein) Vězda",543]
["Gyalidea lecideopsis (A. Massal.) Lettau ex Vezda s. l. ",3299]
["Gyalidea lecideopsis (A. Massal.) Lettau ex Vezda var. convarians (Nyl.) Vězda","25081"]
["Gyalidea lecideopsis (A. Massal.) Lettau ex Vezda var. lecideopsis ","25082"]
["Gyalidea scutellaris (Bagl. & Carestia) Lettau",3296]
["Gyalideopsis",22189]
["Gyalideopsis helvetica van den Boom & Vezda",8279]
["Gyalideopsis piceicola (Nyl.) Vezda & Poelt",4670]
["Gyalolechia","25083"]
["Gyalolechia aurea (Schaer.) A. Ma",3026]
["Gyalolechia bracteata (Hoffm.) A. Massal.  subsp.  bracteata",3260]
["Gyalolechia bracteata (Hoffm.) A. Massal.  subsp. deformis (Erichsen) ined.",3249]
["Gyalolechia bracteata (Hoffm.) A. Massal. s. lat.",2924]
["Gyalolechia desertorum (Tomin) Søchting, Frödén & Arup",3263]
["Gyalolechia epiphyta (Lynge) Von","4611"]
["Gyalolechia epiphyta (Lynge) Vondrák ",22053]
["Gyalolechia flavorubescens (Huds.) Søchting, Frödén & Arup",254]
["Gyalolechia flavovirescens (Wulfen) Søchting, Frödén & Arup",255]
["Gyalolechia fulgens (Sw.) Søchting, Frödén & Arup",513]
["Gyalolechia klementii (Kalb) Søchting, Frödén & Arup",3256]
["Gyalolechia pruinosa Körb. s. lat. ",3264]
["Gyalolechia pruinosa Körb. var. fissiseda (Poelt) ined.","25084"]
["Gyalolechia pruinosa Körb. var. pruinosa ","25085"]
["Gyalolechia subbracteata (Nyl.) Søchting, Frödén & Arup",7003]
["Gyrographa","25086"]
["Gyrographa gyrocarpa (Flot.) Ertz & Tehler",947]
["Haematomma",22190]
["Haematomma ochroleucum (Neck.) J. R. Laundon s. lat.",1712]
["Haematomma ochroleucum (Neck.) J. R. Laundon var. ochroleucum ","554"]
["Haematomma ochroleucum (Neck.) J. R. Laundon var. porphyrium (Pers.)  J. R. Laundon","555"]
["Haematomma sorediatum R. W. Rogers",8281]
["Halecania",22191]
["Halecania alpivaga (Th. Fr.) M. Mayrhofer",4505]
["Halecania lecanorina (Anzi) M. Mayrhofer & Poelt",4483]
["Halecania viridescens Coppins & P. James",552]
["Harpidium",22192]
["Harpidium rutilans Körb.",3307]
["Hazslinszkya ","25087"]
["Hazslinszkya gibberulosa (Ach.) Körb.",3580]
["Helocarpon",22193]
["Helocarpon crassipes Th. Fr.",6051]
["Henrica",22194]
["Henrica melaspora (Taylor) Savic & Tibell",1158]
["Henrica theleodes (Sommerf.) Savić, Tibell & Nav.-Ros",1162]
["Henrica vallorcinensis (Croz.) ined.",21130]
["Heppia",22195]
["Heppia adglutinata (Kremp.) A. Massal.",2765]
["Heppia lutosa (Ach.) Nyl.",3313]
["Hertelidea",22196]
["Hertelidea botryosa (Fr.) Printzen & Kantvilas",703]
["Heterodermia",5165]
["Heterodermia japonica (M. Satô) Swinscow & Krog","560"]
["Heterodermia leucomela (L.) Poelt",2110]
["Heterodermia obscurata (Nyl.) Trevis.",559]
["Heterodermia speciosa (Wulfen) Trevis.",553]
["Heteroplacidium","25088"]
["Heteroplacidium compactum (A. Massal.) Gueidan & Cl. Roux",20493]
["Hydropunctaria",22197]
["Hydropunctaria rheitrophila (Zschacke) C. Keller, Gueidan & Thüs",1499]
["Hydropunctaria scabra (Vězda) C. Keller, Gueidan & Thüs",4874]
["Hymenelia",22198]
["Hymenelia coerulea A. Massal.",575]
["Hymenelia epulotica (Ach.) Lutzoni",8259]
["Hymenelia heteromorpha (Kremp.) Lutzoni",587]
["Hymenelia melanocarpa (Kremp.) Arnold",588]
["Hymenelia similis (A. Massal.) M. Choisy",3316]
["Hyperphyscia",22199]
["Hyperphyscia adglutinata (Flörke) H. Mayrhofer & Poelt",1125]
["Hypocenomyce",5170]
["Hypocenomyce scalaris (Ach.) M. Choisy",578]
["Hypogymnia",5171]
["Hypogymnia austerodes (Nyl.) Räsänen",3326]
["Hypogymnia bitteri (Lynge) Ahti",3325]
["Hypogymnia farinacea Zopf",580]
["Hypogymnia physodes (L.) Nyl.",582]
["Hypogymnia tubulosa (Schaer.) Hav.",583]
["Hypogymnia vittata (Ach.) Parrique",3324]
["Hypotrachyna",22200]
["Hypotrachyna afrorevoluta (Krog & Swinscow) Krog & Swinscow",8149]
["Hypotrachyna britannica (D. Hawksw. & P. James) P. James",986]
["Hypotrachyna laevigata (Sm.) Hale",1002]
["Hypotrachyna minarum (Vain.) Krog & Swinscow","1004"]
["Hypotrachyna revoluta (Flörke) Hale",1013]
["Hypotrachyna rockii (Zahlbr.) Hale",21915]
["Hypotrachyna sinuosa (Sm.) Hale",1017]
["Hypotrachyna taylorensis (M. E. Mitch.) Hale",1023]
["Icmadophila",22201]
["Icmadophila ericetorum (L.) Zahlbr.",584]
["Immersaria",22202]
["Immersaria cupreoatra (Nyl.) Calat. & Rambold",20682]
["Imshaugia",22203]
["Imshaugia aleurites (Ach.) S. L. F. Mey.",1033]
["Inoderma","25089"]
["Inoderma byssaceum (Weigel) Gray",61]
["Involucrocarpon",22204]
["Involucropyrenium",22205]
["Involucropyrenium romeanum (B. de Lesd.) Breuss",20713]
["Involucropyrenium tremniacense (A. Massal.) Breuss",3117]
["Involucropyrenium waltheri (Kremp.) Breuss",3120]
["Involucrothele",22206]
["Ionaspis",22207]
["Ionaspis ceracea (Arnold) Hafellner & Türk",3314]
["Ionaspis delibuta (Ach.) Hue",20938]
["Ionaspis lacustris (With.) Lutzoni",573]
["Ionaspis odora (Schaer.) Stein",589]
["Ionaspis suaveolens (Fr.) Th. Fr. ex Stein",590]
["Jamesiella",22208]
["Jamesiella anastomosans (P. James & Vezda) Lücking & al.",547]
["Japewia",22209]
["Japewia subaurifera Muhr & Tønsberg",1716]
["Japewia tornoënsis (Nyl.) Tønsberg",786]
["Koerberiella",22211]
["Koerberiella wimmeriana (Körb.) Stein",3333]
["Lambiella ","25261"]
["Lambiella furvella (Nyl. ex Mudd) M. Westb. & Resl",722]
["Lambiella insularis (Nyl.) T. Sprib.",736]
["Lasallia",22212]
["Lasallia pustulata (L.) Mérat",591]
["Lathagrium","25090"]
["Lathagrium auriforme (With.) Otálora, P.M. Jørg. & Wedin",433]
["Lathagrium cristatum (L.) Otálora, P.M. Jørg. & Wedin s. lat.",2856]
["Lathagrium cristatum (L.) Otálora, P.M. Jørg. & Wedin var. cristatum ",442]
["Lathagrium cristatum (L.) Otálora, P.M. Jørg. & Wedin var. marginale (Huds.) ined.",3468]
["Lathagrium dichotomum (With.) Otálora, P.M. Jørg. & Wedin",446]
["Lathagrium fuscovirens (With.) Otálora, P.M. Jørg. & Wedin",463]
["Lathagrium undulatum (Laurer ex Flot.) Poetsch s. lat.",2923]
["Lathagrium undulatum (Laurer ex Flot.) Poetsch var. graulosum (Degel.) ined.",465]
["Lathagrium undulatum (Laurer ex Flot.) Poetsch var. undulatum ","25091"]
["Lecanactis",22213]
["Lecanactis abietina (Ach.) Körb.",592]
["Lecania",5189]
["Lecania aff. cyrtellina","614"]
["Lecania croatica (Zahlbr.) Kotlov",8248]
["Lecania cuprea (A. Massal.) Van den Boom & Coppins",143]
["Lecania cyrtella (Ach.) Th. Fr.",613]
["Lecania cyrtellina (Nyl.) Sandst.","21081"]
["Lecania dubitans (Nyl.) A. L. Sm.",3352]
["Lecania erysibe (Ach.) Mudd",2925]
["Lecania flavescens Lynge",20193]
["Lecania fuscella (Schaer.) A. Massal.",618]
["Lecania inundata (Hepp ex Körb.) M. Mayrhofer",4499]
["Lecania koerberiana J. Lahm",3353]
["Lecania naegelii (Hepp) Diederich & Van den Boom",159]
["Lecania nylanderiana A. Massal.",3346]
["Lecania polycycla (Anzi) Lettau",20388]
["Lecania rabenhorstii (Hepp) Arnold",4500]
["Lecania suavis (Müll. Arg.) Mig.",4503]
["Lecania sylvestris (Arnold) Arnold s. lat.",623]
["Lecania sylvestris (Arnold) Arnold var. sylvestris ",4493]
["Lecania sylvestris (Arnold) Arnold var. umbratica (Arnold) M. Mayrhofer",4494]
["Lecania turicensis (Hepp) Müll. Arg.",3350]
["Lecanographa",22214]
["Lecanographa amylacea (Ehrh. ex Pers.) Egea & Torrente",594]
["Lecanographa lyncea (Sm.) Egea & Torrente",600]
["Lecanora",5190]
["Lecanora aitema (Ach.) Hepp",626]
["Lecanora albella (Pers.) Ach.",663]
["Lecanora albellula (Nyl.) Th. Fr. s. lat.","665"]
["Lecanora albellula (Nyl.) Th. Fr. var. albellula ","25092"]
["Lecanora albellula (Nyl.) Th. Fr. var. macroconidiata M. Brand & van den Boom","25093"]
["Lecanora albula (Nyl.) Hue s. lat.",3415]
["Lecanora albula (Nyl.) Hue var. albula ","25094"]
["Lecanora albula (Nyl.) Hue var. vocontia Clauzade & Cl. Roux","25095"]
["Lecanora allophana (Ach.) Nyl. f. allophana ",8260]
["Lecanora allophana (Ach.) Nyl. f. sorediata Vain.",1719]
["Lecanora allophana (Ach.) Nyl. sl.",628]
["Lecanora anopta Nyl.",3395]
["Lecanora argentata (Ach.) Malme",685]
["Lecanora argopholis (Ach.) Ach.",3409]
["Lecanora atromarginata (H. Magn.) Hertel & Rambold","22064"]
["Lecanora barkmaniana Aptroot & Herk",6020]
["Lecanora bicincta Ramond s. lat.",201]
["Lecanora bicincta Ramond var. bicincta ",21361]
["Lecanora bicincta Ramond var. sorediata (Flot.) Leuckert & Poelt",20785]
["Lecanora boligera (Norman ex Th. Fr.) Hedl.",4723]
["Lecanora cadubriae (A. Massal.) Hedl.",3369]
["Lecanora campestris (Schaer.) Hue",635]
["Lecanora carpinea (L.) Vain.",636]
["Lecanora cenisia Ach.",3371]
["Lecanora chlarotera Nyl. s. lat.",639]
["Lecanora chlarotera Nyl. subsp.  chlarotera","25096"]
["Lecanora chlarotera Nyl. subsp. meridionalis (H. Magn.) Clauzade & Cl. Roux,","3390"]
["Lecanora cinereofusca H. Magn.",3383]
["Lecanora circumborealis Brodo & Vitik.",3375]
["Lecanora compallens Herk & Aptroot",8262]
["Lecanora concolor Ramond",3448]
["Lecanora conferta (Duby) Grognot",640]
["Lecanora conizaeoides Nyl. ex Cromb.",643]
["Lecanora diaboli Frey & Poelt",3450]
["Lecanora dispersoareolata (Schaer.) Lamy",3416]
["Lecanora epanora (Ach.) Ach.",647]
["Lecanora epibryon (Ach.) Ach. s. lat.",2927]
["Lecanora epibryon (Ach.) Ach. var. bryopsora Doppelb. & Poel",25098]
["Lecanora epibryon (Ach.) Ach. var. epibryon ",25097]
["Lecanora eurycarpa Poelt, Leuckert & Cl. Roux,",20296]
["Lecanora expallens Ach.",649]
["Lecanora expersa Nyl.",2952]
["Lecanora farinaria Borrer",638]
["Lecanora flageyana Müll. Arg.",21000]
["Lecanora flavoleprosa Tønsberg",1721]
["Lecanora flotoviana Spreng.","20188"]
["Lecanora formosa (Bagl. & Carestia) Knoph & Leuckert",22065]
["Lecanora freyi Poelt",3463]
["Lecanora frustulosa (Dicks.) Ach.",3408]
["Lecanora fuscescens (Sommerf.) Nyl.",3394]
["Lecanora gangaleoides Nyl.",653]
["Lecanora gisleri (Anzi ex Arnold) Arnold",6040]
["Lecanora gisleriana Müll. Arg.",678]
["Lecanora glabrata (Ach.) Malme",3392]
["Lecanora handelii J. Steiner",668]
["Lecanora horiza (Ach.) Linds.",20906]
["Lecanora horiza aggr.","4693"]
["Lecanora hypopta (Ach.) Vain.",3396]
["Lecanora hypoptoides (Nyl.) Nyl.",3397]
["Lecanora impudens Degel.",659]
["Lecanora intricata (Ach.) Ach.",656]
["Lecanora intumescens (Rebent.) Rabenh.",657]
["Lecanora jamesii J. R. Laundon",658]
["Lecanora leptacina Sommerf.",660]
["Lecanora leptacinella Nyl.",3393]
["Lecanora leptyrodes (Nyl.) Degel.",662]
["Lecanora lojkaeana Szatala",213]
["Lecanora magnussoniana Hafellner & Türk","20039"]
["Lecanora marginata (Schaer.) Hertel & Rambold",8096]
["Lecanora mughicola Nyl.",3418]
["Lecanora mugosphagneti Poelt & Vĕzda",25252]
["Lecanora norvegica Tønsberg",1732]
["Lecanora orbicularis (Schaer.) Vain.",21802]
["Lecanora orosthea (Ach.) Ach.",681]
["Lecanora paepalea Ach.",20820]
["Lecanora pallidesulphurea Schaer.",22035]
["Lecanora phaeostigma (Körb.) Almb.",4701]
["Lecanora polytropa (Hoffm.) Rabenh.",667]
["Lecanora populicola (DC.) Duby",3401]
["Lecanora praesistens Nyl.",3387]
["Lecanora pseudistera Nyl.",3380]
["Lecanora pseudosarcopidoides M. Brand & Van den Boom",21906]
["Lecanora pulicaris (Pers.) Ach.",672]
["Lecanora reagens Norman",3355]
["Lecanora rouxii S. Ekman & Tønsberg",3533]
["Lecanora rupicola (L.) Zahlbr. s. lat.","674"]
["Lecanora rupicola (L.) Zahlbr. subsp. rupicola var. efflorens Leuckert & Poelt","25098"]
["Lecanora rupicola (L.) Zahlbr. subsp. rupicola var. glaucescens (Sw.) Poelt & Vězda  comb. Inval.","25099"]
["Lecanora rupicola (L.) Zahlbr. subsp. rupicola var. rupicola ",21264]
["Lecanora rupicola (L.) Zahlbr. subsp. subplanata (Nyl.) Leuckert & Poelt",208]
["Lecanora salicicola H. Magn.",6021]
["Lecanora saligna (Schrad.) Zahlbr.",4704]
["Lecanora sarcopidoides (A. Massal.) A. L. Sm.",3419]
["Lecanora silvae-nigrae V. Wirth",3414]
["Lecanora soralifera (Suza) Räsänen non H. Magn.",679]
["Lecanora sp.3 (ticinense)",2938]
["Lecanora sp.4",2972]
["Lecanora strobilina (Spreng.) Kieff.",682]
["Lecanora strobilina aggr. ","2756"]
["Lecanora subaurea Zahlbr.",683]
["Lecanora subcarnea (Lilj.) Ach.",684]
["Lecanora subcarpinea Szatala",3359]
["Lecanora subintricata (Nyl.) Th. Fr.",3417]
["Lecanora subravida Nyl.",21907]
["Lecanora sulphurea (Hoffm.) Ach.",3421]
["Lecanora swartzii (Ach.) Ach.  subsp. caulescens (J. Steiner) Leuckert & Poelt",25100]
["Lecanora swartzii (Ach.) Ach.  subsp. nylanderi (Räsänen) Leuckert & Poelt","25101"]
["Lecanora swartzii (Ach.) Ach. s. lat.",218]
["Lecanora swartzii (Ach.) Ach. subsp.  swartzii",25104]
["Lecanora symmicta (Ach.) Ach.  var. sorediosa auct. non Westman","25103"]
["Lecanora symmicta (Ach.) Ach. s. lat.",25102]
["Lecanora symmicta (Ach.) Ach. var. symmicta ",8263]
["Lecanora symmicta aggr.",688]
["Lecanora tolypodes Poelt & Vezda",20919]
["Lecanora torquata (Fr.) Nyl.",3431]
["Lecanora umbrosa Degel.",642]
["Lecanora valesiaca (Müll. Arg.) Stizenb.",3462]
["Lecanora varia (Hoffm.) Ach.",690]
["Lecanora variolascens Nyl.",650]
["Lecanora vinetorum Poelt & Huneck",3453]
["Lecidea",5191]
["Lecidea aemulans (Arnold) Britzelm.",3521]
["Lecidea albolivida Lettau",4715]
["Lecidea alpestris Sommerf.",758]
["Lecidea amabilis Müll. Arg.",20940]
["Lecidea andersonii Filson",22066]
["Lecidea areolata Schaer.",20999]
["Lecidea atomaria Th. Fr.",3484]
["Lecidea atrobrunnea (DC.) Schaer. s. lat.",775]
["Lecidea atrobrunnea (DC.) Schaer. subsp.  atrobrunnea","25105"]
["Lecidea atrobrunnea (DC.) Schaer. subsp. porphyrilica Hertel & Leuckert","25106"]
["Lecidea atrobrunnea (DC.) Schaer. subsp. saxosa Hertel & Leuckert","25107"]
["Lecidea atrobrunnea (DC.) Schaer. subsp. stictica Hertel & Leuckert","25108"]
["Lecidea atrobrunnea (DC.) Schaer.var. chamaelepis Hertel ined.","25109"]
["Lecidea atrosanguinea (Hoffm.) Nyl.",20818]
["Lecidea auriculata Th. Fr. s. lat.",704]
["Lecidea auriculata Th. Fr. subsp.  auriculata","25110"]
["Lecidea auriculata Th. Fr. subsp. brachyspora Th. Fr.","25111"]
["Lecidea berengeriana (A. Massal.) Th. Fr.",702]
["Lecidea betulicola (Kullh.) H. Magn.",698]
["Lecidea cervinicola B. de Lesd.",21054]
["Lecidea confluens (Weber) Ach.",3476]
["Lecidea confluentula Müll. Arg.",20895]
["Lecidea decolor Arnold",20814]
["Lecidea diducens Nyl.",715]
["Lecidea dodecamera Müll. Arg.",20945]
["Lecidea ecrustacea (Aniz ex Arnold) Arnold",21548]
["Lecidea enclitica Nyl.",21229]
["Lecidea erythrophaea Flörke ex Sommerf.",720]
["Lecidea exigua Chaub.",694]
["Lecidea fissuriseda Poelt",20916]
["Lecidea fuliginosa Taylor",721]
["Lecidea fuscoatra (L.) Ach.",724]
["Lecidea globulispora Nyl.",695]
["Lecidea grisella Flörke",8264]
["Lecidea haerjedalica H. Magn.",784]
["Lecidea huxariensis (Beckh. ex J. Lahm) Zahlbr.",4931]
["Lecidea ileiformis Fr.",4933]
["Lecidea inturgescens Nyl.",20662]
["Lecidea laboriosa Müll. Arg.","21082"]
["Lecidea labulata (Hepp ex Metzler) Zahlbr.",22041]
["Lecidea lapicida (Ach.) Ach. s. lat.",738]
["Lecidea lapicida (Ach.) Ach. var. lapicida ","25112"]
["Lecidea lapicida (Ach.) Ach. var. pantherina (Hoffm.) Ach.","25113"]
["Lecidea lapicida (Ach.) Ach. var. spilotica (Nyl.) Clauzade & Cl. Roux","25114"]
["Lecidea lenticella (Arnold) Stizenb.",4942]
["Lecidea leprarioides Tønsberg",1735]
["Lecidea leprosolimbata (Arnold) Lettau exPoelt",20469]
["Lecidea leucothallina Arnold s. lat.",3506]
["Lecidea leucothallina Arnold var.  leucothallina ","25115"]
["Lecidea leucothallina Arnold var. discrepans Rambold & Hertel","25116"]
["Lecidea lithophila (Ach.) Ach.",743]
["Lecidea malmeana Zahlbr.",20129]
["Lecidea moritzii B. de Lesd.",20711]
["Lecidea nivosa Müll. Arg.",20900]
["Lecidea nylanderi (Anzi) Th. Fr.",706]
["Lecidea obluridata Nyl.",20435]
["Lecidea paratropoides Müll. Arg.",3508]
["Lecidea personata (Körb.) Jatta",20410]
["Lecidea plana (J. Lahm) Nyl.",764]
["Lecidea plebeja Nyl.",717]
["Lecidea polycarpoides (Müll. Arg.) Müll. Arg.",20901]
["Lecidea polygonia Flot. ex Müll. Arg.",20413]
["Lecidea praenubila Nyl.",776]
["Lecidea privati Müll. Arg.",20412]
["Lecidea promiscens Nyl.","20483"]
["Lecidea promiscua Nyl.",20471]
["Lecidea proxima Anzi",21725]
["Lecidea ramulosa Th. Fr.",20917]
["Lecidea rapax Hertel",21084]
["Lecidea rhododendri (Hepp) Zahlbr.",750]
["Lecidea sarcogynoides Körb.",769]
["Lecidea siderolithica Müll. Arg.",20894]
["Lecidea silacea (Hoffm.) Ach.",772]
["Lecidea speirodes Nyl.",3478]
["Lecidea sphaerella Hedl.",4977]
["Lecidea subcongrua Vain. non Nyl. nom. Illeg.",3500]
["Lecidea subtrullissata Müll. Arg.",20899]
["Lecidea sudetica Körb.",20411]
["Lecidea swartzioidea Nyl.",21302]
["Lecidea tessellata Flörke  var. caesia (Anzi) Arnold",4991]
["Lecidea tessellata Flörke s. lat.",2928]
["Lecidea tessellata Flörke var. tessellata ",781]
["Lecidea turgidula Fr.",787]
["Lecidea umbonata (Hepp) Mudd",789]
["Lecidea variegatula Nyl.",3485]
["Lecidea verruca Poelt",782]
["Lecidea vicinalis Müll. Arg.",20825]
["Lecidella",5192]
["Lecidella albida Hafellner",3511]
["Lecidella anomaloides (A. Massal.) Hertel & H. Kilias",794]
["Lecidella asema (Nyl.) Knoph & Hertel s. lat.",8115]
["Lecidella asema (Nyl.) Knoph & Hertel var. asema ",804]
["Lecidella asema (Nyl.) Knoph & Hertel var. elaeochromoides (Nyl.) Nimis & Tretiach",3517]
["Lecidella carpathica Körb.",2858]
["Lecidella elaeochroma (Ach.) M. Choisy f. elaeochroma ",801]
["Lecidella elaeochroma (Ach.) M. Choisy f. soralifera (Erichsen) D. Hawksw.",798]
["Lecidella elaeochroma (Ach.) M. Choisy s.lat.",1623]
["Lecidella elaeochroma aggr.","25117"]
["Lecidella euphorea (Flörke) Hertel",799]
["Lecidella flavosorediata (Vezda) Hertel & Leuckert",809]
["Lecidella laureri (Hepp) Körb.",807]
["Lecidella leprothalla (Zahlbr.) Knoph & Leuckert",21995]
["Lecidella patavina (A. Massal.) Knoph & Leuckert",3520]
["Lecidella pulveracea (Schaer.) P. Syd.",797]
["Lecidella scabra (Taylor) Hertel & Leuckert",802]
["Lecidella stigmatea (Ach.) Hertel & Leuckert",803]
["Lecidella subviridis Tønsberg",1743]
["Lecidella viridans (Flot.) Körb.",3516]
["Lecidella wulfenii (Hepp) Körb.",3513]
["Lecidella xylophila (Th. Fr.) Knoph & Leuckert",746]
["Lecidoma",22215]
["Lecidoma demissum (Rutstr.) Gotth. Schneid. & Hertel",806]
["Leimonis ","25118"]
["Leimonis erratica (Körb.) R.C. Harris & Lendemer",719]
["Lemmopsis",22216]
["Lemmopsis arnoldiana (Hepp) Zahlbr.",3522]
["Lempholemma",22217]
["Lempholemma botryosum (A. Massal.) Zahlbr.",810]
["Lempholemma chalazanum (Ach.) B. de Lesd.",3527]
["Lempholemma elveloideum (Ach.) Zahlbr.",812]
["Lempholemma intricatum (Arnold) Zahlbr.",3531]
["Lempholemma isidiodes (Nyl. ex Arnold) H. Magn.",3532]
["Lempholemma polyanthes (Bernh.) Malme",817]
["Lepra ","25119"]
["Lepra albescens (Huds.) Hafellner  var. corallina sensu auct.\n",1057]
["Lepra albescens (Huds.) Hafellner s. lat.",1624]
["Lepra albescens (Huds.) Hafellner var. albescens ",1056]
["Lepra amara (Ach.) Hafellner",1058]
["Lepra aspergilla (Ach.) Hafellner","1070"]
["Lepra borealis (Erichsen) I. Schmitt, Hodkinson & Lumbsch",1785]
["Lepra corallina (L.) Zahlbr.",1066]
["Lepra dactylina (Ach.) Hafellner",1069]
["Lepra melanochlora (DC.) Hafellner",1086]
["Lepra multipuncta (Turner) Hafellner",1083]
["Lepra ophthalmiza (Nyl.) Hafellner",1085]
["Lepra schaereri (Hafellner) Hafellner",3729]
["Lepra trachythallina (Erichsen) Lendemer & R.C. Harris",1059]
["Lepraria",5199]
["Lepraria alpina\n (B. de Lesd.) Tretiach & Baruffo",2]
["Lepraria atlantica Orange",21964]
["Lepraria caesioalba (B. de Lesd.) J. R. Laundon",823]
["Lepraria diffusa (J. R. Laundon) Kukwa",1758]
["Lepraria eburnea J. R. Laundon",835]
["Lepraria elobata Tønsberg",4725]
["Lepraria finkii (B. de Lesd.) R.C. Harris",818]
["Lepraria incana (L.) Ach.",820]
["Lepraria jackii Tønsberg",1755]
["Lepraria membranacea (Dicks.) Vain.",821]
["Lepraria neglecta (Nyl.) Erichsen",822]
["Lepraria nivalis J. R. Laundon",8117]
["Lepraria obtusatica Tønsberg",1756]
["Lepraria rigidula (B. de Lesd.) Tønsberg",813]
["Lepraria vouauxii (Hue) R. C. Harris",815]
["Leprocaulon",22218]
["Leprocaulon quisquiliare (Leers) M. Choisy",824]
["Leproloma",5202]
["Leptochidium",22219]
["Leptochidium albociliatum (Desm.) M. Choisy",3537]
["Leptochidium crenatulum (Nyl.) M. Choisy",22367]
["Leptogium",5205]
["Leptogium burnetiae C. W. Dodge",3540]
["Leptogium cyanescens (Ach.) Körb.",834]
["Leptogium hildenbrandii (Garov.) Nyl.",837]
["Leptogium saturninum (Dicks.) Nyl.",844]
["Letharia",22220]
["Letharia vulpina (L.) Hue",3558]
["Leucocarpia",5212]
["Lichenoconium",5214]
["Lichenomphalia",22221]
["Lichenomphalia alpina (Britzelm.) Redhead, Lutzoni, Moncalvo & Vilgalys",935]
["Lichenomphalia hudsoniana (H.S. Jenn.) Redhead, Lutzoni, Moncalvo & Vilgalys","934"]
["Lichenomphalia umbellifera (L.) Redhead, Lutzoni, Moncalvo & Vilgalys",931]
["Lichenomphalia velutina (Quél.) Redhead, Lutzoni, Moncalvo & Vilgalys",932]
["Lichinella",22223]
["Lichinella heppii (Müll. Arg.) P. Clerc & Cl. Roux","20058 "]
["Lichinella schleicheri (Hepp) ined.",20891]
["Lichinella stipatula Nyl.",850]
["Lithographa","25120"]
["Lithographa tesserata (DC.) Nyl.",2929]
["Lithothelium hyalosporum (Nyl.) Aptroot",2948]
["Lobaria",5223]
["Lobaria linita (Ach.) Rabenh.",3563]
["Lobaria pulmonaria (L.) Hoffm.",857]
["Lobarina scrobiculata (Scop.) Nyl. ex Cromb.",858]
["Lobothallia",22225]
["Lobothallia alphoplaca (Wahlenb.) Hafellner",20966]
["Lobothallia farinosa (Flörke) A. Nordin, Savić & Tibell",1898]
["Lobothallia melanaspis (Ach.) Hafellner",1894]
["Lobothallia praeradiosa (Nyl.) Hafellner",20475]
["Lobothallia radiosa (Hoffm.) Hafellner",8252]
["Lobothallia recedens (Taylor) A. Nordin, Savić & Tibell",1895]
["Lopadium",22226]
["Lopadium disciforme (Flot.) Kullh.",3565]
["Lopadium pezizoideum (Ach.) Körb.",859]
["Loxospora",22227]
["Loxospora cismonica (Beltr.) Hafellner",3302]
["Loxospora cristinae Guzow-Krzemińska, Łubek, Kubiak & Kukwa",25253]
["Loxospora elatina (Ach.) A. Massal.",551]
["Macentina",22228]
["Maronea",22229]
["Maronea constans (Nyl.) Hepp",3567]
["Massalongia",22230]
["Massalongia carnosa (Dicks.) Körb.",861]
["Megalaria",22231]
["Megalaria grossa (Pers. ex Nyl.) Hafellner",323]
["Megalaria laureri (Hepp ex Th. Fr.) Hafellner",324]
["Megalaria pulverea (Borrer) Hafellner & E. Schreiner",318]
["Megalospora",22232]
["Megalospora pachycarpa (Delise ex Duby) H. Olivier",2832]
["Melanelia",22233]
["Melanelia agnata (Nyl.) A. Thell",20185]
["Melanelia hepatizon (Ach.) A. Thell",332]
["Melanelia stygia (L.) Essl.",1019]
["Melanelixia","22234"]
["Melanelixia fuliginosa (Fr. ex Duby) O. Blanco, A. Crespo, Divakar, Essl., D. Hawksw. & Lumbsch","998"]
["Melanelixia glabra (Schaer.) O. Blanco, A. Crespo, Divakar, Essl., D. Hawksw. & Lumbsch",3695]
["Melanelixia glabratula (Lamy) Sandler & Arup",983]
["Melanelixia glabratula aggr.",25121]
["Melanelixia subargentifera (Nyl.) O. Blanco, A. Crespo, Divakar, Essl., D. Hawksw. & Lumbsch",3697]
["Melanelixia subaurifera (Nyl.) O. Blanco, A. Crespo, Divakar, Essl., D. Hawksw. & Lumbsch",1020]
["Melanohalea",22099]
["Melanohalea elegantula (Zahlbr.) O. Blanco, A. Crespo, Divakar, Essl., D. Hawksw. & Lumbsch",993]
["Melanohalea exasperata (De Not.) O. Blanco, A. Crespo, Divakar, Essl., D. Hawksw. & Lumbsch,",995]
["Melanohalea exasperatula (Nyl.) O. Blanco, A. Crespo, Divakar, Essl., D. Hawksw. & Lumbsch",996]
["Melanohalea infumata sensu auct. medioeur. non (Nyl.) O. Blanco, A. Crespo, Divakar, Essl., D. Hawksw. & Lumbsch","21805"]
["Melanohalea laciniatula (Flagey ex H. Olivier) O. Blanco, A. Crespo, Divakar, Essl., D. Hawksw. & Lumbsch",1001]
["Melanohalea olivacea (L.) O. Blanco, A. Crespo, Divakar, Essl., D. Hawksw. & Lumbsch","3688"]
["Melanohalea septentrionalis (Lynge) O. Blanco, A. Crespo, Divakar, Essl., D. Hawksw. & Lumbsch",1016]
["Melanolecia",22236]
["Melanolecia transitoria (Arnold) Hertel",3572]
["Melaspilea",22237]
["Melaspilea enteroleuca (Ach.) Ertz & Diederich",25254]
["Melaspilea rhododendri (Arnold & Rehm) Almq.",2410]
["Melaspilea urceolata (Fr.) Almb.",3583]
["Menegazzia",22238]
["Menegazzia subsimilis (H. Magn.) R. Sant.",21913]
["Menegazzia terebrata (Hoffm.) A. Massal.",869]
["Metamelanea",22240]
["Metamelanea umbonata Henssen",20793]
["Micarea",5240]
["Micarea adnata Coppins",870]
["Micarea anterior (Nyl.) Hedl.",3599]
["Micarea assimilata (Nyl.) Coppins",4471]
["Micarea botryoides (Nyl.) Coppins",874]
["Micarea byssacea (Th.Fr.) Czarnota, Guzow-Krzeminska & Coppins","25124"]
["Micarea cinerea (Schaer.) Hedl. f. cinerea ","25122"]
["Micarea cinerea (Schaer.) Hedl. f. tenuispora (D. Hawksw. & Poelt) Fryday","25123"]
["Micarea cinerea (Schaer.) Hedl. s.lat.",875]
["Micarea contexta Hedl.",899]
["Micarea coppinsii Tønsberg",1776]
["Micarea czarnotae Launis, van den Boom, Sérusiaux & Myllys",25255]
["Micarea denigrata (Fr.) Hedl.",877]
["Micarea elachista (Körb.) Coppins & R. Sant.",3598]
["Micarea eximia Hedl.",3597]
["Micarea globulosella (Nyl.) Coppins",892]
["Micarea hedlundii Coppins",3595]
["Micarea hylocomii Poelt & Döbbeler",3591]
["Micarea incrassata Hedl.",3586]
["Micarea laeta Launis & Myllys",25256]
["Micarea leprosula (Th. Fr.) Coppins & A. Fletcher",879]
["Micarea lignaria (Ach.) Hedl.",1777]
["Micarea lithinella (Nyl.) Hedl.",890]
["Micarea melaena (Nyl.) Hedl.",883]
["Micarea melaeniza Hedl.",3588]
["Micarea melanobola (Nyl.) Coppins",20041]
["Micarea microareolata Launis, Pykälä & Myllys",25257]
["Micarea micrococca (Körb.) Gams ex Coppins",8282]
["Micarea misella (Nyl.) Hedl.",884]
["Micarea myriocarpa V. Wirth & Vezde ex Coppins",3587]
["Micarea nigella Coppins",3584]
["Micarea nitschkeana (J. Lahm ex Rabenh.) Harm.",885]
["Micarea peliocarpa (Anzi) Coppins & R. Sant.",886]
["Micarea prasina aggr.","22096"]
["Micarea prasina Fr.",887]
["Micarea pseudomicrococca Launis & Myllys",25258]
["Micarea rhabdogena (Norman) Hedl.",3596]
["Micarea stipitata Coppins & P. James",889]
["Micarea subviridescens (Nyl.) Hedl.","25125"]
["Micarea ternaria (Nyl.) Vezda",21961]
["Micarea turfosa (A. Massal.) Du Rietz",897]
["Micarea viridileprosa Coppins & Van den Boom",8267]
["Micarea xanthonica Coppins & Tønsberg",8265]
["Miriquidica",22243]
["Miriquidica aeneovirens (Müll. Arg.) Hafellner",20824]
["Miriquidica complanata (Körb.) Hertel & Rambold",22043]
["Miriquidica garovaglii (Schaer.) Hertel & Rambold",3486]
["Miriquidica instrata (Nyl.) Hertel & Rambold",20063]
["Miriquidica intrudens (H. Magn.) Hertel & Rambold",3356]
["Miriquidica leucophaea (Rabenh.) Hertel & Rambold",739]
["Miriquidica lulensis (Hellb.) Hertel & Rambold","22067"]
["Miriquidica nigroleprosa (Vain.) Hertel & Rambold s. lat.",767]
["Miriquidica nigroleprosa (Vain.) Hertel & Rambold var. liljenstroemii (Du Rietz) Owe – Larss. & Rambold","25126"]
["Miriquidica nigroleprosa (Vain.) Hertel & Rambold var. nigroleprosa ","25127"]
["Miriquidica obnubila (Th. Fr. & Hellb.) Hertel & Rambold",20414]
["Miriquidica plumbea (Garov.) Hafellner, Obermayer & Tretiach",21391]
["Miriquidica pulvinatula (Arnold) Hertel & Rambold","20885"]
["Miriquidica subplumbea (Anzi) Cl. Roux","21881"]
["Moelleropsis",22244]
["Monerolechia","25128"]
["Monerolechia badia (Fr.) Kalb,",2134]
["Montanelia","25129"]
["Montanelia disjuncta (Erichsen) Divakar, A. Crespo, Wedin & Essl.",21712]
["Montanelia panniformis (Nyl.) Divakar, A. Crespo, Wedin & Essl.,",21363]
["Montanelia sorediata (Ach.) Divakar, A. Crespo, Wedin & Essl.,"," 21495"]
["Montanelia tominii (Oxner) Divakar, A. Crespo, Wedin & Essl.","20534"]
["Multiclavula",22245]
["Multiclavula mucida (Pers.) R. H. Petersen",4736]
["Mycobilimbia",5254]
["Mycobilimbia carneoalbida (Müll. Arg.) S. Ekman & Printzen",1915]
["Mycobilimbia epixanthoides (Nyl.) Vitik., Ahti, Kuusinen, Lommi & T. Ulvinen ex Hafellner & Türk",146]
["Mycobilimbia pilularis (Körb.) Hafellner & Türk",320]
["Mycobilimbia tetramera (De Not.) Vitik., Ahti, Kuusinen, Lommi & T. Ulvinen ex  Hafellner & Türk",6052]
["Mycoblastus",5255]
["Mycoblastus affinis (Schaer.) T. Schauer",25271]
["Mycoblastus caesius (Coppins & P. James) Tønsberg",550]
["Mycoblastus sanguinarius (L.) Norman",909]
["Myochroidea",22250]
["Myochroidea leprosula (Arnold) Printzen, T. Sprib. & Tønsberg",20217]
["Myochroidea porphyrospoda (Anzi) Printzen, T. Sprib. & Tønsberg",744]
["Myochroidea rufofusca (Anzi) Printzen, T. Sprib. & Tonsberg",6030]
["Myriolecis agardhiana (Ach.) Śliwa, Zhao Xin & Lumbsch s. lat.",2926]
["Myriolecis agardhiana (Ach.) Śliwa, Zhao Xin & Lumbsch subsp.  agardhiana",25130]
["Myriolecis agardhiana (Ach.) Śliwa, Zhao Xin & Lumbsch subsp. sapaudica (Cl. Roux) Nimis & Cl. Roux  Nimis & Cl. Roux var. lecidella (Poelt) ined.","25131"]
["Myriolecis agardhiana (Ach.) Śliwa, Zhao Xin & Lumbsch subsp. sapaudica Clauzade & Cl. Roux var. sapaudica ","3404"]
["Myriolecis albescens (Hoffm.) Śliwa, Zhao Xin & Lumbsch",627]
["Myriolecis crenulata (Ach.) Śliwa, Zhao Xin & Lumbsch",644]
["Myriolecis dispersa (Pers.) Śliwa, Zhao Xin & Lumbsch",646]
["Myriolecis hagenii (Ach.) Śliwa, Zhao Xin & Lumbsch",651]
["Myriolecis perpruinosa Fröberg ex Śliwa, Zhao Xin & Lumbsch",20295]
["Myriolecis persimilis (Th. Fr.) Śliwa, Zhao Xin & Lumbsch",664]
["Myriolecis pruinosa (Chaub.) Śliwa, Zhao Xin & Lumbsch",3442]
["Myriolecis reuteri (Schaer.) Śliwa, Zhao Xin & Lumbsch",3441]
["Myriolecis sambuci (Pers.) Clem",677]
["Myriolecis semipallida (H. Magn.) Śliwa, Zhao Xin & Lumbsch",3358]
["Myriospora",22251]
["Myriospora rufescens (Turner ex Ach.) Hepp ex Uloth","22089"]
["Myriospora smaragdula (Wahlenb. ex Ach.) Nägeli ex Uloth",25]
["Naetrocymbe ","22252"]
["Naetrocymbe saxicola (A. Massal.) R.C. Harris",90]
["Nectria",5261]
["Neocatapyrenium",22253]
["Neocatapyrenium radicescens (Nyl.) Breuss",8244]
["Nephroma",22254]
["Nephroma bellum (Spreng.) Tuck.",3622]
["Nephroma expallidum (Nyl.) Nyl.",3619]
["Nephroma helveticum Ach.",3621]
["Nephroma laevigatum Ach.",917]
["Nephroma parile (Ach.) Ach.",918]
["Nephroma resupinatum (L.) Ach.",3620]
["Nephromopsis",22255]
["Nephromopsis laureri (Kremp.) Kurok.",3143]
["Normandina",5271]
["Normandina acroglypta (Norman) Aptroot",6011]
["Normandina pulchella (Borrer) Nyl.",920]
["Ochrolechia",5275]
["Ochrolechia alboflavescens (Wulfen) Zahlbr.",3641]
["Ochrolechia androgyna (Hoffm.) Arnold",921]
["Ochrolechia androgyna aggr.","25135"]
["Ochrolechia arborea (Kreyer) Almb.",3635]
["Ochrolechia bahusiensis H. Magn.","25134"]
["Ochrolechia crozalsiana Clauzade & Vezda"," 21504"]
["Ochrolechia gowardii Brodo","25132"]
["Ochrolechia inaequatula auct. non (Nyl.) Zahlbr.","25262"]
["Ochrolechia mahluensis Räsänen","25133"]
["Ochrolechia microstictoides Räsänen","923"]
["Ochrolechia pallescens (L.) A. Massal.",925]
["Ochrolechia parella (L.) A. Massal.",926]
["Ochrolechia subviridis (Høeg) Erichsen",927]
["Ochrolechia szatalaensis Verseghy",3638]
["Ochrolechia tartarea (L.) A. Massal.",928]
["Ochrolechia turneri (Sm.) Hasselrot",929]
["Ochrolechia upsaliensis (L.) A. Massal.",3637]
["Opegrapha",5277]
["Opegrapha demutata Nyl.",3649]
["Opegrapha dolomitica (Arnold) Clauzade & Cl. Roux ex Torrente & Egea s. lat.",3652]
["Opegrapha dolomitica (Arnold) Clauzade & Cl. Roux ex Torrente & Egea subsp.  dolomitica",25136]
["Opegrapha dolomitica (Arnold) Clauzade & Cl. Roux ex Torrente & Egea subsp. omninocalcicola Cl. Roux",25137]
["Opegrapha lithyrga Ach.",951]
["Opegrapha niveoatra (Borrer) J. R. Laundon",8268]
["Opegrapha subelevata (Nyl.) Nyl.",3648]
["Opegrapha subparallela Müll. Arg.",939]
["Opegrapha vermicellifera (Kunze) J. R. Laundon",965]
["Opegrapha vulgata (Ach.) Ach.",2773]
["Opegrapha vulgata aggr.",25138]
["Ophioparma",22256]
["Ophioparma ventosa (L.) Norman",556]
["Orphniospora","22257"]
["Orphniospora moriopsis (A. Massal.) D. Hawksw.",969]
["Orphniospora mosigii (Körb.) Hertel & Rambold"," 21688"]
["Pachnolepia pruinata (Torss.) Frisch & G. Thor",63]
["Pachyphiale",22258]
["Pannaria",22259]
["Pannaria conoplea (Ach.) Bory",974]
["Pannaria hookeri (Borrer & Sm.) Nyl.",975]
["Pannaria rubiginosa (Ach.) Bory",980]
["Parabagliettoa","25139"]
["Parabagliettoa cyanea (A. Massal.) Gueidan & Cl. Roux",4364]
["Parabagliettoa disjuncta (Arnold) Krzew., ",1497]
["Parabagliettoa dufourii (DC.) Gueidan & Cl. Roux,",4403]
["Paralecanographa grumulosa (Dufour) Ertz & Tehler","597"]
["Parmelia",5286]
["Parmelia ernstiae Feuerer & A. Thell",21973]
["Parmelia omphalodes (L.) Ach.  subsp. pinnatifida (Kurok.) Skult","25140"]
["Parmelia omphalodes (L.) Ach. s. lat.",1006]
["Parmelia omphalodes (L.) Ach. subsp. omphalodes ","25141"]
["Parmelia saxatilis (L.) Ach.","25142"]
["Parmelia saxatilis aggr.",1015]
["Parmelia serrana A. Crespo, M.C. Molina & D. Hawksw.","25143"]
["Parmelia squarrosa Hale",2799]
["Parmelia submontana Hale",3674]
["Parmelia sulcata Taylor",1022]
["Parmeliella",22260]
["Parmeliella testacea P. M. Jørg.",1031]
["Parmeliella triptophylla (Ach.) Müll. Arg.",1032]
["Parmelina","22261"]
["Parmelina atricha (Nyl.) P. Clerc",21963]
["Parmelina carporrhizans (Taylor) Poelt & Vezda",5000]
["Parmelina pastillifera (Harm.) Hale",1007]
["Parmelina quercina (Willd.) Hale ",1010]
["Parmelina tiliacea (Hoffm.) Hale",1024]
["Parmeliopsis",5288]
["Parmeliopsis ambigua (Wulfen) Nyl.",1034]
["Parmeliopsis hyperopta (Ach.) Arnold",1035]
["Parmotrema",22262]
["Parmotrema arnoldii (Du Rietz) Hale",984]
["Parmotrema crinitum (Ach.) M. Choisy",989]
["Parmotrema perlatum (Huds.) M. Choisy",1008]
["Parmotrema reticulatum (Taylor) M. Choisy",1012]
["Parmotrema robustum (Degel.) Hale",3671]
["Parmotrema stuppeum (Taylor) Hale",3670]
["Paulia",22263]
["Paulia salevensis (Müll. Arg.) M. Schultz","20057"]
["Peccania",22264]
["Peccania coralloides (A. Massal.) A. Massal.",3701]
["Pectenia plumbea (Lightf.) P.M. Jørg., L. Lindblom, Wedin & S. Ekman",1029]
["Peltigera",5291]
["Peltigera aphthosa (L.) Willd.",1038]
["Peltigera canina (L.) Willd.",1039]
["Peltigera collina (Ach.) Schrad.",1040]
["Peltigera degenii Gyeln.",1041]
["Peltigera didactyla (With.) J. R. Laundon",1053]
["Peltigera elisabethae Gyeln.",3704]
["Peltigera extenuata (Nyl. Ex Vain.) Lojka",22078]
["Peltigera horizontalis (Huds.) Baumg.",1042]
["Peltigera hymenina (Ach.) Duby",1043]
["Peltigera kristinssonii Vitik.",6019]
["Peltigera lepidophora (Vain.) Bitter",1044]
["Peltigera leucophlebia (Nyl.) Gyeln.",1045]
["Peltigera malacea (Ach.) Funck",1046]
["Peltigera membranacea (Ach.) Nyl.",1047]
["Peltigera monticola Vitik.",6018]
["Peltigera neckeri Müll. Arg.",1048]
["Peltigera neopolydactyla (Gyeln.) Gyeln.",3705]
["Peltigera polydactylon (Neck.) Hoffm.",1049]
["Peltigera ponojensis Gyeln.",3706]
["Peltigera praetextata (Flörke ex Sommerf.) Zopf",1050]
["Peltigera rufescens (Weiss) Humb.",1051]
["Peltigera scabrosa Th. Fr.",1052]
["Peltigera venosa (L.) Hoffm.",1054]
["Peltula",22265]
["Peltula euploca (Ach.) Poelt",3709]
["Peltula farinosa Büdel","25144"]
["Peltula patellata (Bagl.) Swinscow & Krog",20445]
["Pertusaria",5293]
["Pertusaria alpina Hepp ex Ahles",1784]
["Pertusaria amarescens Nyl.",8155]
["Pertusaria bryontha (Ach.) Nyl.",1090]
["Pertusaria chiodectonoides Bagl.",3715]
["Pertusaria coccodes (Ach.) Nyl.",1064]
["Pertusaria constricta Erichsen",3733]
["Pertusaria coronata (Ach.) Th. Fr.",1068]
["Pertusaria flavicans Lamy",1072]
["Pertusaria flavida (DC.) J. R. Laundon",1073]
["Pertusaria geminipara (Th. Fr.) C. Knight ex Brodo",1786]
["Pertusaria glomerata (Ach.) Schaer.",1063]
["Pertusaria hymenea (Ach.) Schaer.",1076]
["Pertusaria jurana Erichsen",20379]
["Pertusaria lactescens Mudd",20773]
["Pertusaria leioplaca DC.",1079]
["Pertusaria oculata (Dicks.) Th. Fr.",1084]
["Pertusaria pertusa (L.) Tuck. s. lat.","25145"]
["Pertusaria pertusa (L.) Tuck. var. pertusa ",1087]
["Pertusaria pertusa (L.) Tuck. var. rupestris (DC.) Dalla Torre & Sarnth.",22368]
["Pertusaria pseudocorallina (Lilj.) Arnold",1089]
["Pertusaria pulvereosulphurata Harm.",22000]
["Pertusaria pupillaris (Nyl.) Th. Fr.",1091]
["Pertusaria pustulata (Ach.) Duby",1093]
["Pertusaria rupicola (Fr.) Harm.",20373]
["Pertusaria sommerfeltii (Sommerf.) Fr.",3717]
["Pertusaria stenhammarii Hellb.",3741]
["Pertusaria trochiscea Norman",3722]
["Petractis",22266]
["Petractis clausa (Hoffm.) Kremp.",1098]
["Phaeophyscia",5298]
["Phaeophyscia cernohorskyi (Nadv.) Essl."," 21558"]
["Phaeophyscia ciliata (Hoffm.) Moberg",3768]
["Phaeophyscia constipata (Norrl. & Nyl.) Moberg",3767]
["Phaeophyscia endococcina (Körb.) Moberg",2825]
["Phaeophyscia endophoenicea (Harm.) Moberg",1105]
["Phaeophyscia hirsuta (Mereschk.) Essl.",3771]
["Phaeophyscia hispidula (Ach.) Essl.",3773]
["Phaeophyscia insignis (Mereschk.) Moberg",3774]
["Phaeophyscia kairamoi (Vain.) Moberg",3770]
["Phaeophyscia nigricans (Flörke) Moberg",1106]
["Phaeophyscia orbicularis (Neck.) Moberg",1107]
["Phaeophyscia poeltii (Frey) Nimis",3769]
["Phaeophyscia pusilloides (Zahlbr.) Essl.",8269]
["Phaeophyscia sciastra (Ach.) Moberg",1108]
["Phaeorrhiza",22268]
["Phaeorrhiza nimbosa (Fr.) H. Mayrhofer & Poelt",4015]
["Phaeorrhiza sareptana (Tomin) H. Mayrhofer & Poelt",4016]
["Phlyctis",22269]
["Phlyctis agelaea (Ach.) Flot.",1109]
["Phlyctis argena (Spreng.) Flot.",1110]
["Physcia",5309]
["Physcia adscendens (Fr.) H. Olivier",1112]
["Physcia aipolia (Humb.) Fürnr.",1787]
["Physcia aipolioides (Nadv.) Breuss & Türk",21974]
["Physcia albinea (Ach.) Nyl.",21824]
["Physcia caesia (Hoffm.) Fürnr.  var. caesia ",25146]
["Physcia caesia (Hoffm.) Fürnr. s. lat.","1788"]
["Physcia caesia (Hoffm.) Fürnr. var. caesiella (B. de Lesd.) Clauzade & Cl. Roux",25147]
["Physcia caesia (Hoffm.) Fürnr. var. rhaetica Frey","25148"]
["Physcia clementei (Turner) Maas Geest.",1115]
["Physcia dimidiata (Arnold) Nyl. s. lat.",3764]
["Physcia dimidiata (Arnold) Nyl. var. dimidiata ","25149"]
["Physcia dimidiata (Arnold) Nyl. var. ornata (Nádv.) Moberg","25150"]
["Physcia dubia (Hoffm.) Lettau",1116]
["Physcia leptalea (Ach.) DC.",1118]
["Physcia magnussonii Frey",3759]
["Physcia phaea (Tuck.) J. W. Thomson",3756]
["Physcia stellaris (L.) Nyl.",1119]
["Physcia tenella (Scop.) DC.","1631"]
["Physcia tribacia (Ach.) Nyl.",1122]
["Physcia vitii Nadv.",3765]
["Physciella chloantha (Ach.) Essl.",3772]
["Physconia",5310]
["Physconia detersa (Nyl.) Poelt",3782]
["Physconia distorta (With.) J. R. Laundon",1130]
["Physconia enteroxantha (Nyl.) Poelt",1126]
["Physconia grisea (Lam.) Poelt s. lat.",1127]
["Physconia grisea (Lam.) Poelt subsp.  grisea","25151"]
["Physconia grisea (Lam.) Poelt subsp. lilacina (Arnold) Poelt","25152"]
["Physconia muscigena (Ach.) Poelt s. lat.",3776]
["Physconia muscigena (Ach.) Poelt var. bayeri (Nádv.) Poelt","25153"]
["Physconia muscigena (Ach.) Poelt var. muscigena ","25154"]
["Physconia perisidiosa (Erichsen) Moberg",1129]
["Physconia petraea (Poelt) Vezda & Poelt",20510]
["Physconia venusta (Ach.) Poelt",20835]
["Piccolia",22270]
["Piccolia ochrophora (Nyl.) Hafellner",1373]
["Pilophorus cereolus (Ach.) Th. Fr.",3785]
["Placidiopsis",22271]
["Placidiopsis custnani (A. Massal.) Körb.",1132]
["Placidiopsis oreades Breuss",6054]
["Placidiopsis pseudocinerea Breuss",7004]
["Placidiopsis tiroliensis Breuss","25155"]
["Placidium",22272]
["Placidium adami-borosi Szatala","25156"]
["Placidium imbecillum (Breuss) Breuss",21097]
["Placidium lachneum (Ach.) B. de Lesd. s. lat.",301]
["Placidium lachneum (Ach.) B. de Lesd. var. lachneum ","25157"]
["Placidium lachneum (Ach.) B. de Lesd. var. oleosum (Breuss) Breuss","25158"]
["Placidium michelii A. Massal.",3122]
["Placidium norvegicum (Breuss) Breuss",8065]
["Placidium pilosellum (Breuss) Breuss",3118]
["Placidium rufescens (Ach.) A. Massal.",3123]
["Placidium squamulosum (Ach.) Breuss",3119]
["Placidium velebiticum (Zahlbr. ex Zschacke) Breuss",20757]
["Placocarpus",22273]
["Placocarpus schaereri (Fr.) Breuss",4385]
["Placolecis",22274]
["Placolecis opaca (Dufour) Hafellner",3796]
["Placopyrenium",22275]
["Placopyrenium fuscellum (Turner) Gueidan & Cl. Roux",4851]
["Placopyrenium tatrense (Vezda) Breuss",3786]
["Placynthiella",2215]
["Placynthiella dasaea (Stirt.) Tønsberg",1791]
["Placynthiella icmalea (Ach.) Coppins & P. James",732]
["Placynthiella oligotropha (J. R. Laundon) Coppins & P. James",756]
["Placynthiella uliginosa (Schrad.) Coppins & P. James",788]
["Placynthium",22276]
["Placynthium asperellum (Ach.) Trevis.",3802]
["Placynthium caesium (Ach.) Vain.",22071]
["Placynthium dolichoterum (Nyl.) Trevis.",1141]
["Placynthium filiforme (Garov.) M. Choisy",1144]
["Placynthium garovaglii (A. Massal.) Malme","1137"]
["Placynthium hungaricum Gyeln.",20118]
["Placynthium lismorense (Cromb.) Vain.",3801]
["Placynthium nigrum (Huds.) Gray",1139]
["Placynthium pannariellum (Nyl.) H. Magn","1140"]
["Placynthium subradiatum (Nyl.) Arnold",1142]
["Placynthium tantaleum (Hepp) Hue",1143]
["Platismatia",22277]
["Platismatia glauca (L.) W. L. Culb. & C. F. Culb.",1145]
["Pleopsidium",22278]
["Pleopsidium chlorophanum (Wahlenb.) Zopf",19]
["Pleopsidium oxytonum (Ach.) Rabenh.",18]
["Pleurosticta",22279]
["Pleurosticta acetabulum (Neck.) Elix & Lumbsch",982]
["Poeltinula",22280]
["Poeltinula cacuminum Cl. Roux","20829"]
["Poeltinula cerebrina (DC.) Hafellner s. lat.",2930]
["Poeltinula cerebrina (DC.) Hafellner subsp. cerebrina ","25159"]
["Poeltinula cerebrina (DC.) Hafellner subsp. parvocalcicola Cl. Roux","25160"]
["Polyblastia",22281]
["Polyblastia abstrahenda  Arnold","25161"]
["Polyblastia albida Arnold","1148"]
["Polyblastia ardesiaca (Bagl. & Carestia) Zschacke",20611]
["Polyblastia cinerea (A. Massal.) Jatta",20612]
["Polyblastia cupularis A. Massal. s. lat.",1151]
["Polyblastia cupularis A. Massal. var. crepaturae (Zschacke) Zschacke","25162"]
["Polyblastia cupularis A. Massal. var. cupularis ","25163"]
["Polyblastia deplanata Arnold",20616]
["Polyblastia dermatodes A. Massal.",1153]
["Polyblastia epigaea A. Massal.",3807]
["Polyblastia evanescens Arnold",3813]
["Polyblastia forana (Anzi) Arnold",3836]
["Polyblastia fuscoargillacea Anzi",3827]
["Polyblastia gneissiaca Müll. Arg.",20618]
["Polyblastia helvetica Th. Fr.",1159]
["Polyblastia philaea Zschacke",3817]
["Polyblastia plicata (A. Massal.) Lönnr.",4757]
["Polyblastia sendtneri Kremp.",3809]
["Polyblastia sepulta A. Massal.","3838"]
["Polyblastia verrucosa (Ach.) Lönnr.",3842]
["Polyblastia viridescens Zschacke",3835]
["Polyblastidium","25164"]
["Polyblastidium subneglectum (Elix) Kalb","25165"]
["Polycauliona","25166"]
["Polycauliona candelaria (L.) Frödén, Arup & Søchting,",1527]
["Polycauliona phlogina (Ach.) Arup, Frödén & Søchting",22050]
["Polycauliona polycarpa (Hoffm.) Frödén, Arup & Søchting",1531]
["Polycauliona ucrainica (S.Y. Kondr.) Frödén, Arup & Søchting",8291]
["Polychidium",22282]
["Polychidium muscicola (Sw.) Gray",1166]
["Polysporina",22284]
["Polysporina cyclocarpa (Anzi) Vezda",4103]
["Polysporina simplex (Taylor) Vezda",1167]
["Polysporina subfuscescens (Nyl.) K. Knudsen & Kocourk.",21528]
["Polysporina urceolata (Anzi) Brodo",4102]
["Porina",5336]
["Porina glaucocinerea (Nyl.) Vain.",3853]
["Porina lectissima (Fr.) Zahlbr.",1180]
["Porina leptalea (Durieu & Mont.) A. L. Sm.",1181]
["Porina tigurina (Stizenb.) Lettau",21671]
["Porocyphus",22285]
["Porocyphus coccodes Flot. ex Körb.",1184]
["Porocyphus rehmicus (A. Massal.) Zahlbr.",3873]
["Porpidia",5338]
["Porpidia albocaerulescens (Wulfen) Hertel & Knoph","561"]
["Porpidia cinereoatra (Ach.) Hertel & Knoph","562"]
["Porpidia contraponenda (Arnold) Hertel & Knoph",4769]
["Porpidia crustulata (Ach.) Hertel & Knoph",564]
["Porpidia flavicunda (Ach.) Gowan"," 565"]
["Porpidia macrocarpa (DC.) Hertel & A. J. Schwab",568]
["Porpidia ochrolemma (Vain.) Brodo & R. Sant.","4770"]
["Porpidia rugosa (Taylor) Coppins & Fryday",566]
["Porpidia soredizodes (Lamy ex Nyl.) J. R. Laundon",3878]
["Porpidia speirea (Ach.) Kremp. s. lat.",774]
["Porpidia speirea (Ach.) Kremp. var. alpina (Hepp ex Arnold) Clauzade & Cl. Roux ex Hafellner & Türk","3883"]
["Porpidia speirea (Ach.) Kremp. var. prochsthallina (A. Massal.) Clauzade & Cl. Roux ex Hafellner & Türk","3884"]
["Porpidia speirea (Ach.) Kremp. var. speirea ","25167"]
["Porpidia superba (Körb.) Hertel & Knoph",3881]
["Porpidia trullisata (Kremp.) Körb.",20327]
["Porpidia tuberculosa (Sm.) Hertel & Knoph","572"]
["Porpidia zeoroides (Anzi) Knoph & Hertel",3880]
["Porpidinia tumidula (Sm.) Timdal",1424]
["Protoblastenia",5339]
["Protoblastenia calva (Dicks.) Zahlbr.",1186]
["Protoblastenia cyclospora (Hepp ex Körb.) Poelt",3890]
["Protoblastenia incrustans (DC.) J. Steiner s. lat.",1188]
["Protoblastenia incrustans (DC.) J. Steiner var. coniasis (A. Massal.) Nimis","25168"]
["Protoblastenia incrustans (DC.) J. Steiner var. incrustans ","25169"]
["Protoblastenia rupestris (Scop.) J. Steiner s. lat.",1189]
["Protoblastenia rupestris (Scop.) J. Steiner subsp. rhodothecia Cl. Roux","25170"]
["Protoblastenia rupestris (Scop.) J. Steiner var. rupestris ","25171"]
["Protoblastenia rupestris (Scop.) J. Steiner var. sanguinea (Arnold) Zahlbr.","25172"]
["Protoblastenia siebenhaariana (Körb.) J. Steiner  subsp. albida Cl. Roux ined.","3892"]
["Protoblastenia siebenhaariana (Körb.) J. Steiner  var. alpina (Arnold) Clauzade & Cl. Roux","25173"]
["Protoblastenia siebenhaariana (Körb.) J. Steiner s. lat.",3891]
["Protoblastenia siebenhaariana (Körb.) J. Steiner var. siebenhaariana","25174"]
["Protoblastenia terricola (Anzi) Lynge","3887"]
["Protomicarea",22286]
["Protomicarea limosa (Ach.) Hafellner",742]
["Protopannaria",22287]
["Protopannaria pezizoides (Weber) P. M. Jørg. & S. Ekman","979"]
["Protoparmelia",22288]
["Protoparmelia atriseda (Fr.) R. Sant. & V. Wirth",3427]
["Protoparmelia badia (Hoffm.) Hertel s. lat.","633"]
["Protoparmelia badia (Hoffm.) Hertel var. badia","25175"]
["Protoparmelia badia (Hoffm.) Hertel var. cinereobadia (Harm.) Clauzade & Cl. Roux ex Hafellner & Türk","25176"]
["Protoparmelia cupreobadia (Nyl.) Poelt","25177"]
["Protoparmelia hypotremella Herk, Spier & V. Wirth",2940]
["Protoparmeliopsis admontensis (Zahlbr.) Hafellner",3445]
["Protoparmeliopsis garovaglii (Körb.) Arup, Zhao Xin & Lumbsch",3460]
["Protoparmeliopsis muralis (Schreb.) M. Choisy s. lat.","661"]
["Protoparmeliopsis muralis (Schreb.) M. Choisy var. diffracta (Ach.) M. Choisy ex Werner","25263"]
["Protoparmeliopsis muralis (Schreb.) M. Choisy var. dubyi (Müll. Arg.) Hafellner & Türk","3459"]
["Protoparmeliopsis muralis (Schreb.) M. Choisy var. mauralis","25178"]
["Protoparmeliopsis muralis (Schreb.) M. Choisy var. schneebergensis (Zahlbr.) Hafellner & Türk","25179"]
["Protoparmeliopsis muralis (Schreb.) M. Choisy var. subcartilaginea (A. Massal. ex Poelt) ined.","25180"]
["Protothelenella",22289]
["Protothelenella corrosa (Körb.) H. Mayrhofer & Poelt",898]
["Protothelenella leucothelia (Nyl.) H. Mayrhofer & Poelt",3605]
["Protothelenella petri H. Mayrhofer & Poelt",20821]
["Protothelenella sphinctrinoidella (Nyl.) H. Mayrhofer & Poelt",902]
["Protothelenella sphinctrinoides (Nyl.) H. Mayrhofer & Poelt",903]
["Protothelenella xylina H. Mayrhofer & Poelt","25181"]
["Pseudephebe",22290]
["Pseudephebe minuscula (Nyl. ex Arnold) Brodo & D. Hawksw.",1823]
["Pseudephebe pubescens (L.) M. Choisy",1191]
["Pseudevernia",5344]
["Pseudevernia furfuracea (L.) Zopf s. lat.","1190"]
["Pseudevernia furfuracea (L.) Zopf var. ceratea (Ach.) D. Hawksw.",1193]
["Pseudevernia furfuracea (L.) Zopf var. furfuracea ","1192"]
["Pseudoleptogium","25182"]
["Pseudoleptogium diffractum (Kremp. ex Körb.) Müll. Arg.",3545]
["Pseudosagedia aenea (Körb.) Hafellner & Kalb",1168]
["Pseudosagedia borreri (Trevis.) Hafellner & Kalb",1170]
["Pseudosagedia byssophila (Körb. ex Hepp) Hafellner & Kalb",3868]
["Pseudosagedia chlorotica (Ach.) Hafellner & Kalb",1171]
["Pseudosagedia linearis (Leight.) Hafellner & Kalb",1182]
["Pseudoschismatomma rufescens (Pers.) Ertz & Tehler",958]
["Pseudothelomma ocellatum (Körb.) M. Prieto & Wedin",1406]
["Psilolechia",22291]
["Psilolechia clavulifera (Nyl.) Coppins",1199]
["Psilolechia lucida (Ach.) M. Choisy",1200]
["Psora",22292]
["Psora decipiens (Hedw.) Hoffm.",1201]
["Psora globifera (Ach.) A. Massal.",3901]
["Psora testacea Hoffm.",3153]
["Psora vallesiaca (Schaer.) Timdal",8177]
["Psorinia",22293]
["Psorinia conglomerata (Ach.) Gotth. Schneid.",3906]
["Psoroglaena",22294]
["Psoroglaena biatorella (Arnold) Lücking & Sérus",3560]
["Psoroglaena dictyospora (Orange) H. Harada","20464 "]
["Psoroglaena stigonemoides (Orange) Henssen",1773]
["Psoroma",22295]
["Psoroma hypnorum (Vahl) Gray",2402]
["Psoroma tenue  Henssen s. lat.",25183]
["Psoroma tenue Henssen var. boreale Henssen",8296]
["Psoroma tenue Henssen var. tenue","25184"]
["Psoronactis ","25185"]
["Psoronactis dilleniana (Ach.) Ertz & Tehler",596]
["Psorotichia",22296]
["Psorotichia diffracta (Nyl.) Forssell",3921]
["Psorotichia leprosa (Anzi) Forssell",22027]
["Psorotichia lugubris (A. Massal.) Arnold",3920]
["Psorotichia murorum A. Massal.","20113"]
["Psorotichia pontresinae B. de Lesd.",20714]
["Psorotichia schaereri (A. Massal.) Arnold",4776]
["Punctelia",22297]
["Punctelia borreri (Sm.) Krog",985]
["Punctelia jeckeri (Roum.) Kalb",8278]
["Punctelia reddenda (Stirt.) Krog","25187"]
["Punctelia stictica (Duby) Krog",20912]
["Punctelia subrudecta (Nyl.) Krog",1021]
["Punctelia subrudecta aggr.",25186]
["Puttea","25188"]
["Puttea caesia (Fr.) M. Svenss. & T. Sprib.",711]
["Puttea exsequens (Nyl) Printzen & Davydov",710]
["Puttea margaritella (Hulting) S. Stenroos & Huhtinen",754]
["Pycnora",22298]
["Pycnora praestabilis (Nyl.) Hafellner",3322]
["Pycnora sorophora (Vain.) Hafellner",3321]
["Pycnothelia",22299]
["Pycnothelia papillaria Dufour",1211]
["Pyrenocarpon",22300]
["Pyrenocarpon montinii (A. Massal.) Trevis.",3912]
["Pyrenocarpon thelostomum (Ach. ex Winch & Thornhill) Coppins & Aptroot","20979"]
["Pyrenocollema",22301]
["Pyrenopsis",22303]
["Pyrenopsis cleistocarpa (Müll. Arg.) Forssell",20594]
["Pyrenopsis grumulifera Nyl.",4779]
["Pyrenopsis picina (Nyl.) Forssell",1206]
["Pyrenula",5362]
["Pyrenula laevigata (Pers.) Arnold",1223]
["Pyrenula nitida (Weigel) Ach.",1226]
["Pyrenula nitidella (Schaer.) Müll. Arg.",1227]
["Pyrrhospora",22304]
["Pyrrhospora quernea (Dicks.) Körb.",1228]
["Racodium",22305]
["Racodium rupestre Pers.",1229]
["Ramalina",5367]
["Ramalina baltica ",1230]
["Ramalina calicaris (L.) Fr.",1231]
["Ramalina capitata (Ach.) Nyl.","3961"]
["Ramalina dilacerata (Hoffm.) Hoffm.",3937]
["Ramalina europaea Gasparyan, Sipman & Lücking","25189"]
["Ramalina farinacea (L.) Ach.",1234]
["Ramalina fastigiata (Pers.) Ach.",1235]
["Ramalina fraxinea (L.) Ach.",1236]
["Ramalina obtusata (Arnold) Bitter","25190"]
["Ramalina obtusata aggr.","3957"]
["Ramalina panizzei De Not.",3942]
["Ramalina pollinaria (Westr.) Ach.","1237"]
["Ramalina polymorpha (Lilj.) Ach.","1238"]
["Ramalina roesleri (Schaer.) Hue",3959]
["Ramalina sinensis Jatta",3952]
["Ramalina thrausta (Ach.) Nyl.",1242]
["Ramboldia",22306]
["Ramboldia cinnabarina (Sommerf.) Kalb, Lumbsch & Elix",8184]
["Ramboldia elabens (Fr.) Kantvilas & Elix",21346]
["Ramboldia insidiosa (Th. Fr.) Hafellner",729]
["Reichlingia",22307]
["Reichlingia leopoldii Diederich & Scheid.",2753]
["Reichlingia zwackhii (Sandst.) Frisch & G. Thor",1654]
["Rhaphidicyrtis trichosporella (Nyl.) Vain.",25267]
["Rhizocarpon",5371]
["Rhizocarpon alpicola (Anzi) Rabenh.",1245]
["Rhizocarpon atroflavescens Lynge",3971]
["Rhizocarpon badioatrum (Flörke ex Spreng.) Th. Fr.",1246]
["Rhizocarpon cinereovirens (Müll. Arg.) Vain.","21152"]
["Rhizocarpon coeruleoalbum (Kremp.) Zahlbr.",3987]
["Rhizocarpon disporum (Nägeli ex Hepp) Müll. Arg.",4002]
["Rhizocarpon effiguratum (Anzi) Th. Fr.","21331"]
["Rhizocarpon eupetraeum (Nyl.) Arnold",4004]
["Rhizocarpon geminatum Körb.",1256]
["Rhizocarpon geographicum (L.) DC. s.lat.","1257"]
["Rhizocarpon geographicum (L.) DC. subsp. arcticum  (Runemark) Hertel","3982"]
["Rhizocarpon geographicum (L.) DC. subsp. diabasicum (Räsänen) Poelt & Vezda","20257"]
["Rhizocarpon geographicum (L.) DC. subsp. frigidum (Räsänen) Hertel","21120 "]
["Rhizocarpon geographicum (L.) DC. subsp. geographicum ",21911]
["Rhizocarpon geographicum (L.) DC. subsp. kittilense (Räsänen) Ahti",1272]
["Rhizocarpon geographicum (L.) DC. subsp. lindsayanum (Räsänen) R. Sant.",25191]
["Rhizocarpon geographicum (L.) DC. subsp. prospectans (Räsänen) D. Hawksw. & Sowter"," 21091"]
["Rhizocarpon grande (Flörke ex Flot.) Arnold",4003]
["Rhizocarpon hochstetteri (Körb.) Vain.",1262]
["Rhizocarpon intersitum Arnold","21332"]
["Rhizocarpon kakurgon Poelt",1274]
["Rhizocarpon lavatum (Fr.) Hazsl.",1264]
["Rhizocarpon lecanorinum Anders",1265]
["Rhizocarpon leptolepis Anzi",4480]
["Rhizocarpon macrosporum Räsänen",4793]
["Rhizocarpon norvegicum Räsänen",1259]
["Rhizocarpon obscuratum (Ach.) A. Massal.",1266]
["Rhizocarpon oederi (Ach.) Körb.",1267]
["Rhizocarpon papillatum Vezda & Poelt","20795"]
["Rhizocarpon petraeum (Wulfen) A. Massal.",4795]
["Rhizocarpon polycarpum (Hepp) Th. Fr.",1270]
["Rhizocarpon pusillum Runemark","21005"]
["Rhizocarpon reductum Th. Fr.","21554"]
["Rhizocarpon renneri Poelt","20067"]
["Rhizocarpon ridescens (Nyl.) Zahlbr.",1247]
["Rhizocarpon saanaense Räsänen",4798]
["Rhizocarpon simillimum (Anzi) Lettau",3990]
["Rhizocarpon subocellatum (Müll. Arg.) Zahlbr.",20438]
["Rhizocarpon superficiale (Schaer.) Vain.",1252]
["Rhizocarpon umbilicatum (Ramond) Flagey","1279"]
["Rhizocarpon viridiatrum (Wulfen) Körb.",1280]
["Rhizoplaca",22308]
["Rhizoplaca chrysoleuca (Sm.) Zopf",4010]
["Rhizoplaca melanophthalma (DC.) Leuckert & Poelt",4012]
["Ricasolia","25192"]
["Ricasolia amplissima (Scop.) De Not.",855]
["Ricasolia virens (With.) H.H. Blom & Tønsberg",856]
["Rimularia","22309"]
["Rimularia badioatra (Kremp.) Hertel & Rambold","4739"]
["Rimularia gibbosa (Ach.) Coppins, Hertel & Rambold",3610]
["Rimularia limborina Nyl.","21392"]
["Rinodina",5376]
["Rinodina aequata (Ach.) Flagey",20437]
["Rinodina alba Metzler ex Arnold",4051]
["Rinodina albana (A. Massal.) A. Massal.",2834]
["Rinodina archaea (Ach.) Arnold",1282]
["Rinodina arnoldii H. Mayrhofer & Poelt",4054]
["Rinodina atrocinerea (Hook.) Körb.",1281]
["Rinodina bischoffii (Hepp) A. Massal.",1283]
["Rinodina calcarea (Hepp ex Arnold) Arnold",4069]
["Rinodina cana (Arnold) Arnold","20558"]
["Rinodina candidogrisea Hafellner, Muggia & Obermayer",22369]
["Rinodina capensis Hampe",4036]
["Rinodina castanomela (Nyl.) Arnold",4067]
["Rinodina castanomelodes H. Mayrhofer & Poelt",4065]
["Rinodina cinnamomea (Th. Fr.) Räsänen ",25194]
["Rinodina colobina (Ach.) Th. Fr.",4032]
["Rinodina confragosa (Ach.) Körb.",1285]
["Rinodina conradii Körb.",1286]
["Rinodina dubyana (Hepp) J. Steiner",4063]
["Rinodina efflorescens Malme",1287]
["Rinodina epimilvina H. Mayrhofer","20559"]
["Rinodina exigua (Ach.) Gray",1288]
["Rinodina freyi  H. Magn.","4040"]
["Rinodina griseosoralifera Coppins",274]
["Rinodina guzzinii Jatta","21535"]
["Rinodina immersa (Körb.) J. Steiner",4058]
["Rinodina intermedia Bagl.",6056]
["Rinodina isidioides (Borrer) H. Olivier",1291]
["Rinodina laevigata (Ach.) Malme","21237"]
["Rinodina laxa H. Magn.",4022]
["Rinodina lecanorina (A. Massal.) A. Massal.",4060]
["Rinodina luridata (Körb.) H. Mayrhofer, Scheid. & Sheard s. lat.","20540"]
["Rinodina luridata (Körb.) H. Mayrhofer, Scheid. & Sheard subsp. immersa (H. Mayrhofer & Cl. Roux) Cl. Roux",4062]
["Rinodina luridata (Körb.) H. Mayrhofer, Scheid. & Sheard subsp. luridata ","4061"]
["Rinodina malangica (Norman) Arnold",4030]
["Rinodina milvina (Wahlenb.) Th. Fr.",4083]
["Rinodina mniaraea (Ach.) Körb.","2932"]
["Rinodina mniaroeiza (Nyl.) Arnold",25193]
["Rinodina notabilis  (Lynge) Sheard","20554"]
["Rinodina obnascens (Nyl.) H. Olivier",1292]
["Rinodina oleae Bagl.",1289]
["Rinodina olivaceobrunnea C. W. Dodge & G. E. Baker",4021]
["Rinodina orculata Poelt & M. Steiner",4038]
["Rinodina oxydata (A. Massal.) A. Massal.",1295]
["Rinodina parasitica H. Mayrhofer & Poelt",4014]
["Rinodina pityrea Ropin & H. Mayrhofer",22051]
["Rinodina plana H. Magn.",6022]
["Rinodina polyspora Th. Fr.",4031]
["Rinodina polysporoides Giralt & H. Mayrhofer",6008]
["Rinodina pyrina (Ach.) Arnold",1296]
["Rinodina rinodinoides (Anzi) H. Mayrhofer & Scheid."," 20831"]
["Rinodina roboris (Dufour ex Nyl.) Arnold",1297]
["Rinodina roscida (Sommerf.) Arnold",4023]
["Rinodina sheardii Tønsberg",2960]
["Rinodina sophodes (Ach.) A. Massal.",1298]
["Rinodina straussii J. Steiner",20555]
["Rinodina teichophila (Nyl.) Arnold",1300]
["Rinodina terrestris Tomin",4020]
["Rinodina trachytica (A. Massal.) Bagl. & Carestia",4052]
["Rinodina trevisanii (Hepp) Körb.",21949]
["Rinodina turfacea (Wahlenb.) Körb.",4024]
["Rinodina ventricosa Hinter. & Giralt",2939]
["Rinodina zwackhiana (Kremp.) Körb.",4072]
["Rinodinella",22310]
["Rinodinella controversa (A. Massal.) H. Mayrhofer & Poelt",4050]
["Rinodinella dubyanoides (Hepp) H. Mayrhofer & Poelt",4049]
["Romjularia",22311]
["Romjularia lurida (Ach.) Timdal",1202]
["Ropalospora",22312]
["Ropalospora lugubris (Sommerf.) Poelt",20664]
["Ropalospora viridis (Tønsberg) Tønsberg",522]
["Rostania","25195"]
["Rostania ceranisca (Nyl.) Otálora, P.M. Jørg. & Wedin",456]
["Rostania occultata (Bagl.) Otálora, P.M. Jørg. & Wedin",1697]
["Sagiolechia","22313"]
["Sagiolechia protuberans (Ach.) A. Massal.",4099]
["Santessoniella",22314]
["Santessoniella arctophila (Th. Fr.) Henssen",7010]
["Sarcogyne","22315"]
["Sarcogyne algoviae H. Magn. s. lat",4106]
["Sarcogyne algoviae H. Magn. var.  algoviae","25196"]
["Sarcogyne algoviae H. Magn. var. euthallina Asta & Cl. Roux","25197"]
["Sarcogyne clavus (DC.) Kremp.",1304]
["Sarcogyne distinguenda Th. Fr.",4110]
["Sarcogyne fallax H. Magn.",4112]
["Sarcogyne lapponica Ach. ex (Schaer.) K. Knudsen & Kocourk.",4768]
["Sarcogyne privigna (Ach.) A. Massal.",1305]
["Sarcogyne regularis Körb. S. lat.",1306]
["Sarcogyne regularis Körb. var. decipiens (A. Massal.) N.S. Golubk.","25198"]
["Sarcogyne regularis Körb. var. intermedia  (Körb.) N.S. Golubk.","25199"]
["Sarcogyne regularis Körb. var. macroloma (Flörke ex Körb.) N.S. Golubk.","25200"]
["Sarcogyne regularis Körb. var. minuta (A. Massal.) N.S. Golubk.","25201"]
["Sarcogyne regularis Körb. var. platycarpoides (Anzi) N.S. Golubk.","25202"]
["Sarcogyne regularis Körb. var. psimmythina (Nyl.) N.S. Golubk.","25203"]
["Sarcogyne regularis Körb. var. regularis ","25204"]
["Sarcopyrenia","22316"]
["Sarcopyrenia gibba (Nyl.) Nyl. s.l.",1307]
["Sarcosagium","22317"]
["Sarcosagium campestre (Fr.) Poetsch & Schied.",2933]
["Schadonia",22319]
["Schadonia fecunda (Th. Fr.) Vezda & Poelt",4114]
["Schaereria",22320]
["Schaereria cinereorufa (Schaer.) Th. Fr.",1311]
["Schaereria fuscocinerea (Nyl.) Clauzade & Cl. Roux s. lat.",4115]
["Schaereria fuscocinerea (Nyl.) Clauzade & Cl. Roux var. fuscocinerea","25205"]
["Schaereria fuscocinerea (Nyl.) Clauzade & Cl. Roux var. sorediata (Houmeau & Cl. Roux) Coppins","25206"]
["Schismatomma",22321]
["Schismatomma pericleum (Ach.) Branth & Rostr.",4118]
["Schismatomma quercicola Coppins & P. James","21534"]
["Schismatomma ricasolii (A. Massal.) Egea & Torrente",1316]
["Schismatomma umbrinum (Coppins & P. James) P. M. Jørg. & Tønsberg",607]
["Sclerophora",22322]
["Sclerophora farinacea (Chevall.) Chevall.",3194]
["Sclerophora pallida (Pers.) Y. J. Yao & Spooner","468"]
["Sclerophora peronella (Ach.) Tibell",469]
["Scoliciosporum",5393]
["Scoliciosporum chlorococcum (Graewe ex Stenh.) Vezda",1320]
["Scoliciosporum curvatum Sérus.",2979]
["Scoliciosporum gallurae Vezda & Poelt",4512]
["Scoliciosporum intrusum (Th. Fr.) Hafellner",878]
["Scoliciosporum perpusillum J. Lahm ex Körb.",4124]
["Scoliciosporum pruinosum (P. James) Vezda",1321]
["Scoliciosporum sarothamni (Vain.) Vezda",4123]
["Scoliciosporum schadeanum (Erichsen) Vezda",4122]
["Scoliciosporum umbrinum (Ach.) Arnold  var. corticicolum (Anzi) Bagl. & Carestia ","25207"]
["Scoliciosporum umbrinum (Ach.) Arnold s. lat.",1322]
["Scoliciosporum umbrinum (Ach.) Arnold var. umbrinum","25208"]
["Scytinium","25209"]
["Scytinium aquale (Arnold) Otálora, P.M. Jørg. & Wedin",20263]
["Scytinium biatorinum (Nyl.) Otálora, P.M. Jørg. & Wedin",827]
["Scytinium callopismum (A. Massal.) Otálora, P.M. Jørg. & Wedin",2922]
["Scytinium cretaceum (Sm.) ined. comb. ad int.",833]
["Scytinium fragrans (Sm.) Otálora, P.M. Jørg. & Wedin",448]
["Scytinium gelatinosum (With.) Otálora, P.M. Jørg. & Wedin",846]
["Scytinium imbricatum (P.M. Jørg.) Otálora, P.M. Jørg. & Wedin",7002]
["Scytinium intermedium (Arnold) Otálora, P.M. Jørg. & Wedin",841]
["Scytinium leptogioides (Anzi) Otálora, P.M. Jørg. & Wedin",20119]
["Scytinium lichenoides (L.) Otálora, P.M. Jørg. & Wedin",839]
["Scytinium palmatum (Huds.) Gray",842]
["Scytinium parvum (Degel.) Otálora, P.M. Jørg. & Wedin",3185]
["Scytinium plicatile (Ach.) Otálora, P.M. Jørg. & Wedin",843]
["Scytinium pulvinatum (Hoffm.) Otálora, P.M. Jørg. & Wedin",3548]
["Scytinium schraderi (Bernh.) Otálora, P.M. Jørg. & Wedin",845]
["Scytinium subtile (Schrad.) Otálora, P.M. Jørg. & Wedin",4730]
["Scytinium subtorulosum (Nyl. ex Stizenb.) Otálora, P.M. Jørg. & Wedin",21686]
["Scytinium tenuissimum (Dicks.) Otálora, P.M. Jørg. & Wedin",847]
["Scytinium teretiusculum (Wallr.) Otálora, P.M. Jørg. & Wedin",848]
["Scytinium turgidum (Ach.) Otálora, P.M. Jørg. & Wedin",849]
["Seirophora","22323"]
["Seirophora contortuplicata (Ach.) Frödén","20060"]
["Solenopsora",22324]
["Solenopsora candicans (Dicks.) J. Steiner",1324]
["Solorina",5401]
["Solorina bispora Nyl. s.lat.",1327]
["Solorina bispora Nyl. subsp. bispora ",4128]
["Solorina bispora Nyl. subsp. macrospora (Harm.) Burgaz & I. Martínez",4129]
["Solorina bispora Nyl. var. subspongiosa (Zschacke) Frey","25210"]
["Solorina crocea (L.) Ach.",1329]
["Solorina monospora Gyeln.",4130]
["Solorina octospora (Arnold) Arnold",4127]
["Solorina saccata (L.) Ach.",1330]
["Solorina spongiosa (Ach.) Anzi",1331]
["Sphaerophorus",22325]
["Sphaerophorus fragilis (L.) Pers.",1332]
["Sphaerophorus globosus (Huds.) Vain.",1333]
["Spilonema",22327]
["Spilonema paradoxum Bornet",4132]
["Spilonema revertens Nyl.","22370"]
["Sporastatia",22328]
["Sporastatia polyspora (Nyl.) Grummann",4134]
["Sporastatia testudinea (Ach.) A. Massal.",4135]
["Sporodictyon","22329"]
["Sporodictyon bosniacum (Zahlbr.) ined.",20617]
["Sporodictyon cruentum (Körb.) Körb.",1150]
["Sporodictyon schaererianum A. Massal.",22062]
["Sporodictyon terrestre (Th. Fr.) Savic & Tibell","21669"]
["Squamarina",22330]
["Squamarina cartilaginea (With.) P. James s. lat.",2859]
["Squamarina concrescens (Müll. Arg.) Poelt",20764]
["Squamarina gypsacea (Sm.) Poelt",2934]
["Squamarina lamarckii (DC.) Poelt",4148]
["Squamarina lentigera (Weber) Poelt",4140]
["Squamarina nivalis Frey & Poelt","20832"]
["Squamarina pachylepidea (Hellb.) Poelt",4143]
["Staurothele",5411]
["Staurothele alpina Zschacke",20647]
["Staurothele arctica Lynge",4125]
["Staurothele areolata (Ach.) Lettau",4164]
["Staurothele bacilligera (Arnold) Arnold",1340]
["Staurothele caesia (Arnold) Arnold",1341]
["Staurothele clopima (Wahlenb.) Th. Fr.",4162]
["Staurothele clopimoides (Arnold) J. Steiner","21872"]
["Staurothele fissa (Taylor) Zwackh",1343]
["Staurothele frustulenta Vain.",4155]
["Staurothele fuliginea Zschacke",20645]
["Staurothele geoica Zschacke",4165]
["Staurothele guestphalica (J. Lahm ex Körb.) Arnold",4151]
["Staurothele hymenogonia (Nyl.) Th. Fr.",1344]
["Staurothele pulvinata (Th. Fr.) Heiðmarsson",3233]
["Staurothele rufa (A. Massal.) Zschacke",4158]
["Staurothele rugulosa (A. Massal.) Arnold",4174]
["Staurothele rupifraga (A. Massal.) Arnold",1347]
["Staurothele solvens (Anzi) Zschacke s. lat.",20238]
["Staurothele solvens (Anzi) Zschacke var. fusca Cl. Roux",25211]
["Staurothele solvens (Anzi) Zschacke var. intermedia Cl. Roux & Vivant",25212]
["Staurothele solvens (Anzi) Zschacke var. solvens",25213]
["Staurothele succedens (Rehm ex Arnold) Arnold",1348]
["Steinia","22331"]
["Steinia geophana (Nyl.) Stein",1349]
["Stenhammarella turgida (Ach.) Hertel",3879]
["Stereocaulon",5416]
["Stereocaulon alpinum Laurer","2935"]
["Stereocaulon botryosum Ach.",4182]
["Stereocaulon capitellatum H. Magn.","1342"]
["Stereocaulon condensatum Hoffm.",1351]
["Stereocaulon cumulatum (Sommerf.) Timdal",4292]
["Stereocaulon dactylophyllum Flörke",1352]
["Stereocaulon glareosum (Savicz) H. Magn. s. lat.",4179]
["Stereocaulon glareosum (Savicz) H. Magn. var.  glareosum","25214"]
["Stereocaulon glareosum (Savicz) H. Magn. var. brachyphylloides I.M. Lamb","25215"]
["Stereocaulon grande (H. Magn.) H. Magn.",4188]
["Stereocaulon incrustatum Flörke",4184]
["Stereocaulon nanodes Tuck.",1357]
["Stereocaulon paschale (L.) Hoffm.",4185]
["Stereocaulon pileatum Ach.",1359]
["Stereocaulon rivulorum H. Magn.",4189]
["Stereocaulon tomentosum Fr.",2864]
["Stereocaulon vesuvianum Pers. S. lat.",2865]
["Stereocaulon vesuvianum Pers. var. nodulosum (Wallr.) I.M. Lamb",1364]
["Stereocaulon vesuvianum Pers. var. vesuvianum ",1363]
["Sticta",5417]
["Sticta canariensis (Flörke) Bory ex Delise","1365"]
["Sticta fuliginosa (Hoffm.) Ach.",1367]
["Sticta limbata (Sm.) Ach.",1368]
["Sticta sylvatica (Huds.) Ach.",1369]
["Strangospora","22333"]
["Strangospora deplanata (Almq.) Clauzade & Cl. Roux",1937]
["Strangospora moriformis (Ach.) Stein",1372]
["Strangospora pinicola (A. Massal.) Körb.",1374]
["Strigula",5422]
["Strigula affinis (A. Massal.) R. C. Harris",1377]
["Strigula glabra (A. Massal.) V. Wirth",3860]
["Strigula jamesii (Swinscow) R. C. Harris",1375]
["Strigula phaea (Ach.) R. C. Harris",20642]
["Strigula stigmatella (Ach.) R. C. Harris","1798"]
["Strigula sychnogonoides (Nitschke) R. C. Harris","6055"]
["Strigula ziziphi (A. Massal.) Cl. Roux & Sérus.",6039]
["Synalissa","22334"]
["Synalissa ramulosa (Bernh.) Fr.",4190]
["Taeniolina",5427]
["Teloschistes","22335"]
["Teloschistes chrysophthalmus (L.) Th. Fr.",4191]
["Tephromela","22336"]
["Tephromela atra (Huds.) Hafellner s. lat.",1799]
["Tephromela atra (Huds.) Hafellner var. atra ","630"]
["Tephromela atra (Huds.) Hafellner var. calcarea (Jatta) Clauzade & Cl. Roux","25216"]
["Tephromela atra (Huds.) Hafellner var. torulosa (Flot.) Hafellner","4196"]
["Tephromela grumosa (Pers.) Hafellner & Cl. Roux",654]
["Tephromela pertusarioides (Degel.) Hafellner & Cl. Roux",4197]
["Tetramelas","25217"]
["Tetramelas chloroleucus (Körb.) A. Nordin",1966]
["Tetramelas concinnus (Th. Fr.) Giralt",1978]
["Tetramelas geophilus (Flörke ex Sommerf.) Norman",6004]
["Tetramelas insignis (Körb.) Kalb",1957]
["Tetramelas papillatus (Sommerf.) Kalb",1956]
["Tetramelas pulverulentus (Anzi) A. Nordin & Tibell",2138]
["Tetramelas thiopolizus (Nyl.) Giralt & P. Clerc",1955]
["Tetramelas triphragmioides (Anzi) A. Nordin & Tibell",1975]
["Thallinocarpon nigritellum (Lettau) P.M. Jørg.",4273]
["Thamnolia",22337]
["Thamnolia vermicularis (Sw.) Schaer. s. lat.",2231]
["Thamnolia vermicularis (Sw.) Schaer. var. subuliformis (Ehrh.) Schaer.","1382"]
["Thamnolia vermicularis (Sw.) Schaer. var. vermicularis ","1383"]
["Thelenella",22338]
["Thelenella modesta (Nyl.) Nyl.",900]
["Thelenella muscorum (Fr.) Vain. s. lat.",901]
["Thelenella muscorum (Fr.) Vain. var. muscorum","25218"]
["Thelenella muscorum (Fr.) Vain. var. octospora (Nyl.) Coppins & Fryday","25219"]
["Thelenella pertusariella (Nyl.) Vain.",20222]
["Thelenidia","22339"]
["Thelenidia monosporella Nyl.",1384]
["Thelidium",5436]
["Thelidium absconditum (Hepp) Rabenh.","20604"]
["Thelidium abstractum Lettau",20403]
["Thelidium aethioboloides Zschacke",21991]
["Thelidium anisosporum (Müll. Arg.) Zschacke",21109]
["Thelidium antonellianum Bagl. & Carestia",4238]
["Thelidium decipiens (Hepp ex Nyl.) Kremp.",1385]
["Thelidium decussatum (Kremp.) Zschacke",21134]
["Thelidium dionantense (Hue) Zschacke",4208]
["Thelidium fontigenum A. Massal.",4200]
["Thelidium gisleri (Müll. Arg.) Zschacke",21547]
["Thelidium grummannii Servít",20854]
["Thelidium helveticum (Servít) Hafeller",20602]
["Thelidium impressulum Zschacke","21146"]
["Thelidium impressum (Müll. Arg.) Zschacke",1388]
["Thelidium incavatum Nyl. ex Mudd","1389"]
["Thelidium methorium (Nyl.) Hellb.",4227]
["Thelidium minimum (A. Massal. ex. Nyl.) Arnold",4229]
["Thelidium minutulum Körb.",4236]
["Thelidium nigricans Zschacke",4223]
["Thelidium olivaceum (Fr.) Körb. (nom. illeg.)",4230]
["Thelidium papulare (Fr.) Arnold",1394]
["Thelidium perexiguum (Müll. Arg.) Zahlbr.",21009]
["Thelidium pyrenophorum (Ach.) A. Massal.",1395]
["Thelidium rehmii Zschacke","4235"]
["Thelidium schibleri Zschacke",20782]
["Thelidium subsimplex Zschacke","21144"]
["Thelidium tongletii (Hue) Zschacke",21147]
["Thelidium zwackhii (Hepp) A. Massal.",4245]
["Thelignya","22340"]
["Thelignya lignyota (Wahlenb.) P. M. Jørg. & Henssen",3914]
["Thelocarpon","22341"]
["Thelocarpon epibolum Nyl.","2947"]
["Thelocarpon imperceptum (Nyl.) Mig.",1402]
["Thelocarpon impressellum Nyl.",1399]
["Thelocarpon intermediellum Nyl.",1400]
["Thelocarpon laureri (Flot.) Nyl.",1401]
["Thelocarpon olivaceum B. de Lesd.",4248]
["Thelocarpon superellum Nyl.",4251]
["Thelomma",22343]
["Thelopsis",22344]
["Thelopsis flaveola Arnold",1407]
["Thelopsis lojkana (Poetsch ex Arnold) Nyl.",20197]
["Thelopsis melathelia Nyl.",4260]
["Thelopsis rubella Nyl.",1408]
["Thelotrema",22345]
["Thelotrema lepadinum (Ach.) Ach.",1410]
["Thermutis",22346]
["Thermutis velutina (Ach.) Flot.",4261]
["Thrombium",22347]
["Thrombium epigaeum (Pers.) Wallr.",1414]
["Thrombium smaragdulum Körb.",4264]
["Thyrea",22348]
["Thyrea confusa Henssen","4272"]
["Thyrea girardii (Durieu & Mont.) Bagl. & Carestia",20565]
["Thyrea pachyphylla (Müll. Arg.) Henssen",20792]
["Thyrea plectopsora A. Massal.","20117"]
["Toensbergia leucococca (R. Sant.) Bendiksby & Timdal",1714]
["Toninia",5446]
["Toninia albilabra (Dufour) H. Olivier",4285]
["Toninia alutacea (Anzi) Jatta",1421]
["Toninia aromatica (Sm.) A. Massal.",1415]
["Toninia athallina (Hepp) Timdal",2371]
["Toninia candida (Weber) Th. Fr.",2866]
["Toninia cinereovirens (Schaer.) A. Massal.",4287]
["Toninia coelestina (Anzi) Vezda",4298]
["Toninia diffracta (A. Massal.) Zahlbr.",1420]
["Toninia episema (Nyl.) Timdal",2374]
["Toninia lutosa (Ach.) Timdal",4279]
["Toninia nordlandica Th. Fr.",20096]
["Toninia opuntioides (Vill.) Timdal",8224]
["Toninia pennina (Schaer.) Gyeln.",315]
["Toninia philippea (Mont.) Timdal",2372]
["Toninia physaroides (Opiz) Zahlbr.",4282]
["Toninia rosulata (Anzi) H. Olivier",4277]
["Toninia sedifolia (Scop.) Timdal",1416]
["Toninia squalescens (Nyl.) Th. Fr.",1426]
["Toninia squalida (Ach.) A. Massal.",1427]
["Toninia subnitida (Hellb.) Hafellner & Türk",20882]
["Toninia taurica (Szatala) Oxner",4281]
["Toninia toniniana (A. Massal.) Zahlbr.",4278]
["Toninia tristis (Th. Fr.) Th. Fr. s. lat.","4280"]
["Toninia tristis (Th. Fr.) Th. Fr. subsp.  tristis","22373"]
["Toninia tristis (Th. Fr.) Th. Fr. subsp. asiae-centralis (H. Magn.) Timdal",20142]
["Toninia tristis (Th. Fr.) Th. Fr. subsp. pseudotabacina Timdal","25220"]
["Toninia tristis (Th. Fr.) Th. Fr. subsp. scholanderi (Lynge) Timdal","25221"]
["Toninia tristis (Th. Fr.) Th. Fr. subsp. thalloedaemiformis (Szatala) Timdal","25222"]
["Toninia verrucarioides (Nyl.) Timdal",4296]
["Toniniopsis","25223"]
["Toniniopsis obscura Frey","4301"]
["Trapelia",5450]
["Trapelia coarctata (Sm.) M. Choisy",1431]
["Trapelia corticola Coppins & P. James",1428]
["Trapelia glebulosa (Sm.) J. R. Laundon",1432]
["Trapelia obtegens (Th. Fr.) Hertel",1434]
["Trapelia placodioides Coppins & P. James",1430]
["Trapeliopsis",5451]
["Trapeliopsis aeneofusca (Flörke ex Flot.) Coppins & P. James",4306]
["Trapeliopsis flexuosa (Fr.) Coppins & P. James",692]
["Trapeliopsis gelatinosa (Flörke) Coppins & P. James",726]
["Trapeliopsis granulosa (Hoffm.) Lumbsch",727]
["Trapeliopsis pseudogranulosa Coppins & P. James",1429]
["Trapeliopsis viridescens (Schrad.) Coppins & P. James",792]
["Trapeliopsis wallrothii (Flörke ex Spreng.) Hertel & Gotth. Schneid.",1437]
["Tremolecia",22350]
["Tremolecia atrata (Ach.) Hertel",1438]
["Tuckermanopsis",22351]
["Tuckermanopsis chlorophylla (Willd.) Hale",327]
["Umbilicaria",22352]
["Umbilicaria cinerascens (Arnold) Frey",4310]
["Umbilicaria cinereorufescens (Schaer.) Frey",1448]
["Umbilicaria crustulosa (Ach.) Frey s. lat.",2936]
["Umbilicaria crustulosa (Ach.) Frey var. badiofusca Frey","4333"]
["Umbilicaria crustulosa (Ach.) Frey var. crustulosa ","4331"]
["Umbilicaria cylindrica (L.) Duby s. lat.",1446]
["Umbilicaria decussata (Vill.) Zahlbr.",4313]
["Umbilicaria deusta (L.) Baumg.",1447]
["Umbilicaria grisea Hoffm.",1443]
["Umbilicaria hirsuta (Sw. ex Westr.) Hoffm.",1444]
["Umbilicaria hyperborea (Ach.) Hoffm.",1450]
["Umbilicaria laevis (Schaer.) Frey",4309]
["Umbilicaria leiocarpa DC.",4311]
["Umbilicaria microphylla (Laurer) A. Massal.",4321]
["Umbilicaria nylanderiana (Zahlbr.) H. Magn.",4312]
["Umbilicaria pallens Poelt",21057]
["Umbilicaria polyphylla (L.) Baumg.",1451]
["Umbilicaria polyrrhiza (L.) Fr.",1452]
["Umbilicaria proboscidea (L.) Schrad.",1453]
["Umbilicaria ruebeliana (Du Rietz & Frey) Frey",4324]
["Umbilicaria spodochroa (Hoffm.) DC.",4328]
["Umbilicaria subglabra (Nyl.) Harm.",4308]
["Umbilicaria torrefacta (Lightf.) Schrad.",1455]
["Umbilicaria vellea (L.) Hoffm.",1454]
["Umbilicaria virginis Schaer.",20032]
["Usnea",5464]
["Usnea articulata (L.) Hoffm.",1456]
["Usnea barbata (L.) F. H. Wigg.",8228]
["Usnea cavernosa Tuck.",4336]
["Usnea ceratina Ach.",1458]
["Usnea cornuta Körb.",1469]
["Usnea dasypoga (Ach.) Nyl.",4335]
["Usnea florida (L.) F. H. Wigg.",1462]
["Usnea glabrata (Ach.) Vain.",1466]
["Usnea glabrescens (Nyl. ex Vain.) Vain. s. lat.","25224"]
["Usnea glabrescens (Nyl. ex Vain.) Vain. var. fulvoreagens Räsänen",4344]
["Usnea glabrescens (Nyl. ex Vain.) Vain. var. glabrescens ",1467]
["Usnea hirta (L.) F. H. Wigg.",1468]
["Usnea intermedia (A. Massal.) Jatta",6057]
["Usnea longissima Ach.",1457]
["Usnea perplexans Stirt.",1465]
["Usnea rubicunda Stirt.",1470]
["Usnea silesiaca Motyka",4337]
["Usnea subfloridana Stirt.",1471]
["Usnea substerilis Motyka",4345]
["Usnea viktoriana P. Clerc & Otte",25268]
["Usnea wasmuthii Räsänen",1914]
["Usnocetraria",22353]
["Usnocetraria oakesiana (Tuck.) M. J. Lai & J. C. Wei",329]
["Vahliella",22354]
["Vahliella leucophaea (Vahl) P. M. Jørg.",977]
["Varicellaria",22355]
["Varicellaria hemisphaerica (Flörke) I. Schmitt & Lumbsch",1075]
["Varicellaria lactea (L.) I. Schmitt & Lumbsch",1077]
["Varicellaria rhodocarpa (Körb.) Th. Fr.",4346]
["Verrucaria",5466]
["Verrucaria acrotella Ach.",4401]
["Verrucaria adelminienii Zschacke","21156"]
["Verrucaria aethiobola Wahlenb.","1473"]
["Verrucaria anceps Kremp.",4834]
["Verrucaria anulata Zschacke",21031]
["Verrucaria apatela (A. Massal.) Trevis.",20987]
["Verrucaria apomelaena (A. Massal.) Hepp",1484]
["Verrucaria aquatilis Mudd",1476]
["Verrucaria areolatodiffracta Zschacke",20781]
["Verrucaria bryoctona (Th. Fr.) Orange",21977]
["Verrucaria caerulea DC.",4838]
["Verrucaria caesiopsila Anzi",4357]
["Verrucaria cataleptoides (Nyl.) Nyl.",4841]
["Verrucaria cinereorufa Schaer.",4390]
["Verrucaria cinereoviridescens Zschacke",20421]
["Verrucaria constricta Zschacke",22037]
["Verrucaria cretacea Zschacke",21028]
["Verrucaria diaphragmata Zschacke",21072]
["Verrucaria dilacerata Zschacke",21105]
["Verrucaria dolosa Hepp","4348"]
["Verrucaria elaeina Borrer",8272]
["Verrucaria elaeomelaena (A. Massal.) Anzi",1488]
["Verrucaria endolithea Zschacke",21029]
["Verrucaria erubescens Zschacke",21102]
["Verrucaria eusebii Servit",1494]
["Verrucaria fischeri Müll. Arg.",21066]
["Verrucaria foveolata (Flörke) A. Massal.",4369]
["Verrucaria funckii (Spreng.) Zahlbr.","1490"]
["Verrucaria glarensis Servít",21135]
["Verrucaria glaucovirens Grummann",20044]
["Verrucaria hegetschweileri Körb. ex Nyl. (illeg.) non (Naegeli ex Hepp) Garov. (Naegeli ex Hepp) Garov.",21073]
["Verrucaria hochstetteri Fr. s. lat.",1495]
["Verrucaria hochstetteri Fr. subsp. hochstetteri var. hochstetteri","25225"]
["Verrucaria hochstetteri Fr. subsp. hochstetteri var. obtecta (Müll. Arg.) Clauzade & Cl. Roux","25226"]
["Verrucaria hochstetteri Fr. subsp. rosaeformis Cl. Roux","25227"]
["Verrucaria hydrela Ach.","1496"]
["Verrucaria inornata Servít",20858]
["Verrucaria latebrosa Körb.",4430]
["Verrucaria maas-geesterani Servít",21137]
["Verrucaria macrostoma DC.",4416]
["Verrucaria maculiformis Kremp. nom. illeg. non Hoffm.",4397]
["Verrucaria margacea (Wahlenb.) Wahlenb.",1503]
["Verrucaria mauroides Schaer.",21070]
["Verrucaria metzleri Servít s. lat.",20603]
["Verrucaria metzleri Servít var.  metzleri ","25228"]
["Verrucaria metzleri Servít var. carniolica Servít","25229"]
["Verrucaria mortarii (Arnold) Arnold ex Lamy nom. illeg. non Leight.",20420]
["Verrucaria muelleriana Servít",21136]
["Verrucaria muralis Ach.",1507]
["Verrucaria murina Leight. non (Ach.) Arnold",1508]
["Verrucaria murorum (A. Massal.) Lindau",4418]
["Verrucaria nigrescens Pers.",1510]
["Verrucaria nigricolor Arnold",20428]
["Verrucaria ochrostoma (Borrer ex Leight.) Trevis.",4372]
["Verrucaria pachyderma Arnold","4441"]
["Verrucaria pinguicula A. Massal.","1512"]
["Verrucaria polysticta Borrer",4885]
["Verrucaria praetermissa (Trevis.) Anzi",1513]
["Verrucaria ruderum DC.",4376]
["Verrucaria saprophila (A. Massal.) Trevis.",4363]
["Verrucaria schaereriana Servít",20857]
["Verrucaria sphaerospora Anzi",4384]
["Verrucaria submersella Servít","4427"]
["Verrucaria subtilis Müll. Arg.",21025]
["Verrucaria subtruncatula B. de Lesd.",21071]
["Verrucaria tabacina (A. Massal.) Trevis.",20989]
["Verrucaria tectorum (A. Massal.) Körb.",20988]
["Verrucaria transiliens (Arnold) Lettau",22075]
["Verrucaria tunicata Müll. Arg.",21106]
["Verrucaria umbrinula Nyl.",4422]
["Verrucaria veronensis A. Massal.",21024]
["Verrucaria viridula (Schrad.) Ach.",8273]
["Verrucaria wolferi Zschacke",21101]
["Verrucula","22356"]
["Verrucula coccinearia (Zehetl.) Nav.-Ros. & Cl. Roux",20763]
["Verrucula elegantaria (Zehetl.) Nav.-Ros. & Cl. Roux",21962]
["Verrucula helvetica (B. de Lesd.) Nav.-Ros. & Cl. Roux","20688"]
["Verrucula protearia (Zehetl.) Nav.-Ros. & Cl. Roux",20823]
["Verruculopsis",22357]
["Verruculopsis lecideoides (A. Massal.) Gueidan & Cl. Roux s. lat. ",4381]
["Verruculopsis lecideoides (A. Massal.) Gueidan & Cl. Roux var. lecideoides","25230"]
["Verruculopsis lecideoides (A. Massal.) Gueidan & Cl. Roux var. minuta (Hepp) ined. ","25231"]
["Vezdaea",5468]
["Vezdaea aestivalis (Ohlert) Tscherm.-Woess & Poelt",1520]
["Vezdaea retigera Poelt & Döbbeler",1522]
["Vezdaea rheocarpa Poelt & Döbbeler",4464]
["Vezdaea stipitata Poelt & Döbbeler",1523]
["Violella",22358]
["Violella fucata (Stirt.) T. Sprib.",910]
["Vulpicida",22359]
["Vulpicida juniperinus (L.) J.-E. Mattsson & M. J. Lai","6047"]
["Vulpicida pinastri (Scop.) J.-E. Mattsson & M. J. Lai s. lat.",337]
["Vulpicida pinastri (Scop.) J.-E. Mattsson & M. J. Lai var.  pinastri","25232"]
["Vulpicida pinastri (Scop.) J.-E. Mattsson & M. J. Lai var. soralifera (Frey) J.-E. Mattsson","25233"]
["Xalocoa ","25234"]
["Xalocoa ocellata (Fr.) Kraichak, Lücking & Lumbsch",20478]
["Xanthocarpia ","25235"]
["Xanthocarpia epigaea (Søchting, Huneck & Etayo) Frödén, Arup & Søchting,",21972]
["Xanthomendoza ","25236"]
["Xanthomendoza fallax Søchting, Kärnefelt & S.Y. Kondr.",1529]
["Xanthomendoza fulva (Hoffm.) Søchting, Kärnefelt & S.Y. Kondr., ",1971]
["Xanthomendoza huculica (S.Y. Kondr.) Diederich","25264"]
["Xanthomendoza ulophyllodes (Räsänen) Søchting, Kärnefelt & S.Y. Kondr.",2015]
["Xanthoparmelia",22360]
["Xanthoparmelia conspersa (Ehrh. Ex Ach.) Hale",988]
["Xanthoparmelia loxodes (Nyl.) O. Blanco, A. Crespo, Elix, D. Hawksw. & Lumbsch",1003]
["Xanthoparmelia mougeotii (Schaer. ex D. Dietr.) Hale",1005]
["Xanthoparmelia pulla (Ach.) O. Blanco, A. Crespo, Elix, D. Hawksw. & Lumbsch s. lat. ",1014]
["Xanthoparmelia pulla (Ach.) O. Blanco, A. Crespo, Elix, D. Hawksw. & Lumbsch subsp. luteonotata (J. Steiner) ined.","25237"]
["Xanthoparmelia pulla (Ach.) O. Blanco, A. Crespo, Elix, D. Hawksw. & Lumbsch subsp. pulla var. delisei (Duby) ined. ","25238"]
["Xanthoparmelia pulla (Ach.) O. Blanco, A. Crespo, Elix, D. Hawksw. & Lumbsch subsp. pulla var. glabrans (Nyl.) ined. ","25239"]
["Xanthoparmelia pulla (Ach.) O. Blanco, A. Crespo, Elix, D. Hawksw. & Lumbsch subsp. pulla var. perrugata (Nyl.) ined.","25240"]
["Xanthoparmelia pulla (Ach.) O. Blanco, A. Crespo, Elix, D. Hawksw. & Lumbsch subsp. pulla var. pulla ","1009"]
["Xanthoparmelia stenophylla (Ach.) Ahti & D. Hawksw.","3685"]
["Xanthoparmelia tinctina (Maheu & A. Gillet) Hale","3684"]
["Xanthoparmelia verruculifera (Nyl.) O. Blanco, A. Crespo, Elix, D. Hawksw. & Lumbsch",1026]
["Xanthoria",5474]
["Xanthoria calcicola Oxner",1526]
["Xanthoria elegans (Link) Th. Fr. s. lat.","1528"]
["Xanthoria elegans (Link) Th. Fr. subsp. elegans","25241"]
["Xanthoria elegans (Link) Th. Fr. subsp. orbicularis (Schaer.) Clauzade & Cl. Roux","25242"]
["Xanthoria elegans (Link) Th. Fr. var. granulifera Giralt, Nimis & Poelt","25243"]
["Xanthoria nowakii S. Y. Kondr. & Bielczyk",20670]
["Xanthoria parietina (L.) Th. Fr. s. lat.",1530]
["Xanthoria parietina (L.) Th. Fr. subsp. ectanea sensu Clauzade & Cl. Roux non (Ach.) Clauzade & Cl. Roux","25244"]
["Xanthoria parietina (L.) Th. Fr. subsp. parietina","25245"]
["Xanthoria sorediata (Vain.) Poelt","4467"]
["Xylographa",22361]
["Xylographa pallens (Nyl.) Malmgren","25246"]
["Xylographa parallela (Ach. : Fr.) Fr.",1532]
["Xylographa soralifera Holien & Tønsberg","25247"]
["Xylographa trunciseda (Th. Fr.) Minks ex Redinger",1533]
["Xylographa vitiligo (Ach.) J. R. Laundon",1534]
["Xylopsora caradocensis (Leight. ex Nyl.) Bendiksby & Timdal",576]
["Xylopsora friesii (Ach.) Bendiksby & Timdal",577]
["Zahlbrucknerella",22362]
["Zahlbrucknerella calcarea (Herre) Herre",20739]
["Zamenhofia",22363]
["Zamenhofia hibernica (P. James & Swinscow) Clauzade & Cl. Roux",1178]
["Zamenhofia pseudohibernica (Tretiach) Cl. Roux & Tretiach","22374"]
["Zwackhia viridis (Ach.) Poetsch & Schied.",966]

{"sheet":"Artenliste_M","index":5,"n_rows":1606,"n_cols":3,"rows_kept":1606,"cut":false,"hidden":false,"merged":[]}
["infoflora_taxon_id","Rang","Taxonname"]
[85001,"genus","Anthoceros L."]
[85002,"aggr","Anthoceros punctatus aggr."]
[85003,"sp","Anthoceros agrestis Paton"]
[85004,"sp","Anthoceros punctatus L."]
[85005,"genus","Phaeoceros Prosk."]
[85006,"sp","Phaeoceros laevis (L.) Prosk."]
[85007,"subsp","Phaeoceros laevis subsp. carolinianus (Michx.) Prosk."]
[85147,"genus","Haplomitrium Nees, nom. cons."]
[85148,"sp","Haplomitrium hookeri (Sm.) Nees"]
[85392,"genus","Syzygiella Spruce"]
[85393,"sp","Syzygiella autumnalis (DC.) K.Feldberg & al."]
[85066,"genus","Cephalozia (Dumort.) Dumort."]
[86612,"sp","Cephalozia albescens (Hook.) Dumort."]
[85067,"sp","Cephalozia catenulata (Huebener) Lindb."]
[85068,"subsp","Cephalozia catenulata (Huebener) Lindb. subsp. catenulata"]
[85069,"sp","Cephalozia connivens (Dicks.) Lindb."]
[85070,"subsp","Cephalozia connivens (Dicks.) Lindb. subsp. connivens"]
[86617,"sp","Cephalozia curvifolia (Dicks.) Dumort."]
[85071,"sp","Cephalozia leucantha Spruce"]
[85072,"sp","Cephalozia loitlesbergeri Schiffn."]
[85073,"sp","Cephalozia lunulifolia (Dumort.) Dumort."]
[85074,"sp","Cephalozia macrostachya Kaal."]
[85075,"subsp","Cephalozia macrostachya Kaal. subsp. macrostachya"]
[85076,"sp","Cephalozia pleniceps (Austin) Lindb."]
[85077,"aggr","Cephalozia bicuspidata aggr."]
[85078,"sp","Cephalozia ambigua C.Massal."]
[85079,"sp","Cephalozia bicuspidata (L.) Dumort."]
[85262,"genus","Odontoschisma (Dumort.) Dumort."]
[85263,"sp","Odontoschisma denudatum (Mart.) Dumort."]
[86599,"subsp","Odontoschisma denudatum (Mart.) Dumort. subsp. denudatum"]
[85264,"sp","Odontoschisma elongatum (Lindb.) A.Evans"]
[86616,"sp","Odontoschisma fluitans (Nees) L.Söderstr. & Váňa"]
[86623,"sp","Odontoschisma francisci (Hook.) L.Söderstr. & Váňa"]
[85265,"sp","Odontoschisma macounii (Austin) Underw."]
[85266,"sp","Odontoschisma sphagni (Dicks.) Dumort."]
[85154,"genus","Hygrobiella Spruce"]
[85155,"sp","Hygrobiella laxifolia (Hook.) Spruce"]
[85080,"genus","Cephaloziella (Spruce) Schiffn., nom. cons."]
[85081,"sp","Cephaloziella divaricata (Sm.) Schiffn."]
[85082,"sp","Cephaloziella elachista (Gottsche & Rabenh.) Schiffn."]
[85083,"sp","Cephaloziella grimsulana (Gottsche & Rabenh.) Lacout."]
[85084,"sp","Cephaloziella integerrima (Lindb.) Warnst."]
[85085,"sp","Cephaloziella massalongi (Spruce) Müll.Frib."]
[85086,"sp","Cephaloziella phyllacantha (C.Massal. & Carestia) Müll.Frib."]
[85087,"sp","Cephaloziella spinigera (Lindb.) Jørg."]
[85088,"sp","Cephaloziella stellulifera (Carrington & Pearson) Croz."]
[85089,"sp","Cephaloziella varians (Gottsche) Steph."]
[85090,"aggr","Cephaloziella rubella aggr."]
[85091,"sp","Cephaloziella elegans (Heeg) Schiffn."]
[85092,"sp","Cephaloziella hampeana (Nees) Loeske"]
[85093,"sp","Cephaloziella rubella (Nees) Warnst."]
[85008,"genus","Anastrepta (Lindb.) Schiffn."]
[85009,"sp","Anastrepta orcadensis (Hook.) Schiffn."]
[85010,"genus","Anastrophyllum (Spruce) Steph."]
[85011,"sp","Anastrophyllum assimile (Mitt.) Steph."]
[85012,"sp","Anastrophyllum hellerianum (Lindenb.) R.M.Schust."]
[85013,"sp","Anastrophyllum minutum (Schreb.) R.M.Schust."]
[85014,"subsp","Anastrophyllum minutum (Schreb.) R.M.Schust. subsp. minutum"]
[85031,"genus","Barbilophozia Loeske"]
[85032,"sp","Barbilophozia atlantica (Kaal.) Müll.Frib."]
[85033,"sp","Barbilophozia attenuata (Mart.) Loeske"]
[85034,"sp","Barbilophozia barbata (Schreb.) Loeske"]
[85035,"sp","Barbilophozia floerkei (F.Weber & D.Mohr) Loeske"]
[85036,"sp","Barbilophozia kunzeana (Huebener) Müll.Frib."]
[85037,"sp","Barbilophozia quadriloba (Lindb.) Loeske"]
[85038,"aggr","Barbilophozia lycopodioides aggr."]
[85039,"sp","Barbilophozia hatcheri (A.Evans) Loeske"]
[85040,"sp","Barbilophozia lycopodioides (Wallr.) Loeske"]
[85045,"genus","Biantheridion (Grolle) Konstant. & Vilnet"]
[85046,"sp","Biantheridion undulifolium (Nees) Konstant. & Vilnet"]
[85110,"genus","Diplophyllum (Dumort.) Dumort., nom. cons."]
[85114,"sp","Diplophyllum albicans (L.) Dumort."]
[85111,"sp","Diplophyllum obtusifolium (Hook.) Dumort."]
[87979,"subsp","Diplophyllum obtusifolium (Hook.) Dumort. subsp. obtusifolium"]
[85112,"sp","Diplophyllum taxifolium (Wahlenb.) Dumort."]
[85136,"genus","Gymnocolea (Dumort.) Dumort."]
[85137,"sp","Gymnocolea inflata (Huds.) Dumort."]
[85138,"subsp","Gymnocolea inflata (Huds.) Dumort. subsp. inflata"]
[85190,"genus","Lophozia (Dumort.) Dumort."]
[85191,"sp","Lophozia ascendens (Warnst.) R.M.Schust."]
[85192,"sp","Lophozia bicrenata (Hoffm.) Dumort."]
[85193,"sp","Lophozia decolorans (Limpr.) Steph."]
[85194,"sp","Lophozia excisa (Dicks.) Dumort."]
[85195,"sp","Lophozia grandiretis (Kaal.) Schiffn."]
[85196,"sp","Lophozia laxa (Lindb.) Grolle"]
[85197,"sp","Lophozia obtusa (Lindb.) A.Evans"]
[85198,"sp","Lophozia perssonii H.Buch & S.W.Arnell"]
[85199,"sp","Lophozia sudetica (Huebener) Grolle"]
[85200,"sp","Lophozia wenzelii (Nees) Steph."]
[85201,"aggr","Lophozia incisa aggr."]
[85202,"sp","Lophozia incisa (Schrad.) Dumort."]
[85203,"sp","Lophozia opacifolia (Culm.) Meyl."]
[85204,"aggr","Lophozia ventricosa aggr."]
[85205,"sp","Lophozia longidens (Lindb.) Macoun"]
[85206,"subsp","Lophozia longidens (Lindb.) Macoun subsp. longidens"]
[85207,"sp","Lophozia longiflora (Nees) Schiffn."]
[85208,"sp","Lophozia silvicola H.Buch"]
[85209,"sp","Lophozia ventricosa (Dicks.) Dumort."]
[85349,"genus","Scapania (Dumort.) Dumort., nom. cons."]
[85350,"sp","Scapania aequiloba (Schwägr.) Dumort."]
[85351,"sp","Scapania aspera Bernet & M.Bernet"]
[85352,"sp","Scapania calcicola (Arnell & J.Perss.) Ingham"]
[85353,"sp","Scapania compacta (Roth) Dumort."]
[85354,"sp","Scapania curta (Mart.) Dumort."]
[85355,"sp","Scapania cuspiduligera (Nees) Müll.Frib."]
[85356,"sp","Scapania gymnostomophila Kaal."]
[85357,"sp","Scapania helvetica Gottsche"]
[85359,"sp","Scapania irrigua (Nees) Nees"]
[85360,"subsp","Scapania irrigua (Nees) Nees subsp. irrigua"]
[85361,"sp","Scapania paludicola Loeske & Müll.Frib."]
[85362,"sp","Scapania scandica (Arnell & H.Buch) Macvicar"]
[85363,"sp","Scapania scapanioides (C.Massal.) Grolle"]
[85364,"sp","Scapania umbrosa (Schrad.) Dumort."]
[85365,"sp","Scapania verrucosa Heeg"]
[85366,"aggr","Scapania apiculata aggr."]
[85367,"sp","Scapania apiculata Spruce"]
[85368,"sp","Scapania carinthiaca Lindb."]
[85369,"aggr","Scapania mucronata aggr."]
[85370,"sp","Scapania mucronata H.Buch"]
[85371,"sp","Scapania praetervisa Meyl."]
[85372,"aggr","Scapania nemorea aggr."]
[85373,"sp","Scapania crassiretis Bryhn"]
[85374,"sp","Scapania nemorea (L.) Grolle"]
[85375,"aggr","Scapania uliginosa aggr."]
[85376,"sp","Scapania paludosa (Müll.Frib.) Müll.Frib."]
[85377,"sp","Scapania uliginosa (Lindenb.) Dumort."]
[85378,"aggr","Scapania undulata aggr."]
[85379,"sp","Scapania obscura (Arnell & C.E.O.Jensen) Schiffn."]
[85380,"sp","Scapania subalpina (Lindenb.) Dumort."]
[85381,"sp","Scapania undulata (L.) Dumort."]
[85398,"genus","Tritomaria Loeske"]
[85399,"sp","Tritomaria exsecta (Schmidel) Loeske"]
[85400,"subsp","Tritomaria exsecta (Schmidel) Loeske subsp. exsecta"]
[85401,"sp","Tritomaria exsectiformis (Breidl.) Loeske"]
[85402,"subsp","Tritomaria exsectiformis (Breidl.) Loeske subsp. exsectiformis"]
[85403,"sp","Tritomaria polita (Nees) Jørg."]
[85404,"subsp","Tritomaria polita (Nees) Jørg. subsp. polita"]
[85405,"sp","Tritomaria quinquedentata (Huds.) H.Buch"]
[85407,"sp","Tritomaria scitula (Taylor) Jørg."]
[85017,"genus","Anthelia (Dumort.) Dumort."]
[85018,"aggr","Anthelia julacea aggr."]
[85019,"sp","Anthelia julacea (L.) Dumort."]
[85020,"sp","Anthelia juratzkana (Limpr.) Trevis."]
[85053,"genus","Calypogeia Raddi, nom. cons."]
[85054,"sp","Calypogeia arguta Nees & Mont."]
[85055,"sp","Calypogeia fissa (L.) Raddi"]
[85056,"subsp","Calypogeia fissa (L.) Raddi subsp. fissa"]
[85057,"sp","Calypogeia integristipula Steph."]
[85058,"sp","Calypogeia neesiana (C.Massal. & Carestia) Müll.Frib."]
[85059,"subsp","Calypogeia neesiana (C.Massal. & Carestia) Müll.Frib. subsp. neesiana"]
[85060,"sp","Calypogeia sphagnicola (Arnell & J.Perss.) Warnst."]
[85061,"sp","Calypogeia suecica (Arnell & J.Perss.) Müll.Frib."]
[85062,"aggr","Calypogeia muelleriana aggr."]
[85063,"sp","Calypogeia azurea Stotler & Crotz"]
[85064,"sp","Calypogeia muelleriana (Schiffn.) Müll.Frib."]
[85065,"subsp","Calypogeia muelleriana (Schiffn.) Müll.Frib. subsp. muelleriana"]
[85134,"genus","Geocalyx Nees"]
[85135,"sp","Geocalyx graveolens (Schrad.) Nees"]
[85151,"genus","Harpanthus Nees"]
[85152,"sp","Harpanthus flotovianus (Nees) Nees"]
[85153,"sp","Harpanthus scutatus (F.Weber & D.Mohr) Spruce"]
[85139,"genus","Gymnomitrion Corda, nom. cons."]
[85140,"sp","Gymnomitrion adustum Nees"]
[85141,"sp","Gymnomitrion alpinum (Husn.) Schiffn."]
[85142,"sp","Gymnomitrion brevissimum (Dumort.) Warnst."]
[85143,"sp","Gymnomitrion commutatum (Limpr.) Schiffn."]
[85144,"sp","Gymnomitrion concinnatum (Lightf.) Corda"]
[85145,"sp","Gymnomitrion corallioides Nees"]
[85146,"sp","Gymnomitrion obtusum Lindb."]
[86637,"sp","Gymnomitrion revolutum (Nees) H.Philib."]
[87464,"subsp","Gymnomitrion revolutum (Nees) H.Philib. subsp. revolutum"]
[85226,"genus","Marsupella Dumort."]
[85227,"sp","Marsupella apiculata Schiffn."]
[85228,"sp","Marsupella boeckii (Austin) Kaal."]
[85229,"sp","Marsupella emarginata (Ehrh.) Dumort."]
[85230,"subsp","Marsupella emarginata (Ehrh.) Dumort. subsp. emarginata"]
[85231,"subsp","Marsupella emarginata subsp. aquatica (Lindenb.) Meyl."]
[85232,"sp","Marsupella funckii (F.Weber & D.Mohr) Dumort."]
[85233,"sp","Marsupella sparsifolia (Lindb.) Dumort."]
[85234,"subsp","Marsupella sparsifolia (Lindb.) Dumort. subsp. sparsifolia"]
[85235,"sp","Marsupella sphacelata (Lindenb.) Dumort."]
[85236,"sp","Marsupella sprucei (Limpr.) Bernet"]
[85298,"genus","Prasanthus Lindb."]
[85299,"sp","Prasanthus suecicus (Gottsche) Lindb."]
[86590,"genus","Endogemma Konstant. & al."]
[86559,"sp","Endogemma caespiticia Konstant. & al."]
[85115,"genus","Eremonotus Pearson"]
[85116,"sp","Eremonotus myriocarpus (Carrington) Pearson"]
[85156,"genus","Jungermannia L."]
[85157,"sp","Jungermannia atrovirens Dumort."]
[85158,"sp","Jungermannia borealis Damsh. & Váňa"]
[85159,"sp","Jungermannia exsertifolia Steph."]
[85160,"subsp","Jungermannia exsertifolia subsp. cordifolia (Dumort.) Váňa"]
[85161,"sp","Jungermannia polaris Lindb."]
[85162,"sp","Jungermannia pumila With."]
[85181,"genus","Liochlaena Nees"]
[85182,"sp","Liochlaena lanceolata Nees"]
[86646,"genus","Mesoptychia (Lindb. & Arnell) A.Evans"]
[86626,"sp","Mesoptychia badensis (Rabenh.) L.Söderstr. & Váňa"]
[86634,"sp","Mesoptychia gillmanii (Austin) L.Söderstr. & Váňa"]
[86635,"sp","Mesoptychia heterocolpos (Hartm.) L.Söderstr. & Váňa"]
[86640,"sp","Mesoptychia turbinata (Raddi) L.Söderstr. & Váňa"]
[86613,"aggr","Mesoptychia bantriensis aggr."]
[86627,"sp","Mesoptychia bantriensis (Hook.) L.Söderstr. & Váňa"]
[87552,"subsp","Mesoptychia bantriensis (Hook.) L.Söderstr. & Váňa subsp. bantriensis"]
[86631,"sp","Mesoptychia collaris (Nees) L.Söderstr. & Váňa"]
[85253,"genus","Nardia Gray, nom. cons."]
[85254,"sp","Nardia breidleri (Limpr.) Lindb."]
[85255,"sp","Nardia compressa (Hook.) Gray"]
[85256,"sp","Nardia geoscyphus (De Not.) Lindb."]
[85257,"sp","Nardia insecta Lindb."]
[85258,"sp","Nardia scalaris Gray"]
[85382,"genus","Solenostoma Mitt."]
[85384,"sp","Solenostoma confertissimum (Nees) Schljakov"]
[85385,"sp","Solenostoma gracillimum (Sm.) R.M.Schust."]
[86560,"sp","Solenostoma hyalinum (Lyell) Mitt."]
[85387,"sp","Solenostoma obovatum (Nees) C.Massal."]
[85388,"sp","Solenostoma sphaerocarpum (Hook.) Steph."]
[85389,"sp","Solenostoma subellipticum (Heeg) R.M.Schust."]
[85250,"genus","Mylia Gray"]
[85251,"sp","Mylia anomala (Hook.) Gray"]
[85252,"sp","Mylia taylorii (Hook.) Gray"]
[85041,"genus","Bazzania Gray, nom. cons."]
[85042,"sp","Bazzania flaccida (Dumort.) Grolle"]
[85043,"sp","Bazzania tricrenata (Wahlenb.) Lindb."]
[85044,"sp","Bazzania trilobata (L.) Gray"]
[85163,"genus","Kurzia G.Martens"]
[85164,"sp","Kurzia pauciflora (Dicks.) Grolle"]
[85165,"sp","Kurzia trichoclados (Müll.Frib.) Grolle"]
[85179,"genus","Lepidozia (Dumort.) Dumort., nom. cons."]
[85180,"sp","Lepidozia reptans (L.) Dumort."]
[85094,"genus","Chiloscyphus Corda"]
[85095,"aggr","Chiloscyphus polyanthos aggr."]
[85096,"sp","Chiloscyphus pallescens (Ehrh.) Dumort."]
[85097,"sp","Chiloscyphus polyanthos (L.) Corda"]
[85183,"genus","Lophocolea (Dumort.) Dumort."]
[85184,"sp","Lophocolea bidentata (L.) Dumort."]
[85186,"aggr","Lophocolea heterophylla aggr."]
[85187,"sp","Lophocolea heterophylla (Schrad.) Dumort."]
[85188,"subsp","Lophocolea heterophylla (Schrad.) Dumort. subsp. heterophylla"]
[85189,"sp","Lophocolea minor Nees"]
[85269,"genus","Pedinophyllum Nordst."]
[85270,"sp","Pedinophyllum interruptum (Nees) Kaal."]
[85283,"genus","Plagiochila (Dumort.) Dumort., nom. cons."]
[85284,"sp","Plagiochila exigua (Taylor) Taylor"]
[85285,"aggr","Plagiochila asplenioides aggr."]
[85286,"sp","Plagiochila asplenioides (L.) Dumort."]
[85287,"sp","Plagiochila britannica Paton"]
[85288,"sp","Plagiochila porelloides (Nees) Lindenb."]
[85049,"genus","Blepharostoma (Dumort.) Dumort."]
[85050,"sp","Blepharostoma trichophyllum (L.) Dumort."]
[85051,"subsp","Blepharostoma trichophyllum (L.) Dumort. subsp. trichophyllum"]
[85052,"subsp","Blepharostoma trichophyllum subsp. brevirete (Bryhn & Kaal.) R.M.Schust."]
[85396,"genus","Trichocolea Dumort., nom. cons."]
[85397,"sp","Trichocolea tomentella (Ehrh.) Dumort."]
[85125,"genus","Frullania Raddi"]
[85126,"sp","Frullania dilatata (L.) Dumort."]
[85127,"sp","Frullania fragilifolia (Taylor) Gottsche & al."]
[85128,"sp","Frullania inflata Gottsche"]
[85129,"sp","Frullania jackii Gottsche"]
[85130,"sp","Frullania parvistipula Steph."]
[85131,"sp","Frullania riparia Hampe"]
[85132,"sp","Frullania tamarisci (L.) Dumort."]
[85101,"genus","Cololejeunea (Spruce) Steph."]
[85102,"sp","Cololejeunea calcarea (Lib.) Steph."]
[85103,"sp","Cololejeunea rossettiana (C.Massal.) Schiffn."]
[85149,"genus","Harpalejeunea (Spruce) Schiffn."]
[85150,"sp","Harpalejeunea molleri (Steph.) Grolle"]
[85174,"genus","Lejeunea Lib., nom. cons."]
[85175,"aggr","Lejeunea cavifolia aggr."]
[85176,"sp","Lejeunea cavifolia (Ehrh.) Lindb."]
[85177,"sp","Lejeunea lamacerina (Steph.) Schiffn."]
[85178,"subsp","Lejeunea lamacerina (Steph.) Schiffn. subsp. lamacerina"]
[85243,"genus","Microlejeunea (Spruce) Steph."]
[85244,"sp","Microlejeunea ulicina (Taylor) Steph."]
[85291,"genus","Porella L."]
[85292,"sp","Porella arboris-vitae (With.) Grolle"]
[85293,"subsp","Porella arboris-vitae (With.) Grolle subsp. arboris-vitae"]
[85294,"sp","Porella cordaeana (Huebener) Moore"]
[85295,"aggr","Porella platyphylla aggr."]
[85296,"sp","Porella baueri (Schiffn.) C.E.O.Jensen"]
[85297,"sp","Porella platyphylla (L.) Pfeiff."]
[85307,"genus","Radula Dumort., nom. cons."]
[85308,"sp","Radula complanata (L.) Dumort."]
[85309,"subsp","Radula complanata (L.) Dumort. subsp. complanata"]
[85310,"subsp","Radula complanata subsp. lindenbergiana (C.Hartm.) R.M.Schust."]
[85303,"genus","Ptilidium Nees"]
[85304,"aggr","Ptilidium ciliare aggr."]
[85305,"sp","Ptilidium ciliare (L.) Hampe"]
[85306,"sp","Ptilidium pulcherrimum (Weber) Vain."]
[85015,"genus","Aneura Dumort."]
[85016,"sp","Aneura pinguis (L.) Dumort."]
[85314,"genus","Riccardia Gray, nom. cons."]
[85315,"sp","Riccardia chamedryfolia (With.) Grolle"]
[85316,"sp","Riccardia incurvata Lindb."]
[85317,"sp","Riccardia latifrons (Lindb.) Lindb."]
[85318,"subsp","Riccardia latifrons (Lindb.) Lindb. subsp. latifrons"]
[85319,"sp","Riccardia multifida (L.) Gray"]
[85320,"subsp","Riccardia multifida (L.) Gray subsp. multifida"]
[85321,"sp","Riccardia palmata (Hedw.) Carruth."]
[85237,"genus","Metzgeria Raddi"]
[85238,"sp","Metzgeria conjugata Lindb."]
[85239,"subsp","Metzgeria conjugata Lindb. subsp. conjugata"]
[85240,"sp","Metzgeria furcata (L.) Corda"]
[86632,"sp","Metzgeria pubescens (Schrank) Raddi"]
[85241,"sp","Metzgeria temperata Kuwah."]
[85242,"sp","Metzgeria violacea (Ach.) Dumort."]
[85117,"genus","Fossombronia Raddi"]
[85118,"sp","Fossombronia angulosa (Dicks.) Raddi"]
[85119,"sp","Fossombronia caespitiformis (Raddi) Rabenh."]
[85120,"subsp","Fossombronia caespitiformis subsp. multispira (Schiffn.) J.R.Bray & Cargill"]
[85121,"sp","Fossombronia foveolata Lindb."]
[85122,"sp","Fossombronia incurva Lindb."]
[85123,"sp","Fossombronia pusilla (L.) Nees"]
[85124,"sp","Fossombronia wondraczekii (Corda) Lindb."]
[85245,"genus","Moerckia Gottsche"]
[85246,"sp","Moerckia blyttii (Mørch) Brockm."]
[85247,"aggr","Moerckia hibernica aggr."]
[85248,"sp","Moerckia flotoviana (Nees) Schiffn."]
[85271,"genus","Pellia Raddi, nom. cons."]
[85272,"sp","Pellia endiviifolia (Dicks.) Dumort."]
[85274,"aggr","Pellia epiphylla aggr."]
[85275,"sp","Pellia epiphylla (L.) Corda"]
[85276,"subsp","Pellia epiphylla (L.) Corda subsp. epiphylla"]
[85277,"sp","Pellia neesiana (Gottsche) Limpr."]
[85278,"subsp","Pellia neesiana (Gottsche) Limpr. subsp. neesiana"]
[85047,"genus","Blasia L."]
[85048,"sp","Blasia pusilla L."]
[85210,"genus","Lunularia Adans."]
[85211,"sp","Lunularia cruciata (L.) Lindb."]
[85212,"subsp","Lunularia cruciata (L.) Lindb. subsp. cruciata"]
[85025,"genus","Asterella P.Beauv."]
[85027,"sp","Asterella lindenbergiana (Nees) Arnell"]
[85028,"sp","Asterella saccata (Wahlenb.) A.Evans"]
[85213,"genus","Mannia Corda, nom. cons."]
[85214,"sp","Mannia androgyna (L.) A.Evans"]
[86633,"sp","Mannia gracilis (F.Weber) D.B.Schill & D.G.Long"]
[85217,"sp","Mannia pilosa (Hornem.) Frye & L.Clark"]
[85218,"sp","Mannia triandra (Scop.) Grolle"]
[86639,"aggr","Mannia fragrans aggr."]
[86586,"sp","Mannia controversa (Meyl.) D.B.Schill"]
[86587,"subsp","Mannia controversa (Meyl.) D.B.Schill subsp. controversa"]
[85215,"sp","Mannia fragrans (Balb.) Frye & L.Clark"]
[85216,"subsp","Mannia fragrans (Balb.) Frye & L.Clark subsp. fragrans"]
[85281,"genus","Plagiochasma Lehm., nom. cons."]
[85282,"sp","Plagiochasma rupestre (J.R.Forst. & G.Forst.) Steph."]
[85311,"genus","Reboulia Raddi, nom. cons."]
[85312,"sp","Reboulia hemisphaerica (L.) Raddi"]
[85313,"subsp","Reboulia hemisphaerica (L.) Raddi subsp. hemisphaerica"]
[86650,"genus","Clevea Lindb."]
[86636,"sp","Clevea hyalina (Sommerf.) Lindb."]
[85279,"genus","Peltolepis Lindb."]
[85280,"sp","Peltolepis quadrata (Saut.) Müll.Frib."]
[85347,"genus","Sauteria Nees"]
[85348,"sp","Sauteria alpina (Nees) Nees"]
[85104,"genus","Conocephalum Hill, nom. cons."]
[85105,"aggr","Conocephalum conicum aggr."]
[85106,"sp","Conocephalum conicum (L.) Dumort."]
[85107,"sp","Conocephalum salebrosum Szweyk. & al."]
[85108,"genus","Corsinia Raddi"]
[85109,"sp","Corsinia coriandrina (Spreng.) Lindb."]
[85219,"genus","Marchantia L."]
[85220,"sp","Marchantia paleacea Bertol."]
[85221,"subsp","Marchantia paleacea Bertol. subsp. paleacea"]
[85222,"sp","Marchantia polymorpha L."]
[85223,"subsp","Marchantia polymorpha L. subsp. polymorpha"]
[85224,"subsp","Marchantia polymorpha subsp. montivagans Bischl. & Boissel.-Dub."]
[85225,"subsp","Marchantia polymorpha subsp. ruderalis Bischl. & Boissel.-Dub."]
[85300,"genus","Preissia Corda"]
[85301,"sp","Preissia quadrata (Scop.) Nees"]
[85302,"subsp","Preissia quadrata (Scop.) Nees subsp. quadrata"]
[85267,"genus","Oxymitra Lindenb."]
[85268,"sp","Oxymitra incrassata (Brot.) Sérgio & Sim-Sim"]
[86594,"genus","Riccia L."]
[85322,"sp","Riccia bifurca Hoffm."]
[85323,"sp","Riccia breidleri Steph."]
[85324,"sp","Riccia canaliculata Hoffm."]
[85325,"sp","Riccia cavernosa Hoffm."]
[85339,"sp","Riccia ciliata Hoffm."]
[85327,"sp","Riccia crozalsii Levier"]
[85328,"sp","Riccia glauca L."]
[85330,"sp","Riccia huebeneriana Lindenb."]
[85331,"sp","Riccia ligula Steph."]
[85332,"sp","Riccia michelii Raddi"]
[85333,"sp","Riccia nigrella DC."]
[85334,"sp","Riccia sorocarpa Bisch."]
[85335,"subsp","Riccia sorocarpa Bisch. subsp. sorocarpa"]
[85336,"sp","Riccia subbifurca Croz."]
[85337,"sp","Riccia warnstorfii Warnst."]
[87586,"aggr","Riccia ciliifera aggr."]
[85326,"sp","Riccia ciliifera Link"]
[85329,"sp","Riccia gougetiana Durieu & Mont."]
[85341,"aggr","Riccia fluitans aggr."]
[86593,"sp","Riccia fluitans L."]
[85342,"sp","Riccia rhenana Müll.Frib."]
[85343,"genus","Ricciocarpos Corda"]
[85344,"sp","Ricciocarpos natans (L.) Corda"]
[85394,"genus","Targionia L."]
[85395,"sp","Targionia hypophylla L."]
[85345,"genus","Riella Mont."]
[85346,"sp","Riella notarisii (Mont.) Mont."]
[85390,"genus","Sphaerocarpos Boehm."]
[85391,"sp","Sphaerocarpos texanus Austin"]
[85432,"genus","Andreaea Hedw."]
[85433,"sp","Andreaea heinemannii Hampe & Müll.Hal."]
[85434,"subsp","Andreaea heinemannii Hampe & Müll.Hal. subsp. heinemannii"]
[85435,"sp","Andreaea nivalis Hook."]
[85436,"aggr","Andreaea rothii aggr."]
[85437,"sp","Andreaea crassinervia Bruch"]
[85438,"sp","Andreaea frigida Huebener"]
[85439,"sp","Andreaea rothii F.Weber & D.Mohr"]
[85440,"subsp","Andreaea rothii F.Weber & D.Mohr subsp. rothii"]
[85441,"subsp","Andreaea rothii subsp. falcata (Schimp.) Lindb."]
[85442,"aggr","Andreaea rupestris aggr."]
[85443,"sp","Andreaea alpestris (Thed.) Schimp."]
[85444,"sp","Andreaea rupestris Hedw."]
[85492,"genus","Bartramia Hedw., nom. cons."]
[85493,"sp","Bartramia halleriana Hedw."]
[85494,"sp","Bartramia ithyphylla Brid."]
[85495,"subsp","Bartramia ithyphylla Brid. subsp. ithyphylla"]
[85496,"sp","Bartramia pomiformis Hedw."]
[85497,"sp","Bartramia subulata Bruch & Schimp."]
[85498,"subsp","Bartramia subulata Bruch & Schimp. subsp. subulata"]
[85532,"genus","Breutelia (Bruch & Schimp.) Schimp."]
[85533,"sp","Breutelia chrysocoma (Hedw.) Lindb."]
[85661,"genus","Conostomum F.Weber & D.Mohr"]
[85662,"sp","Conostomum tetragonum (Hedw.) Lindb."]
[86116,"genus","Philonotis Brid."]
[86117,"sp","Philonotis caespitosa Jur."]
[86118,"sp","Philonotis calcarea (Bruch & Schimp.) Schimp."]
[86119,"sp","Philonotis capillaris Lindb."]
[86120,"sp","Philonotis marchica (Hedw.) Brid."]
[86121,"sp","Philonotis rigida Brid."]
[86122,"sp","Philonotis seriata Mitt."]
[86123,"aggr","Philonotis fontana aggr."]
[86124,"sp","Philonotis fontana (Hedw.) Brid."]
[86125,"sp","Philonotis tomentella Molendo"]
[86145,"genus","Plagiopus Brid."]
[86146,"sp","Plagiopus oederianus (Sw.) H.A.Crum & L.E.Anderson"]
[85452,"genus","Anomobryum Schimp."]
[85453,"aggr","Anomobryum julaceum aggr."]
[85454,"sp","Anomobryum bavaricum (Warnst.) Holyoak & Köckinger"]
[85455,"sp","Anomobryum concinnatum (Spruce) Lindb."]
[85456,"sp","Anomobryum julaceum (G.Gaertn. & al.) Schimp."]
[85542,"genus","Bryum Hedw."]
[85543,"sp","Bryum algovicum Müll.Hal."]
[85569,"sp","Bryum archangelicum Bruch & Schimp."]
[85544,"sp","Bryum argenteum Hedw."]
[85545,"subsp","Bryum argenteum Hedw. subsp. argenteum"]
[85546,"subsp","Bryum argenteum subsp. veronense (De Not.) J.J.Amann"]
[87580,"sp","Bryum austriacum Köckinger & al."]
[85555,"sp","Bryum pallescens Schwägr., nom. cons."]
[85577,"sp","Bryum caespiticium Hedw."]
[86563,"subsp","Bryum caespiticium subsp. badium (Brid.) Lindb."]
[86564,"subsp","Bryum caespiticium Hedw. subsp. caespiticium"]
[86565,"subsp","Bryum caespiticium subsp. kunzei (Hornsch.) Podp."]
[85548,"sp","Bryum creberrimum Taylor"]
[85549,"sp","Bryum cyclophyllum (Schwägr.) Bruch & Schimp."]
[85551,"sp","Bryum funckii Schwägr."]
[85552,"sp","Bryum gemmiparum De Not."]
[85553,"sp","Bryum intermedium (Brid.) Blandow"]
[85554,"sp","Bryum longisetum Schwägr."]
[85556,"sp","Bryum pseudotriquetrum (Hedw.) G.Gaertn. & al."]
[85557,"subsp","Bryum pseudotriquetrum (Hedw.) G.Gaertn. & al. subsp. pseudotriquetrum"]
[85558,"subsp","Bryum pseudotriquetrum subsp. bimum (Schreb.) Hartm."]
[85559,"subsp","Bryum pseudotriquetrum subsp. neodamense (Itzigs.) J.J.Amann"]
[85561,"sp","Bryum uliginosum (Brid.) Bruch & Schimp."]
[85562,"sp","Bryum versicolor Bruch & Schimp."]
[85563,"sp","Bryum weigelii Spreng."]
[85564,"aggr","Bryum alpinum aggr."]
[85565,"sp","Bryum alpinum With."]
[85566,"sp","Bryum mildeanum Jur."]
[85567,"sp","Bryum muehlenbeckii Bruch & Schimp."]
[85571,"aggr","Bryum bicolor aggr."]
[85572,"sp","Bryum barnesii Schimp."]
[85573,"sp","Bryum bicolor Dicks."]
[85574,"sp","Bryum gemmiferum R.Wilczek & Demaret"]
[85575,"sp","Bryum gemmilucens R.Wilczek & Demaret"]
[86598,"aggr","Bryum blindii aggr."]
[85547,"sp","Bryum blindii Bruch & Schimp."]
[85579,"aggr","Bryum capillare aggr."]
[85580,"sp","Bryum capillare Hedw."]
[85581,"sp","Bryum elegans Nees"]
[85582,"sp","Bryum moravicum Podp."]
[85583,"sp","Bryum stirtonii Schimp."]
[85584,"sp","Bryum torquescens Bruch & Schimp."]
[85585,"aggr","Bryum pallens aggr."]
[85586,"sp","Bryum arcticum (R.Br.) Bruch & Schimp."]
[85587,"sp","Bryum pallens anon."]
[85588,"aggr","Bryum subapiculatum aggr."]
[85550,"sp","Bryum demaretianum Arts"]
[85589,"sp","Bryum klinggraeffii Schimp."]
[85560,"sp","Bryum radiculosum Brid."]
[85590,"sp","Bryum rubens Mitt."]
[85591,"sp","Bryum ruderale Crundw. & Nyholm"]
[85592,"sp","Bryum sauteri Bruch & Schimp."]
[85593,"sp","Bryum subapiculatum Hampe"]
[85594,"sp","Bryum violaceum Crundw. & Nyholm"]
[85595,"aggr","Bryum turbinatum aggr."]
[85596,"sp","Bryum schleicheri DC."]
[85597,"sp","Bryum turbinatum (Hedw.) Turner"]
[86133,"genus","Plagiobryum Lindb."]
[86134,"sp","Plagiobryum demissum (Hook.) Lindb."]
[86135,"sp","Plagiobryum zieri (Hedw.) Lindb."]
[86285,"genus","Rhodobryum (Schimp.) Limpr., nom. cons."]
[86286,"aggr","Rhodobryum roseum aggr."]
[86287,"sp","Rhodobryum ontariense (Kindb.) Kindb."]
[86288,"sp","Rhodobryum roseum (Hedw.) Limpr."]
[85635,"genus","Catoscopium Brid."]
[85636,"sp","Catoscopium nigritum (Hedw.) Brid."]
[85642,"genus","Cinclidium Sw."]
[85643,"sp","Cinclidium stygium Sw."]
[85686,"genus","Cyrtomnium Holmen"]
[85687,"sp","Cyrtomnium hymenophylloides (Huebener) T.J.Kop."]
[85814,"genus","Epipterygium Lindb."]
[85815,"sp","Epipterygium tozeri (Grev.) Lindb."]
[86028,"genus","Mielichhoferia Nees & Hornsch."]
[86029,"aggr","Mielichhoferia mielichhoferiana aggr."]
[86030,"sp","Mielichhoferia elongata (Hook.) Hornsch."]
[86031,"sp","Mielichhoferia mielichhoferiana (Funck) Loeske"]
[86032,"genus","Mnium Hedw., nom. cons."]
[86033,"sp","Mnium hornum Hedw."]
[86034,"sp","Mnium lycopodioides Schwägr."]
[86035,"sp","Mnium marginatum (Dicks.) P.Beauv."]
[86036,"sp","Mnium stellare Hedw."]
[86037,"sp","Mnium thomsonii Schimp."]
[86038,"aggr","Mnium spinosum aggr."]
[86039,"sp","Mnium spinosum (Voit) Schwägr."]
[86040,"sp","Mnium spinulosum Bruch & Schimp."]
[86136,"genus","Plagiomnium T.J.Kop."]
[86137,"sp","Plagiomnium cuspidatum (Hedw.) T.J.Kop."]
[86138,"sp","Plagiomnium rostratum (Schrad.) T.J.Kop."]
[86139,"sp","Plagiomnium undulatum (Hedw.) T.J.Kop."]
[86140,"aggr","Plagiomnium affine aggr."]
[86141,"sp","Plagiomnium affine (Funck) T.J.Kop."]
[86142,"sp","Plagiomnium elatum (Bruch & Schimp.) T.J.Kop."]
[86143,"sp","Plagiomnium ellipticum (Brid.) T.J.Kop."]
[86144,"sp","Plagiomnium medium (Bruch & Schimp.) T.J.Kop."]
[86173,"genus","Pohlia Hedw."]
[86174,"sp","Pohlia andalusica (Höhn.) Broth."]
[86175,"sp","Pohlia andrewsii A.J.Shaw"]
[86176,"sp","Pohlia annotina (Hedw.) Lindb."]
[86177,"sp","Pohlia bulbifera (Warnst.) Warnst."]
[86178,"sp","Pohlia camptotrachela (Renauld & Cardot) Broth."]
[86179,"sp","Pohlia cruda (Hedw.) Lindb."]
[86180,"sp","Pohlia drummondii (Müll.Hal.) A.L.Andrews"]
[86181,"sp","Pohlia elongata Hedw."]
[86182,"sp","Pohlia filum (Schimp.) Mårtensson"]
[86183,"sp","Pohlia flexuosa Hook."]
[86184,"sp","Pohlia lescuriana (Sull.) Ochi"]
[86185,"sp","Pohlia longicolla (Hedw.) Lindb."]
[86186,"sp","Pohlia ludwigii (Schwägr.) Broth."]
[86187,"sp","Pohlia lutescens (Limpr.) H.Lindb."]
[86188,"sp","Pohlia melanodon (Brid.) A.J.Shaw"]
[86189,"sp","Pohlia obtusifolia (Brid.) L.F.Koch"]
[86190,"sp","Pohlia proligera (Kindb.) Broth."]
[86191,"sp","Pohlia vexans (Limpr.) H.Lindb."]
[86192,"sp","Pohlia wahlenbergii (F.Weber & D.Mohr) A.L.Andrews"]
[86193,"aggr","Pohlia nutans aggr."]
[86194,"sp","Pohlia nutans (Hedw.) Lindb."]
[86195,"subsp","Pohlia nutans (Hedw.) Lindb. subsp. nutans"]
[86196,"sp","Pohlia sphagnicola (Bruch & Schimp.) Broth."]
[86219,"genus","Pseudobryum (Kindb.) T.J.Kop."]
[86220,"sp","Pseudobryum cinclidioides (Huebener) T.J.Kop."]
[86281,"genus","Rhizomnium (Broth.) T.J.Kop."]
[86282,"sp","Rhizomnium magnifolium (Horik.) T.J.Kop."]
[86283,"sp","Rhizomnium pseudopunctatum (Bruch & Schimp.) T.J.Kop."]
[86284,"sp","Rhizomnium punctatum (Hedw.) T.J.Kop."]
[85528,"genus","Braunia Bruch & Schimp."]
[85529,"sp","Braunia alopecura (Brid.) Limpr."]
[85912,"genus","Hedwigia P.Beauv., nom. cons."]
[85913,"aggr","Hedwigia ciliata aggr."]
[85914,"sp","Hedwigia ciliata (Hedw.) P.Beauv."]
[85915,"sp","Hedwigia stellata Hedenäs"]
[85770,"genus","Distichophyllum Dozy & Molk."]
[85771,"sp","Distichophyllum carinatum Dixon & W.E.Nicholson"]
[85936,"genus","Hookeria Sm., nom. cons."]
[85937,"sp","Hookeria lucens (Hedw.) Sm."]
[85421,"genus","Amblystegium Schimp."]
[85422,"sp","Amblystegium confervoides (Brid.) Schimp."]
[85423,"sp","Amblystegium radicale (P.Beauv.) Schimp."]
[85424,"sp","Amblystegium serpens (Hedw.) Schimp."]
[85425,"sp","Amblystegium subtile (Hedw.) Schimp."]
[85430,"genus","Anacamptodon Brid."]
[85431,"sp","Anacamptodon splachnoides (Brid.) Brid."]
[85610,"genus","Campyliadelphus (Kindb.) R.S.Chopra"]
[85611,"sp","Campyliadelphus chrysophyllus (Brid.) Kanda"]
[85612,"sp","Campyliadelphus elodes (Lindb.) Kanda"]
[85613,"genus","Campylium (Sull.) Mitt."]
[85614,"sp","Campylium stellatum (Hedw.) Lange & C.E.O.Jensen"]
[85615,"subsp","Campylium stellatum (Hedw.) Lange & C.E.O.Jensen subsp. stellatum"]
[85616,"subsp","Campylium stellatum subsp. protensum (Brid.) C.E.O.Jensen"]
[85659,"genus","Conardia H.Rob."]
[85660,"sp","Conardia compacta (Müll.Hal.) H.Rob."]
[86596,"genus","Cratoneuron (Sull.) Spruce"]
[85667,"aggr","Cratoneuron filicinum aggr."]
[85668,"sp","Cratoneuron curvicaule (Jur.) G.Roth"]
[85669,"sp","Cratoneuron filicinum (Hedw.) Spruce"]
[85782,"genus","Drepanocladus (Müll.Hal.) G.Roth, nom. cons."]
[85783,"sp","Drepanocladus aduncus (Hedw.) Warnst."]
[85784,"sp","Drepanocladus lycopodioides (Brid.) Warnst."]
[85785,"sp","Drepanocladus polygamus (Schimp.) Hedenäs"]
[85786,"sp","Drepanocladus sendtneri (H.Müll.) Warnst."]
[85787,"sp","Drepanocladus sordidus (Müll.Hal.) Hedenäs"]
[85788,"sp","Drepanocladus trifarius (F.Weber & D.Mohr) Paris"]
[85789,"sp","Drepanocladus turgescens (T.Jensen) Broth."]
[85940,"genus","Hygroamblystegium Loeske, nom. cons."]
[85941,"sp","Hygroamblystegium fluviatile (Hedw.) Loeske"]
[85942,"sp","Hygroamblystegium humile (P.Beauv.) Vanderp. & al."]
[85943,"sp","Hygroamblystegium tenax (Hedw.) Jenn."]
[85944,"sp","Hygroamblystegium varium (Hedw.) Mönk."]
[85945,"genus","Hygrohypnum Lindb."]
[85946,"sp","Hygrohypnum alpestre (Hedw.) Loeske"]
[85947,"sp","Hygrohypnum alpinum (Lindb.) Loeske"]
[85948,"sp","Hygrohypnum cochlearifolium (Venturi) Broth."]
[85949,"sp","Hygrohypnum duriusculum (De Not.) D.W.Jamieson"]
[85950,"sp","Hygrohypnum eugyrium (Schimp.) Broth."]
[85951,"sp","Hygrohypnum luridum (Hedw.) Jenn."]
[85952,"sp","Hygrohypnum molle (Hedw.) Loeske"]
[85953,"sp","Hygrohypnum norvegicum (Schimp.) J.J.Amann"]
[85954,"sp","Hygrohypnum ochraceum (Wilson) Loeske"]
[85955,"sp","Hygrohypnum smithii (Sw.) Broth."]
[85956,"sp","Hygrohypnum styriacum (Limpr.) Broth."]
[85997,"genus","Leptodictyum (Schimp.) Warnst."]
[85998,"sp","Leptodictyum riparium (Hedw.) Warnst."]
[86104,"genus","Palustriella Ochyra"]
[86106,"aggr","Palustriella commutata aggr."]
[86107,"sp","Palustriella commutata (Hedw.) Ochyra"]
[86108,"sp","Palustriella falcata (Brid.) Hedenäs"]
[86105,"sp","Palustriella decipiens (De Not.) Ochyra"]
[86162,"genus","Platydictya Berk."]
[86163,"sp","Platydictya jungermannioides (Brid.) H.A.Crum"]
[86309,"genus","Sanionia Loeske"]
[86310,"sp","Sanionia uncinata (Hedw.) Loeske"]
[86358,"genus","Scorpidium (Schimp.) Limpr."]
[86359,"sp","Scorpidium scorpioides (Hedw.) Limpr."]
[86360,"aggr","Scorpidium revolvens aggr."]
[86361,"sp","Scorpidium cossonii (Schimp.) Hedenäs"]
[86362,"sp","Scorpidium revolvens (anon.) Rubers"]
[85457,"genus","Anomodon Hook. & Taylor"]
[85458,"sp","Anomodon attenuatus (Hedw.) Huebener"]
[85459,"sp","Anomodon longifolius (Brid.) Hartm."]
[85460,"sp","Anomodon rostratus (Hedw.) Schimp."]
[85461,"sp","Anomodon rugelii (Müll.Hal.) Keissl."]
[85462,"sp","Anomodon tristis (Ces.) Sull. & Lesq."]
[85463,"sp","Anomodon viticulosus (Hedw.) Hook. & Taylor"]
[85505,"genus","Brachytheciastrum Ignatov & Huttunen"]
[85506,"sp","Brachytheciastrum collinum (Müll.Hal.) Ignatov & Huttunen"]
[85507,"sp","Brachytheciastrum trachypodium (Brid.) Ignatov & Huttunen"]
[85508,"sp","Brachytheciastrum velutinum (Hedw.) Ignatov & Huttunen"]
[85509,"genus","Brachythecium Schimp."]
[85511,"sp","Brachythecium geheebii Milde"]
[85512,"sp","Brachythecium tommasinii (Boulay) Ignatov & Huttunen"]
[86638,"aggr","Brachythecium sect. Albicans"]
[85515,"sp","Brachythecium erythrorrhizon Schimp."]
[85516,"subsp","Brachythecium erythrorrhizon Schimp. subsp. erythrorrhizon"]
[85517,"sp","Brachythecium laetum (Brid.) Schimp."]
[85513,"aggr","Brachythecium albicans aggr."]
[85514,"sp","Brachythecium albicans (Hedw.) Schimp."]
[87795,"sp","Brachythecium tauriscorum Molendo"]
[88157,"aggr","Brachythecium cirrosum aggr."]
[85510,"sp","Brachythecium cirrosum (Schwägr.) Schimp."]
[88132,"sp","Brachythecium japygum (Głow.) Köckinger & Jan Kučera"]
[85518,"aggr","Brachythecium rivulare aggr."]
[85519,"sp","Brachythecium campestre (Müll.Hal.) Schimp."]
[85520,"sp","Brachythecium mildeanum (Schimp.) Schimp."]
[85521,"sp","Brachythecium rivulare Schimp."]
[85522,"sp","Brachythecium rutabulum (Hedw.) Schimp."]
[86601,"sp","Brachythecium udum I.Hagen"]
[85523,"aggr","Brachythecium salebrosum aggr."]
[85524,"sp","Brachythecium capillaceum (F.Weber & D.Mohr) Giacom."]
[85525,"sp","Brachythecium glareosum (Spruce) Schimp."]
[85526,"sp","Brachythecium salebrosum (F.Weber & D.Mohr) Schimp., nom. cons."]
[85527,"sp","Brachythecium turgidum (Hartm.) Kindb."]
[85649,"genus","Cirriphyllum Grout"]
[85650,"sp","Cirriphyllum crassinervium (Taylor) Loeske & M.Fleisch."]
[85651,"sp","Cirriphyllum piliferum (Hedw.) Grout"]
[85818,"genus","Eurhynchiastrum Ignatov & Huttunen"]
[85819,"sp","Eurhynchiastrum pulchellum (Hedw.) Ignatov & Huttunen"]
[85820,"genus","Eurhynchium Schimp."]
[85821,"aggr","Eurhynchium striatum aggr."]
[85822,"sp","Eurhynchium angustirete (Broth.) T.J.Kop."]
[85823,"sp","Eurhynchium striatum (Hedw.) Schimp."]
[85930,"genus","Homalothecium Schimp."]
[85931,"sp","Homalothecium lutescens (Hedw.) H.Rob."]
[85932,"sp","Homalothecium philippeanum (Spruce) Schimp."]
[85933,"sp","Homalothecium sericeum (Hedw.) Schimp."]
[85993,"genus","Kindbergia Ochyra"]
[85994,"sp","Kindbergia praelonga (Hedw.) Ochyra"]
[86642,"genus","Microeurhynchium Ignatov & Vanderp."]
[86629,"sp","Microeurhynchium pumilum (Wilson) Ignatov & Vanderp."]
[86091,"genus","Oxyrrhynchium (Schimp.) Warnst."]
[86093,"sp","Oxyrrhynchium schleicheri (R.Hedw.) Röll"]
[86094,"aggr","Oxyrrhynchium hians aggr."]
[86095,"sp","Oxyrrhynchium hians (Hedw.) Loeske"]
[86096,"sp","Oxyrrhynchium speciosum (Brid.) Warnst."]
[86160,"genus","Plasteurhynchium Broth."]
[86161,"sp","Plasteurhynchium striatulum (Spruce) M.Fleisch."]
[86234,"genus","Pseudoscleropodium (Limpr.) M.Fleisch."]
[86235,"sp","Pseudoscleropodium purum (Hedw.) M.Fleisch."]
[86289,"genus","Rhynchostegiella (Schimp.) Limpr., nom. cons."]
[86290,"sp","Rhynchostegiella curviseta (Brid.) Limpr."]
[86291,"sp","Rhynchostegiella tenella (Dicks.) Limpr."]
[86292,"sp","Rhynchostegiella teneriffae (Mont.) Dirkse & Bouman"]
[86293,"genus","Rhynchostegium Schimp."]
[86294,"sp","Rhynchostegium confertum (Dicks.) Schimp."]
[86295,"sp","Rhynchostegium megapolitanum (F.Weber & D.Mohr) Schimp."]
[86296,"sp","Rhynchostegium murale (Hedw.) Schimp."]
[86297,"sp","Rhynchostegium riparioides (Hedw.) Cardot"]
[86298,"sp","Rhynchostegium rotundifolium (Brid.) Schimp."]
[86344,"genus","Sciuro-Hypnum Hampe"]
[86345,"sp","Sciuro-Hypnum flotowianum (Sendtn.) Ignatov & Huttunen"]
[86346,"sp","Sciuro-Hypnum ornellanum (Molendo) Ignatov & Huttunen"]
[86347,"sp","Sciuro-Hypnum plumosum (Hedw.) Ignatov & Huttunen, nom. cons."]
[86348,"sp","Sciuro-Hypnum populeum (Hedw.) Ignatov & Huttunen"]
[86349,"aggr","Sciuro-Hypnum reflexum aggr."]
[86600,"sp","Sciuro-Hypnum curtum (Lindb.) Ignatov"]
[86350,"sp","Sciuro-Hypnum glaciale (Schimp.) Ignatov & Huttunen"]
[86351,"sp","Sciuro-Hypnum latifolium (Kindb.) Ignatov & Huttunen"]
[86353,"sp","Sciuro-Hypnum reflexum (Starke) Ignatov & Huttunen"]
[86354,"sp","Sciuro-Hypnum starkei (Brid.) Ignatov & Huttunen"]
[86355,"sp","Sciuro-Hypnum tromsoeense (Kaurin & Arnell) Draper & Hedenäs"]
[86363,"genus","Scorpiurium Schimp."]
[87376,"aggr","Scorpiurium circinatum aggr."]
[86364,"sp","Scorpiurium circinatum (Bruch) M.Fleisch. & Loeske"]
[86365,"sp","Scorpiurium deflexifolium (Solms) M.Fleisch. & Loeske"]
[86485,"genus","Tomentypnum Loeske"]
[86486,"sp","Tomentypnum nitens (Hedw.) Loeske"]
[85603,"genus","Calliergon (Sull.) Kindb."]
[85604,"sp","Calliergon cordifolium (Hedw.) Kindb."]
[85605,"sp","Calliergon giganteum (Schimp.) Kindb."]
[85606,"sp","Calliergon richardsonii (Mitt.) Kindb."]
[85907,"genus","Hamatocaulis Hedenäs"]
[85908,"sp","Hamatocaulis vernicosus (Mitt.) Hedenäs"]
[86429,"genus","Straminergon Hedenäs"]
[86430,"sp","Straminergon stramineum (Brid.) Hedenäs"]
[86538,"genus","Warnstorfia Loeske"]
[86539,"sp","Warnstorfia exannulata (Schimp.) Loeske"]
[86540,"sp","Warnstorfia fluitans (Hedw.) Loeske"]
[86541,"sp","Warnstorfia pseudostraminea (Müll.Hal.) Tuom. & T.J.Kop."]
[86542,"sp","Warnstorfia sarmentosa (Wahlenb.) Hedenäs"]
[85654,"genus","Climacium F.Weber & D.Mohr"]
[85655,"sp","Climacium dendroides (Hedw.) F.Weber & D.Mohr"]
[85673,"genus","Cryphaea D.Mohr"]
[85674,"sp","Cryphaea heteromalla (Hedw.) D.Mohr"]
[85803,"genus","Entodon Müll.Hal."]
[85805,"aggr","Entodon cladorrhizans aggr."]
[85806,"sp","Entodon cladorrhizans (Hedw.) Müll.Hal."]
[85807,"sp","Entodon schleicheri (Schimp.) Demet."]
[85804,"sp","Entodon concinnus (De Not.) Paris"]
[85824,"genus","Fabronia Raddi"]
[85826,"sp","Fabronia pusilla Raddi"]
[88158,"aggr","Fabronia ciliaris aggr."]
[85825,"sp","Fabronia ciliaris (Brid.) Brid."]
[88120,"sp","Fabronia major De Not."]
[85690,"genus","Dichelyma Myrin"]
[85691,"sp","Dichelyma falcatum (Hedw.) Myrin"]
[85853,"genus","Fontinalis Hedw."]
[85854,"sp","Fontinalis antipyretica Hedw."]
[85855,"sp","Fontinalis hypnoides C.Hartm."]
[85856,"sp","Fontinalis squamosa Hedw."]
[85675,"genus","Ctenidium (Schimp.) Mitt."]
[85676,"sp","Ctenidium molluscum (Hedw.) Mitt."]
[85957,"genus","Hylocomiastrum Broth."]
[85958,"sp","Hylocomiastrum pyrenaicum (Spruce) M.Fleisch."]
[85959,"sp","Hylocomiastrum umbratum (Hedw.) M.Fleisch."]
[85960,"genus","Hylocomium Schimp., nom. cons."]
[85961,"sp","Hylocomium splendens (Hedw.) Schimp."]
[86016,"genus","Loeskeobryum Broth."]
[86017,"sp","Loeskeobryum brevirostre (Brid.) M.Fleisch."]
[86171,"genus","Pleurozium Mitt., nom. cons."]
[86172,"sp","Pleurozium schreberi (Brid.) Mitt."]
[86299,"genus","Rhytidiadelphus (Limpr.) Warnst."]
[86300,"sp","Rhytidiadelphus loreus (Hedw.) Warnst."]
[86301,"sp","Rhytidiadelphus triquetrus (Hedw.) Warnst."]
[86302,"aggr","Rhytidiadelphus squarrosus aggr."]
[86303,"sp","Rhytidiadelphus squarrosus (Hedw.) Warnst."]
[86304,"sp","Rhytidiadelphus subpinnatus (Lindb.) T.J.Kop."]
[85530,"genus","Breidleria Loeske"]
[85531,"sp","Breidleria pratensis (Spruce) Loeske"]
[85601,"genus","Callicladium H.A.Crum"]
[85602,"sp","Callicladium haldanianum (Grev.) H.A.Crum"]
[85607,"genus","Calliergonella Loeske"]
[85608,"sp","Calliergonella cuspidata (Hedw.) Loeske"]
[85609,"sp","Calliergonella lindbergii (Mitt.) Hedenäs"]
[85617,"genus","Campylophyllum (Schimp.) M.Fleisch."]
[85618,"sp","Campylophyllum calcareum (Crundw. & Nyholm) Hedenäs"]
[85619,"sp","Campylophyllum halleri (Hedw.) M.Fleisch."]
[85920,"genus","Herzogiella Broth."]
[85921,"sp","Herzogiella seligeri (Brid.) Z.Iwats."]
[85922,"sp","Herzogiella striatella (Brid.) Z.Iwats."]
[85934,"genus","Homomallium (Schimp.) Loeske"]
[85935,"sp","Homomallium incurvatum (Brid.) Loeske"]
[85966,"genus","Hypnum Hedw., nom. cons."]
[85967,"sp","Hypnum bambergeri Schimp."]
[85968,"sp","Hypnum callichroum Brid."]
[85969,"sp","Hypnum fertile Sendtn."]
[85970,"sp","Hypnum hamulosum Schimp."]
[85971,"sp","Hypnum pallescens (Hedw.) P.Beauv."]
[85972,"sp","Hypnum procerrimum Molendo"]
[85973,"sp","Hypnum recurvatum (Lindb. & Arnell) Kindb."]
[85974,"sp","Hypnum revolutum (Mitt.) Lindb."]
[85975,"sp","Hypnum sauteri Schimp."]
[86579,"sp","Hypnum uncinulatum Jur."]
[85976,"sp","Hypnum vaucheri Lesq."]
[85977,"aggr","Hypnum cupressiforme aggr."]
[85978,"sp","Hypnum andoi A.J.E.Sm."]
[85979,"sp","Hypnum cupressiforme Hedw."]
[85980,"sp","Hypnum imponens Hedw."]
[85981,"sp","Hypnum jutlandicum Holmen & E.Warncke"]
[85982,"genus","Isopterygiopsis Z.Iwats."]
[85983,"sp","Isopterygiopsis muelleriana (Schimp.) Z.Iwats."]
[85984,"sp","Isopterygiopsis pulchella (Hedw.) Z.Iwats."]
[86060,"genus","Orthothecium Schimp., nom. cons."]
[86061,"sp","Orthothecium chryseon (Schwägr.) Schimp."]
[86062,"sp","Orthothecium intricatum (Hartm.) Schimp."]
[86063,"sp","Orthothecium rufescens (Brid.) Schimp."]
[86064,"sp","Orthothecium strictum Lorentz"]
[86236,"genus","Pseudotaxiphyllum Z.Iwats."]
[86237,"sp","Pseudotaxiphyllum elegans (Brid.) Z.Iwats."]
[86247,"genus","Ptilium De Not."]
[86248,"sp","Ptilium crista-castrensis (Hedw.) De Not."]
[86254,"genus","Pylaisia Schimp., nom. cons."]
[86255,"sp","Pylaisia polyantha (Hedw.) Schimp."]
[86446,"genus","Taxiphyllum M.Fleisch."]
[86447,"sp","Taxiphyllum wissgrillii (Garov.) Wijk & Margad."]
[85985,"genus","Isothecium Brid."]
[85986,"sp","Isothecium alopecuroides (Dubois) Isov."]
[85987,"sp","Isothecium myosuroides Brid."]
[85988,"subsp","Isothecium myosuroides Brid. subsp. myosuroides"]
[85909,"genus","Haplocladium (Müll.Hal.) Müll.Hal."]
[85910,"sp","Haplocladium angustifolium (Hampe & Müll.Hal.) Broth."]
[85911,"sp","Haplocladium virginianum (Brid.) Broth."]
[86004,"genus","Lescuraea Schimp."]
[86005,"aggr","Lescuraea mutabilis aggr."]
[86006,"sp","Lescuraea mutabilis (Brid.) I.Hagen"]
[86007,"sp","Lescuraea saxicola (Schimp.) Molendo"]
[86008,"genus","Leskea Hedw."]
[86009,"sp","Leskea polycarpa Hedw."]
[86224,"genus","Pseudoleskea Schimp."]
[86225,"sp","Pseudoleskea artariae Thér."]
[86226,"sp","Pseudoleskea incurvata (Hedw.) Loeske"]
[86227,"sp","Pseudoleskea patens (Lindb.) Kindb."]
[86228,"sp","Pseudoleskea radicosa (Mitt.) Macoun & Kindb."]
[86229,"genus","Pseudoleskeella Kindb."]
[86230,"sp","Pseudoleskeella catenulata (Schrad.) Kindb."]
[86231,"sp","Pseudoleskeella nervosa (Brid.) Nyholm"]
[86232,"sp","Pseudoleskeella rupestris (Berggr.) Hedenäs & L.Söderstr."]
[86233,"sp","Pseudoleskeella tectorum (Brid.) Broth."]
[86249,"genus","Ptychodium Schimp."]
[86250,"sp","Ptychodium plicatum (F.Weber & D.Mohr) Schimp."]
[85464,"genus","Antitrichia Brid."]
[85465,"sp","Antitrichia curtipendula (Hedw.) Brid."]
[86014,"genus","Leucodon Schwägr."]
[86015,"sp","Leucodon sciuroides (Hedw.) Schwägr."]
[86592,"genus","Nogopterium Crosby & W.R.Buck"]
[86571,"sp","Nogopterium gracile (Hedw.) Crosby & W.R.Buck"]
[85928,"genus","Homalia Brid., nom. cons."]
[85929,"sp","Homalia trichomanoides (Hedw.) Brid."]
[86044,"genus","Neckera Hedw., nom. cons."]
[86045,"sp","Neckera besseri (Lobarz.) Jur."]
[86046,"sp","Neckera complanata (Hedw.) Huebener"]
[86047,"sp","Neckera crispa Hedw."]
[86048,"sp","Neckera menziesii Drumm."]
[86049,"sp","Neckera pennata Hedw."]
[86050,"sp","Neckera pumila Hedw."]
[88159,"sp","Neckera smithii (Hedw.) Müll.Hal."]
[86467,"genus","Thamnobryum Nieuwl."]
[86468,"sp","Thamnobryum alopecurum (Hedw.) Gangulee"]
[86469,"sp","Thamnobryum neckeroides (Hook.) E.Lawton"]
[86147,"genus","Plagiothecium Schimp."]
[88126,"sp","Plagiothecium handelii Broth."]
[86148,"sp","Plagiothecium laetum Schimp."]
[86149,"sp","Plagiothecium neckeroideum Schimp."]
[86150,"sp","Plagiothecium nemorale (Mitt.) A.Jaeger"]
[86151,"sp","Plagiothecium piliferum (Sw.) Schimp."]
[86152,"sp","Plagiothecium platyphyllum Mönk."]
[86153,"sp","Plagiothecium undulatum (Hedw.) Schimp."]
[86157,"aggr","Plagiothecium denticulatum aggr."]
[86158,"sp","Plagiothecium denticulatum (Hedw.) Schimp."]
[86159,"sp","Plagiothecium ruthei Limpr."]
[86154,"aggr","Plagiothecium cavifolium aggr."]
[86155,"sp","Plagiothecium cavifolium (Brid.) Z.Iwats."]
[86156,"sp","Plagiothecium succulentum (Wilson) Lindb."]
[85905,"genus","Habrodon Schimp."]
[85906,"sp","Habrodon perpusillus (De Not.) Lindb."]
[85923,"genus","Heterocladium Schimp."]
[85924,"sp","Heterocladium dimorphum (Brid.) Schimp."]
[85925,"aggr","Heterocladium heteropterum aggr."]
[85926,"sp","Heterocladium flaccidum (Schimp.) A.J.E.Sm."]
[85927,"sp","Heterocladium heteropterum (Brid.) Schimp."]
[86041,"genus","Myurella Schimp."]
[86042,"sp","Myurella julacea (Schwägr.) Schimp."]
[86043,"sp","Myurella tenerrima (Brid.) Lindb."]
[86238,"genus","Pterigynandrum Hedw."]
[86239,"sp","Pterigynandrum filiforme Hedw."]
[85534,"genus","Brotherella M.Fleisch."]
[85535,"sp","Brotherella lorentziana (Lorentz) M.Fleisch."]
[86164,"genus","Platygyrium Schimp., nom. cons."]
[86165,"sp","Platygyrium repens (Brid.) Schimp."]
[86305,"genus","Rhytidium (Sull.) Kindb."]
[86306,"sp","Rhytidium rugosum (Hedw.) Kindb."]
[86380,"genus","Sematophyllum Mitt."]
[86576,"sp","Sematophyllum adnatum (Michx.) E.Britton"]
[86381,"sp","Sematophyllum demissum (Wilson) Mitt."]
[85408,"genus","Abietinella Müll.Hal."]
[85409,"sp","Abietinella abietina (Hedw.) M.Fleisch."]
[85916,"genus","Helodium Warnst., nom. cons."]
[85917,"sp","Helodium blandowii (F.Weber & D.Mohr) Warnst."]
[86470,"genus","Thuidium Schimp."]
[86471,"sp","Thuidium tamariscinum (Hedw.) Schimp."]
[86472,"aggr","Thuidium recognitum aggr."]
[86473,"sp","Thuidium assimile (Mitt.) A.Jaeger"]
[86474,"sp","Thuidium delicatulum (Hedw.) Schimp."]
[86475,"sp","Thuidium recognitum (Hedw.) Lindb."]
[86065,"genus","Orthotrichum Hedw."]
[86580,"sp","Orthotrichum acuminatum H.Philib."]
[86066,"sp","Orthotrichum affine Brid."]
[86067,"sp","Orthotrichum alpestre Bruch & Schimp."]
[86068,"sp","Orthotrichum anomalum Hedw."]
[86069,"sp","Orthotrichum callistomum Bruch & Schimp."]
[86070,"sp","Orthotrichum cupulatum Brid."]
[86605,"sp","Orthotrichum dentatum T.Kiebacher & Lüth"]
[86071,"sp","Orthotrichum diaphanum Brid."]
[86581,"sp","Orthotrichum hispanicum F.Lara & al."]
[86072,"sp","Orthotrichum laevigatum J.E.Zetterst."]
[86073,"sp","Orthotrichum lyellii Hook. & Taylor"]
[86074,"sp","Orthotrichum microcarpum De Not."]
[86075,"sp","Orthotrichum obtusifolium Brid."]
[86076,"sp","Orthotrichum pallens Brid."]
[86077,"sp","Orthotrichum patens Brid."]
[86078,"sp","Orthotrichum pulchellum Brunt."]
[86079,"sp","Orthotrichum rogeri Brid."]
[86080,"sp","Orthotrichum rupestre Schwägr."]
[86081,"sp","Orthotrichum scanicum Gronvall"]
[86082,"sp","Orthotrichum speciosum Nees"]
[86083,"sp","Orthotrichum stellatum Brid."]
[86084,"sp","Orthotrichum stramineum Brid."]
[86085,"sp","Orthotrichum striatum Hedw."]
[86086,"sp","Orthotrichum tenellum Brid."]
[86087,"sp","Orthotrichum urnigerum Myrin"]
[86588,"sp","Orthotrichum vittii F.Lara & al."]
[86088,"aggr","Orthotrichum pumilum aggr."]
[86089,"sp","Orthotrichum pumilum anon."]
[86090,"sp","Orthotrichum schimperi Hammar"]
[86528,"genus","Ulota D.Mohr"]
[86529,"sp","Ulota coarctata (P.Beauv.) Hammar"]
[86530,"sp","Ulota drummondii (Hook. & Grev.) Brid."]
[86531,"sp","Ulota hutchinsiae (Sm.) Hammar"]
[86532,"sp","Ulota macrospora E.Bauer & Warnst."]
[86533,"aggr","Ulota crispa aggr."]
[86534,"sp","Ulota bruchii Brid."]
[88161,"aggr","Ulota crispa s.l."]
[86535,"sp","Ulota crispa (Hedw.) Brid."]
[88114,"sp","Ulota crispula Brid."]
[88115,"sp","Ulota intermedia Schimp."]
[86552,"genus","Zygodon Hook. & Taylor"]
[86553,"sp","Zygodon conoideus (Dicks.) Hook. & Taylor"]
[86764,"sp","Zygodon forsteri (Dicks.) Mitt."]
[86554,"sp","Zygodon gracilis Wilson"]
[86555,"aggr","Zygodon viridissimus aggr."]
[86556,"sp","Zygodon dentatus (Limpr.) Kartt."]
[86557,"sp","Zygodon rupestris Lorentz"]
[86558,"sp","Zygodon viridissimus (Dicks.) Brid."]
[85480,"genus","Aulacomnium Schwägr., nom. cons."]
[85481,"sp","Aulacomnium androgynum (Hedw.) Schwägr."]
[85482,"sp","Aulacomnium palustre (Hedw.) Schwägr."]
[85419,"genus","Amblyodon P.Beauv., nom. cons."]
[85420,"sp","Amblyodon dealbatus (Hedw.) P.Beauv."]
[85995,"genus","Leptobryum (Bruch & Schimp.) Wilson"]
[85996,"sp","Leptobryum pyriforme (Hedw.) Wilson"]
[86018,"genus","Meesia Hedw., nom. cons."]
[86019,"sp","Meesia longiseta Hedw."]
[86020,"sp","Meesia triquetra (Jolycl.) Ångstr."]
[86021,"sp","Meesia uliginosa Hedw."]
[86102,"genus","Paludella Brid."]
[86103,"sp","Paludella squarrosa (Hedw.) Brid."]
[86424,"genus","Splachnum Hedw."]
[86425,"sp","Splachnum ampullaceum Hedw."]
[86426,"sp","Splachnum sphaericum Hedw."]
[86448,"genus","Tayloria Hook."]
[86449,"sp","Tayloria acuminata Hornsch."]
[86450,"sp","Tayloria froelichiana (Hedw.) Broth."]
[86451,"sp","Tayloria hornschuchii (Grev. & Arn.) Broth."]
[86452,"sp","Tayloria lingulata (Dicks.) Lindb."]
[86453,"sp","Tayloria rudolphiana (Garov.) Bruch & Schimp."]
[86454,"sp","Tayloria splachnoides (Schwägr.) Hook."]
[86455,"aggr","Tayloria serrata aggr."]
[86456,"sp","Tayloria serrata (Hedw.) Bruch & Schimp."]
[86457,"sp","Tayloria tenuis (Dicks.) Schimp."]
[86460,"genus","Tetraplodon Bruch & Schimp."]
[86461,"sp","Tetraplodon angustatus (Hedw.) Bruch & Schimp."]
[86462,"sp","Tetraplodon mnioides (Hedw.) Bruch & Schimp."]
[86463,"sp","Tetraplodon urceolatus (Hedw.) Bruch & Schimp."]
[86536,"genus","Voitia Hornsch."]
[86537,"sp","Voitia nivalis Hornsch."]
[85598,"genus","Buxbaumia Hedw."]
[85599,"sp","Buxbaumia aphylla Hedw."]
[85600,"sp","Buxbaumia viridis (Lam. & DC.) Moug. & Nestl."]
[85468,"genus","Archidium Brid."]
[85469,"sp","Archidium alternifolium (Hedw.) Mitt."]
[86519,"genus","Trematodon Michx."]
[86520,"sp","Trematodon ambiguus (Hedw.) Hornsch."]
[86521,"sp","Trematodon brevicollis Hornsch."]
[85466,"genus","Aongstroemia Bruch & Schimp., nom. cons."]
[85467,"sp","Aongstroemia longipes (Sommerf.) Bruch & Schimp."]
[85656,"genus","Cnestrum I.Hagen"]
[85657,"sp","Cnestrum alpestre (Huebener) Mogensen"]
[85658,"sp","Cnestrum schisti (F.Weber & D.Mohr) I.Hagen, nom. cons."]
[85696,"genus","Dicranella (Müll.Hal.) Schimp., nom. cons."]
[85697,"sp","Dicranella cerviculata (Hedw.) Schimp."]
[85698,"sp","Dicranella crispa (Hedw.) Schimp."]
[85699,"sp","Dicranella grevilleana (Brid.) Schimp."]
[85700,"sp","Dicranella heteromalla (Hedw.) Schimp."]
[85701,"sp","Dicranella rufescens (Dicks.) Schimp."]
[85702,"sp","Dicranella schreberiana (Hedw.) Dixon"]
[85703,"sp","Dicranella staphylina H.Whitehouse"]
[85704,"sp","Dicranella subulata (Hedw.) Schimp."]
[85705,"aggr","Dicranella varia aggr."]
[85706,"sp","Dicranella howei Renauld & Cardot"]
[85707,"sp","Dicranella varia (Hedw.) Schimp."]
[85717,"genus","Dicranum Hedw."]
[85721,"sp","Dicranum elongatum Schwägr."]
[85722,"sp","Dicranum flagellare Hedw."]
[85723,"sp","Dicranum fulvum Hook."]
[85724,"sp","Dicranum majus Sm."]
[85725,"sp","Dicranum montanum Hedw."]
[85727,"sp","Dicranum polysetum anon."]
[85729,"sp","Dicranum spurium Hedw."]
[85730,"sp","Dicranum tauricum Sapjegin"]
[85731,"sp","Dicranum undulatum Brid."]
[85732,"sp","Dicranum viride (Sull. & Lesq.) Lindb."]
[85733,"aggr","Dicranum fuscescens aggr."]
[85734,"sp","Dicranum flexicaule Brid."]
[85735,"sp","Dicranum fuscescens Sm."]
[88066,"aggr","Dicranum muehlenbeckii aggr."]
[85718,"sp","Dicranum acutifolium (Lindb. & Arnell) C.E.O.Jensen"]
[85719,"sp","Dicranum brevifolium (Lindb.) Lindb."]
[85720,"sp","Dicranum dispersum Engelmark"]
[85726,"sp","Dicranum muehlenbeckii Bruch & Schimp."]
[85728,"sp","Dicranum spadiceum J.E.Zetterst."]
[85736,"aggr","Dicranum scoparium aggr."]
[85737,"sp","Dicranum bonjeanii De Not."]
[85738,"sp","Dicranum scoparium Hedw."]
[85739,"sp","Dicranum transsylvanicum Lüth"]
[85762,"genus","Diobelonella Ochyra"]
[85763,"sp","Diobelonella palustris (Dicks.) Ochyra"]
[86109,"genus","Paraleucobryum (Limpr.) Loeske"]
[86110,"sp","Paraleucobryum enerve (Thed.) Loeske"]
[86111,"aggr","Paraleucobryum longifolium aggr."]
[86112,"sp","Paraleucobryum longifolium (Hedw.) Loeske"]
[86113,"sp","Paraleucobryum sauteri (Bruch & Schimp.) Loeske"]
[86217,"genus","Pseudephemerum (Lindb.) I.Hagen"]
[86218,"sp","Pseudephemerum nitidum (Hedw.) Loeske"]
[85637,"genus","Ceratodon Brid."]
[85638,"aggr","Ceratodon purpureus aggr."]
[85639,"sp","Ceratodon conicus (Hampe) Lindb."]
[85640,"sp","Ceratodon purpureus (Hedw.) Brid."]
[85641,"subsp","Ceratodon purpureus (Hedw.) Brid. subsp. purpureus"]
[85652,"genus","Cleistocarpidium Ochyra & Bedn.-Ochyra"]
[85653,"sp","Cleistocarpidium palustre (Bruch & Schimp.) Ochyra & Bedn.-Ochyra"]
[85766,"genus","Distichium Bruch & Schimp., nom. cons."]
[85767,"aggr","Distichium capillaceum aggr."]
[85768,"sp","Distichium capillaceum (Hedw.) Bruch & Schimp."]
[85769,"sp","Distichium inclinatum (Hedw.) Bruch & Schimp."]
[85772,"genus","Ditrichum Hampe, nom. cons."]
[85773,"sp","Ditrichum lineare (Sw.) Lindb."]
[85774,"sp","Ditrichum pallidum (Hedw.) Hampe"]
[85775,"sp","Ditrichum pusillum (Hedw.) Hampe"]
[85776,"aggr","Ditrichum flexicaule aggr."]
[85777,"sp","Ditrichum flexicaule (Schwägr.) Hampe"]
[85778,"sp","Ditrichum gracile (Mitt.) Kuntze"]
[85779,"aggr","Ditrichum heteromallum aggr."]
[85780,"sp","Ditrichum heteromallum (Hedw.) E.Britton"]
[85781,"sp","Ditrichum zonatum (Brid.) Kindb."]
[86166,"genus","Pleuridium Rabenh., nom. cons."]
[86167,"sp","Pleuridium acuminatum Lindb."]
[86168,"sp","Pleuridium subulatum (Hedw.) Rabenh."]
[86307,"genus","Saelania Lindb."]
[86308,"sp","Saelania glaucescens (Hedw.) Broth."]
[86522,"genus","Trichodon Schimp."]
[86523,"sp","Trichodon cylindricus (Hedw.) Schimp."]
[85827,"genus","Fissidens Hedw."]
[85828,"sp","Fissidens celticus Paton"]
[85829,"sp","Fissidens crassipes Bruch & Schimp."]
[85830,"subsp","Fissidens crassipes Bruch & Schimp. subsp. crassipes"]
[85831,"sp","Fissidens exilis Hedw."]
[85832,"sp","Fissidens fontanus (Bach.Pyl.) Steud."]
[85833,"sp","Fissidens grandifrons Brid."]
[85834,"sp","Fissidens osmundoides Hedw."]
[85835,"sp","Fissidens rivularis (Spruce) Schimp."]
[85836,"sp","Fissidens rufulus Bruch & Schimp."]
[85837,"sp","Fissidens taxifolius Hedw."]
[85838,"subsp","Fissidens taxifolius Hedw. subsp. taxifolius"]
[85839,"aggr","Fissidens adianthoides aggr."]
[85840,"sp","Fissidens adianthoides Hedw."]
[85841,"sp","Fissidens dubius P.Beauv."]
[85842,"aggr","Fissidens bryoides aggr."]
[85843,"sp","Fissidens bryoides Hedw."]
[85844,"subsp","Fissidens bryoides Hedw. subsp. bryoides"]
[85845,"subsp","Fissidens bryoides subsp. curnovii (Mitt.) Dixon"]
[85846,"sp","Fissidens crispus Mont."]
[85847,"sp","Fissidens gracilifolius Brugg.-Nann. & Nyholm"]
[85848,"sp","Fissidens gymnandrus Buse"]
[85849,"sp","Fissidens pusillus (Wilson) Milde"]
[85850,"sp","Fissidens viridulus (anon.) Wahlenb."]
[85851,"subsp","Fissidens viridulus (Sw.) Wahlenb. subsp. viridulus"]
[85852,"subsp","Fissidens viridulus subsp. incurvus (Röhl.) Waldh."]
[85620,"genus","Campylopus Brid."]
[85621,"sp","Campylopus atrovirens De Not."]
[85622,"sp","Campylopus flexuosus (Hedw.) Brid."]
[85623,"sp","Campylopus fragilis (Brid.) Bruch & Schimp."]
[85624,"sp","Campylopus gracilis (Mitt.) A.Jaeger"]
[85625,"sp","Campylopus introflexus (Hedw.) Brid."]
[85626,"sp","Campylopus oerstedianus (Müll.Hal.) Mitt."]
[85627,"sp","Campylopus pilifer Brid."]
[99999,"subsp","Campylopus pilifer Brid. subsp. pilifer"]
[85629,"sp","Campylopus pyriformis (Schultz) Brid."]
[85630,"aggr","Campylopus subulatus aggr."]
[85631,"sp","Campylopus schimperi Milde"]
[85632,"sp","Campylopus subulatus Milde"]
[85708,"genus","Dicranodontium Bruch & Schimp."]
[85709,"sp","Dicranodontium asperulum (Mitt.) Broth."]
[85710,"sp","Dicranodontium denudatum (Brid.) E.Britton"]
[85711,"sp","Dicranodontium uncinatum (Harv.) A.Jaeger"]
[86010,"genus","Leucobryum Hampe"]
[86011,"aggr","Leucobryum glaucum aggr."]
[86012,"sp","Leucobryum glaucum (Hedw.) Ångstr."]
[86013,"sp","Leucobryum juniperoideum (Brid.) Müll.Hal."]
[86644,"genus","Metzleria Milde"]
[86609,"sp","Metzleria alpina Milde"]
[85426,"genus","Amphidium Schimp., nom. cons."]
[85427,"aggr","Amphidium mougeotii aggr."]
[85428,"sp","Amphidium lapponicum (Hedw.) Schimp."]
[85429,"sp","Amphidium mougeotii (Schimp.) Schimp."]
[85470,"genus","Arctoa Bruch & Schimp."]
[85471,"sp","Arctoa fulvella (Dicks.) Bruch & Schimp."]
[85677,"genus","Cynodontium Bruch & Schimp., nom. cons."]
[85678,"sp","Cynodontium bruntonii (Sm.) Bruch & Schimp."]
[85679,"sp","Cynodontium tenellum Limpr."]
[85680,"aggr","Cynodontium gracilescens aggr."]
[85681,"sp","Cynodontium fallax Limpr."]
[85682,"sp","Cynodontium gracilescens (F.Weber & D.Mohr) Schimp."]
[85683,"aggr","Cynodontium polycarpon aggr."]
[85684,"sp","Cynodontium polycarpon (Hedw.) Schimp."]
[85685,"sp","Cynodontium strumiferum (Hedw.) Lindb."]
[85692,"genus","Dichodontium Schimp."]
[85693,"aggr","Dichodontium pellucidum aggr."]
[85694,"sp","Dichodontium flavescens (Dicks.) Lindb."]
[85695,"sp","Dichodontium pellucidum (Hedw.) Schimp."]
[85712,"genus","Dicranoweisia Milde"]
[85713,"sp","Dicranoweisia cirrata (Hedw.) Lindb."]
[85989,"genus","Kiaeria I.Hagen"]
[85990,"sp","Kiaeria blyttii (Bruch & Schimp.) Broth."]
[85991,"sp","Kiaeria falcata (Hedw.) I.Hagen"]
[85992,"sp","Kiaeria starkei (F.Weber & D.Mohr) I.Hagen"]
[86053,"genus","Oncophorus (Brid.) Brid."]
[86055,"sp","Oncophorus wahlenbergii Brid."]
[86673,"aggr","Oncophorus virens aggr."]
[88065,"sp","Oncophorus integerrimus Hedenäs"]
[86054,"sp","Oncophorus virens (Hedw.) Brid."]
[86056,"genus","Oreas Brid."]
[86057,"sp","Oreas martiana (Hoppe & Hornsch.) Brid."]
[86058,"genus","Oreoweisia (Bruch & Schimp.) De Not."]
[86059,"sp","Oreoweisia torquescens (Brid.) Wijk & Margad."]
[86277,"genus","Rhabdoweisia Bruch & Schimp."]
[86278,"sp","Rhabdoweisia crenulata (Mitt.) H.Jameson"]
[86279,"sp","Rhabdoweisia crispata (Dicks.) Lindb."]
[86280,"sp","Rhabdoweisia fugax (Hedw.) Bruch & Schimp."]
[86342,"genus","Schistostega D.Mohr"]
[86343,"sp","Schistostega pennata (Hedw.) F.Weber & D.Mohr"]
[85663,"genus","Coscinodon Spreng."]
[85664,"aggr","Coscinodon cribrosus aggr."]
[85665,"sp","Coscinodon cribrosus (Hedw.) Spruce"]
[85666,"sp","Coscinodon humilis Milde"]
[85865,"genus","Grimmia Hedw."]
[85866,"sp","Grimmia alpestris (F.Weber & D.Mohr) Schleich."]
[85867,"sp","Grimmia anodon Bruch & Schimp."]
[85868,"sp","Grimmia atrata Hornsch."]
[85869,"sp","Grimmia caespiticia (Brid.) Jur."]
[85870,"sp","Grimmia crinita Brid."]
[85871,"sp","Grimmia decipiens (Schultz) Lindb."]
[85873,"sp","Grimmia elatior Bals.-Criv. & De Not."]
[85874,"sp","Grimmia elongata Kaulf."]
[85875,"sp","Grimmia funalis (Schwägr.) Bruch & Schimp."]
[85876,"sp","Grimmia fuscolutea Hook."]
[85877,"sp","Grimmia incurva Schwägr."]
[85878,"sp","Grimmia laevigata (Brid.) Brid."]
[85879,"sp","Grimmia longirostris Hook."]
[85880,"sp","Grimmia montana Bruch & Schimp."]
[85881,"sp","Grimmia orbicularis Wilson"]
[85882,"sp","Grimmia ovalis (Hedw.) Lindb."]
[85883,"sp","Grimmia pulvinata (Hedw.) Sm."]
[85884,"sp","Grimmia ramondii (Lam. & DC.) Margad."]
[85885,"sp","Grimmia sessitana De Not."]
[85886,"sp","Grimmia tergestina Bruch & Schimp."]
[85887,"sp","Grimmia torquata Drumm."]
[85888,"sp","Grimmia unicolor Hook."]
[88153,"aggr","Grimmia donniana aggr."]
[88154,"sp","Grimmia arenaria Hampe"]
[85872,"sp","Grimmia donniana Sm."]
[88156,"sp","Grimmia triformis Carestia & De Not."]
[85889,"aggr","Grimmia hartmanii aggr."]
[85890,"sp","Grimmia anomala Schimp."]
[85891,"sp","Grimmia hartmanii Schimp."]
[85892,"aggr","Grimmia trichophylla aggr."]
[85893,"sp","Grimmia dissimulata E.Maier"]
[85894,"sp","Grimmia lisae De Not."]
[85895,"sp","Grimmia muehlenbeckii Schimp."]
[85896,"sp","Grimmia trichophylla Grev."]
[85938,"genus","Hydrogrimmia Loeske"]
[85939,"sp","Hydrogrimmia mollis (Bruch & Schimp.) Loeske"]
[86258,"genus","Racomitrium Brid."]
[86259,"sp","Racomitrium aciculare (Hedw.) Brid."]
[86260,"sp","Racomitrium aquaticum (Schrad.) Brid."]
[86261,"sp","Racomitrium fasciculare (Hedw.) Brid."]
[86262,"sp","Racomitrium lanuginosum (Hedw.) Brid."]
[86263,"sp","Racomitrium macounii Kindb."]
[86264,"subsp","Racomitrium macounii Kindb. subsp. macounii"]
[86265,"subsp","Racomitrium macounii subsp. alpinum (E.Lawton) Frisvoll"]
[86266,"sp","Racomitrium microcarpon (Hedw.) Brid."]
[88025,"sp","Racomitrium nivale (Köckinger & al.) Köckinger"]
[86267,"aggr","Racomitrium canescens aggr."]
[86268,"sp","Racomitrium canescens (Hedw.) Brid."]
[86269,"subsp","Racomitrium canescens (Hedw.) Brid. subsp. canescens"]
[86270,"subsp","Racomitrium canescens subsp. latifolium (C.E.O.Jensen) Frisvoll"]
[86271,"sp","Racomitrium elongatum Frisvoll"]
[86272,"sp","Racomitrium ericoides (Brid.) Brid."]
[86273,"aggr","Racomitrium heterostichum aggr."]
[86274,"sp","Racomitrium affine (F.Weber & D.Mohr) Lindb."]
[86275,"sp","Racomitrium heterostichum (Hedw.) Brid."]
[86276,"sp","Racomitrium sudeticum (Funck) Bruch & Schimp."]
[86311,"genus","Schistidium Bruch & Schimp., nom. cons."]
[86312,"sp","Schistidium agassizii Sull. & Lesq."]
[86313,"sp","Schistidium flaccidum (De Not.) Ochyra"]
[86314,"sp","Schistidium sordidum I.Hagen"]
[86589,"sp","Schistidium subflaccidum (Kindb.) H.H.Blom"]
[86315,"sp","Schistidium teretinerve (Limpr.) Limpr."]
[86316,"sp","Schistidium trichodon (Brid.) Poelt"]
[86317,"aggr","Schistidium apocarpum aggr."]
[86318,"sp","Schistidium apocarpum (Hedw.) Bruch & Schimp."]
[86320,"sp","Schistidium atrofuscum (Schimp.) Limpr."]
[86321,"sp","Schistidium brunnescens Limpr."]
[86322,"subsp","Schistidium brunnescens Limpr. subsp. brunnescens"]
[86323,"subsp","Schistidium brunnescens subsp. griseum (Nees & Hornsch.) H.H.Blom"]
[86324,"sp","Schistidium confertum (Funck) Bruch & Schimp."]
[86325,"sp","Schistidium confusum H.H.Blom"]
[86326,"sp","Schistidium crassipilum H.H.Blom"]
[86327,"sp","Schistidium dupretii (Thér.) W.A.Weber"]
[86328,"sp","Schistidium elegantulum H.H.Blom"]
[86329,"subsp","Schistidium elegantulum H.H.Blom subsp. elegantulum"]
[86574,"sp","Schistidium grande Poelt"]
[86331,"sp","Schistidium helveticum (Schkuhr) Deguchi"]
[87459,"sp","Schistidium marginale H.H.Blom & al."]
[86332,"sp","Schistidium papillosum Culm."]
[86575,"sp","Schistidium pruinosum (Schimp.) G.Roth"]
[86333,"sp","Schistidium pulchrum H.H.Blom"]
[86334,"sp","Schistidium robustum (Nees & Hornsch.) H.H.Blom"]
[86335,"sp","Schistidium spinosum H.H.Blom & Lüth"]
[86336,"sp","Schistidium strictum (Turner) Mårtensson"]
[86337,"sp","Schistidium umbrosum (J.E.Zetterst.) H.H.Blom"]
[87121,"sp","Schistidium venetum H.H.Blom"]
[88162,"aggr","Schistidium frigidum aggr."]
[87974,"sp","Schistidium obscurum H.H.Blom & al."]
[86338,"aggr","Schistidium rivulare aggr."]
[86339,"sp","Schistidium platyphyllum (Mitt.) H.Perss."]
[86341,"sp","Schistidium rivulare (Brid.) Podp."]
[85633,"genus","Campylostelium Bruch & Schimp."]
[85634,"sp","Campylostelium saxicola (F.Weber & D.Mohr) Bruch & Schimp."]
[86251,"genus","Ptychomitrium Fürnr., nom. cons."]
[86252,"sp","Ptychomitrium incurvum (Schwägr.) Spruce"]
[86253,"sp","Ptychomitrium polyphyllum (Sw.) Bruch & Schimp."]
[85499,"genus","Blindia Bruch & Schimp."]
[85500,"aggr","Blindia acuta aggr."]
[85501,"sp","Blindia acuta (Hedw.) Bruch & Schimp."]
[85502,"sp","Blindia caespiticia (F.Weber & D.Mohr) Müll.Hal."]
[85503,"genus","Brachydontium Fürnr."]
[85504,"sp","Brachydontium trichodes (F.Weber) Milde"]
[86366,"genus","Seligeria Bruch & Schimp."]
[86367,"sp","Seligeria acutifolia Lindb."]
[86368,"sp","Seligeria brevifolia (Lindb.) Lindb."]
[86369,"sp","Seligeria calcarea (Hedw.) Bruch & Schimp."]
[86583,"sp","Seligeria campylopoda Kindb."]
[86370,"sp","Seligeria carniolica (Breidl. & Beck) Nyholm"]
[86371,"sp","Seligeria diversifolia Lindb."]
[86372,"sp","Seligeria donniana (Sm.) Müll.Hal."]
[86373,"sp","Seligeria oelandica C.E.O.Jensen & Medelius"]
[86374,"sp","Seligeria pusilla (Hedw.) Bruch & Schimp."]
[86375,"sp","Seligeria recurvata (Hedw.) Bruch & Schimp."]
[86376,"aggr","Seligeria trifaria aggr."]
[86377,"sp","Seligeria austriaca T.Schauer"]
[86378,"sp","Seligeria patula (Lindb.) I.Hagen"]
[86379,"sp","Seligeria trifaria (Brid.) Lindb."]
[85410,"genus","Acaulon Müll.Hal."]
[85411,"sp","Acaulon muticum (Hedw.) Müll.Hal."]
[85412,"sp","Acaulon triquetrum (Spruce) Müll.Hal."]
[85413,"genus","Aloina Kindb., nom. cons."]
[85414,"sp","Aloina brevirostris (Hook. & Grev.) Kindb."]
[86620,"sp","Aloina obliquifolia (Müll.Hal.) Broth."]
[85415,"sp","Aloina rigida (Hedw.) Limpr."]
[85416,"aggr","Aloina aloides aggr."]
[85417,"sp","Aloina aloides (Schultz) Kindb."]
[85418,"sp","Aloina ambigua (Bruch & Schimp.) Limpr."]
[85445,"genus","Anoectangium Schwägr., nom. cons."]
[85446,"sp","Anoectangium aestivum (Hedw.) Mitt."]
[85447,"aggr","Anoectangium hornschuchianum aggr."]
[85448,"sp","Anoectangium hornschuchianum (Hook.) Hornsch."]
[85449,"sp","Anoectangium schliephackei (Schlieph.) Paris"]
[85450,"sp","Anoectangium sendtnerianum Bruch & Schimp."]
[86610,"sp","Anoectangium taeniatifolium (Herzog) M.O.Hill"]
[85451,"sp","Anoectangium tenuinerve (Limpr.) Paris"]
[85483,"genus","Barbula Hedw., nom. cons."]
[85491,"sp","Barbula unguiculata Hedw."]
[85536,"genus","Bryoerythrophyllum P.C.Chen"]
[85537,"sp","Bryoerythrophyllum ferruginascens (Stirt.) Giacom."]
[85538,"sp","Bryoerythrophyllum rubrum (Geh.) P.C.Chen"]
[85539,"aggr","Bryoerythrophyllum recurvirostre aggr."]
[85540,"sp","Bryoerythrophyllum alpigenum (Venturi) P.C.Chen"]
[85541,"sp","Bryoerythrophyllum recurvirostrum (Hedw.) P.C.Chen"]
[85644,"genus","Cinclidotus P.Beauv., nom. cons."]
[85645,"sp","Cinclidotus aquaticus (Hedw.) Bruch & Schimp."]
[85646,"sp","Cinclidotus danubicus Schiffn. & Baumgartner"]
[85647,"sp","Cinclidotus fontinaloides (Hedw.) P.Beauv."]
[85648,"sp","Cinclidotus riparius (Brid.) Arn."]
[85670,"genus","Crossidium Jur., nom. cons."]
[85671,"sp","Crossidium aberrans Holz. & E.B.Bartram"]
[85672,"sp","Crossidium squamiferum (Viv.) Jur."]
[85688,"genus","Dialytrichia (Schimp.) Limpr."]
[85689,"sp","Dialytrichia mucronata (Brid.) Broth."]
[85740,"genus","Didymodon Hedw."]
[85741,"sp","Didymodon asperifolius (Mitt.) H.A.Crum & al."]
[85742,"sp","Didymodon cordatus Jur."]
[85743,"sp","Didymodon fallax (Hedw.) R.H.Zander"]
[85744,"sp","Didymodon ferrugineus (Besch.) M.O.Hill"]
[85745,"sp","Didymodon giganteus (Funck) Jur."]
[85746,"sp","Didymodon johansenii (R.S.Williams) H.A.Crum"]
[85747,"sp","Didymodon luridus Spreng."]
[85748,"sp","Didymodon sinuosus (Mitt.) Delogne"]
[85749,"sp","Didymodon spadiceus (Mitt.) Limpr."]
[85750,"sp","Didymodon tophaceus (Brid.) Lisa"]
[85751,"aggr","Didymodon acutus aggr."]
[85752,"sp","Didymodon acutus (Brid.) K.Saito"]
[85753,"sp","Didymodon icmadophilus (Müll.Hal.) K.Saito"]
[85754,"aggr","Didymodon rigidulus aggr."]
[85755,"sp","Didymodon glaucus Ryan"]
[85756,"sp","Didymodon rigidulus Hedw."]
[85757,"sp","Didymodon subandreaeoides (Kindb.) R.H.Zander"]
[85758,"sp","Didymodon verbanus (W.E.Nicholson & Dixon) Loeske"]
[85759,"aggr","Didymodon vinealis aggr."]
[85760,"sp","Didymodon insulanus (De Not.) M.O.Hill"]
[85761,"sp","Didymodon vinealis (Brid.) R.H.Zander"]
[85808,"genus","Ephemerum Hampe, nom. cons."]
[85809,"sp","Ephemerum cohaerens (Hedw.) Hampe"]
[85810,"sp","Ephemerum recurvifolium (Dicks.) Boulay"]
[85813,"sp","Ephemerum serratum (Hedw.) Hampe"]
[85816,"genus","Eucladium Bruch & Schimp."]
[85817,"sp","Eucladium verticillatum (With.) Bruch & Schimp."]
[86649,"genus","Gymnobarbula Jan Kučera"]
[86597,"sp","Gymnobarbula bicolor (Bruch & Schimp.) Jan Kučera"]
[85897,"genus","Gymnostomum Nees & Hornsch., nom. cons."]
[85898,"sp","Gymnostomum viridulum Brid."]
[85899,"subsp","Gymnostomum viridulum Brid. subsp. viridulum"]
[85900,"aggr","Gymnostomum aeruginosum aggr."]
[85901,"sp","Gymnostomum aeruginosum Sm."]
[85902,"sp","Gymnostomum calcareum Nees & Hornsch."]
[85903,"genus","Gyroweisia Schimp., nom. cons."]
[85904,"sp","Gyroweisia tenuis (Hedw.) Schimp."]
[85918,"genus","Hennediella Paris"]
[85919,"sp","Hennediella heimii (Hedw.) R.H.Zander"]
[86648,"genus","Hydrogonium (Müll.Hal.) A.Jaeger"]
[86630,"sp","Hydrogonium amplexifolium (Mitt.) P.C.Chen"]
[86604,"sp","Hydrogonium bolleanum (Müll.Hal.) A.Jaeger"]
[86618,"sp","Hydrogonium croceum (Brid.) Jan Kučera"]
[86625,"sp","Hydrogonium consanguineum (Thwaites & Mitt.) Hilp."]
[85962,"genus","Hymenostylium Brid."]
[85963,"sp","Hymenostylium recurvirostrum (Hedw.) Dixon"]
[85964,"genus","Hyophila Brid., nom. cons."]
[85965,"sp","Hyophila involuta (Hook.) A.Jaeger"]
[86001,"genus","Leptodontium (Müll.Hal.) Lindb."]
[86002,"sp","Leptodontium flexifolium (Dicks.) Hampe"]
[86003,"sp","Leptodontium styriacum (Jur.) Limpr."]
[86933,"genus","Leptophascum (Müll.Hal.) J.Guerra & M.J.Cano"]
[86823,"sp","Leptophascum leptophyllum (Müll.Hal.) J.Guerra & M.J.Cano"]
[86022,"genus","Microbryum Schimp."]
[86023,"sp","Microbryum curvicollum (Hedw.) R.H.Zander"]
[86024,"sp","Microbryum floerkeanum (F.Weber & D.Mohr) Schimp."]
[86570,"sp","Microbryum rectum (With.) R.H.Zander"]
[86025,"aggr","Microbryum starckeanum aggr."]
[86026,"sp","Microbryum davallianum (Sm.) R.H.Zander"]
[86027,"sp","Microbryum starckeanum (Hedw.) R.H.Zander"]
[86097,"genus","Oxystegus (Broth.) Hilp."]
[86098,"aggr","Oxystegus tenuirostris aggr."]
[86099,"sp","Oxystegus daldinianus (De Not.) Köckinger & al."]
[86100,"sp","Oxystegus minor Köckinger & al."]
[86101,"sp","Oxystegus tenuirostris (Hook. & Taylor) A.J.E.Sm."]
[86114,"genus","Phascum Hedw."]
[86115,"sp","Phascum cuspidatum Hedw."]
[86169,"genus","Pleurochaete Lindb."]
[86170,"sp","Pleurochaete squarrosa (Brid.) Lindb."]
[86215,"genus","Protobryum J.Guerra & M.J.Cano"]
[86216,"sp","Protobryum bryoides (Dicks.) J.Guerra & M.J.Cano"]
[86221,"genus","Pseudocrossidium R.S.Williams"]
[86222,"sp","Pseudocrossidium hornschuchianum (Schultz) R.H.Zander"]
[86223,"sp","Pseudocrossidium revolutum (Brid.) R.H.Zander"]
[86242,"genus","Pterygoneurum Jur., nom. cons."]
[86243,"sp","Pterygoneurum lamellatum (Lindb.) Jur."]
[86244,"sp","Pterygoneurum ovatum (Hedw.) Dixon"]
[86245,"sp","Pterygoneurum sampaianum (Guim.) Guim."]
[86246,"sp","Pterygoneurum subsessile (Brid.) Jur."]
[86356,"genus","Scopelophila (Mitt.) Lindb."]
[86357,"sp","Scopelophila ligulata (Spruce) Spruce"]
[86427,"genus","Stegonia Venturi"]
[86569,"sp","Pottiopsis caespitosa (Brid.) Blockeel & A.J.E.Sm."]
[86428,"sp","Stegonia latifolia (Schwägr.) Broth."]
[86641,"genus","Streblotrichum P.Beauv."]
[86607,"sp","Streblotrichum convolutum (Hedw.) P.Beauv."]
[86603,"sp","Streblotrichum enderesii (Garov.) Loeske"]
[86431,"genus","Syntrichia Brid."]
[86432,"sp","Syntrichia caninervis Mitt."]
[86433,"sp","Syntrichia fragilis (Taylor) Ochyra"]
[86434,"sp","Syntrichia latifolia (Hartm.) Huebener"]
[86435,"sp","Syntrichia montana Nees"]
[86436,"sp","Syntrichia papillosa (Wilson) Jur."]
[86437,"sp","Syntrichia sinensis (Müll.Hal.) Ochyra"]
[86438,"sp","Syntrichia virescens (De Not.) Ochyra"]
[86439,"aggr","Syntrichia laevipila aggr."]
[86440,"sp","Syntrichia laevipila Brid."]
[86441,"sp","Syntrichia pagorum (Milde) J.J.Amann"]
[86442,"aggr","Syntrichia ruralis aggr."]
[86443,"sp","Syntrichia calcicola J.J.Amann"]
[86444,"sp","Syntrichia norvegica F.Weber"]
[86445,"sp","Syntrichia ruralis (Hedw.) F.Weber & D.Mohr"]
[86482,"genus","Timmiella (De Not.) Limpr."]
[86483,"aggr","Timmiella anomala aggr."]
[86484,"sp","Timmiella anomala (Bruch & Schimp.) Limpr."]
[86487,"genus","Tortella (Müll.Hal.) Limpr., nom. cons."]
[86585,"sp","Tortella alpicola Dixon"]
[86488,"sp","Tortella fragilis (Hook. & Wilson) Limpr."]
[86489,"sp","Tortella humilis (Hedw.) Jenn."]
[86490,"sp","Tortella nitida (Lindb.) Broth."]
[86491,"aggr","Tortella inclinata aggr."]
[86492,"sp","Tortella densa (Lorentz & Molendo) Crundw. & Nyholm"]
[86493,"sp","Tortella inclinata (R.Hedw.) Limpr."]
[86494,"aggr","Tortella tortuosa aggr."]
[86496,"sp","Tortella tortuosa (Hedw.) Limpr."]
[88092,"aggr","Tortella bambergeri auct."]
[88095,"sp","Tortella fasciculata (Culm.) Culm."]
[88094,"sp","Tortella pseudofragilis (Thér.) Köckinger & Hedenäs"]
[86497,"genus","Tortula Hedw., nom. cons."]
[86498,"sp","Tortula atrovirens (Sm.) Lindb."]
[86499,"sp","Tortula brevissima Schiffn."]
[86500,"sp","Tortula canescens Mont."]
[86501,"sp","Tortula cernua (Huebener) Lindb."]
[86502,"sp","Tortula hoppeana (Schultz) Ochyra"]
[86503,"sp","Tortula inermis (Brid.) Mont."]
[86504,"sp","Tortula lanceola R.H.Zander"]
[86505,"sp","Tortula laureri (Schultz) Lindb."]
[86506,"sp","Tortula leucostoma (R.Br.) Hook. & Grev."]
[86507,"sp","Tortula modica R.H.Zander"]
[86508,"sp","Tortula mucronifolia Schwägr."]
[86509,"sp","Tortula muralis Hedw."]
[86510,"subsp","Tortula muralis Hedw. subsp. muralis"]
[86511,"subsp","Tortula muralis subsp. obtusifolia (Schwägr.) Culm."]
[86512,"sp","Tortula revolvens (Schimp.) G.Roth"]
[86514,"sp","Tortula systylia (Schimp.) Lindb."]
[86515,"sp","Tortula truncata (Hedw.) Mitt."]
[86516,"aggr","Tortula subulata aggr."]
[86517,"sp","Tortula schimperi M.J.Cano & al."]
[86518,"sp","Tortula subulata Hedw."]
[86524,"genus","Trichostomum Bruch, nom. cons."]
[86525,"sp","Trichostomum brachydontium Bruch"]
[86526,"sp","Trichostomum crispulum Bruch"]
[86527,"sp","Trichostomum triumphans De Not."]
[86543,"genus","Weissia Hedw."]
[86544,"sp","Weissia brachycarpa (Nees & Hornsch.) Jur."]
[86545,"sp","Weissia condensa (Voit) Lindb."]
[86546,"sp","Weissia controversa Hedw."]
[86547,"sp","Weissia longifolia Mitt."]
[86548,"sp","Weissia rostellata (Brid.) Lindb."]
[86549,"sp","Weissia rutilans (Hedw.) Lindb."]
[86550,"sp","Weissia squarrosa (Nees & Hornsch.) Müll.Hal."]
[86551,"sp","Weissia wimmeriana (Sendtn.) Bruch & Schimp."]
[86647,"genus","Hymenoloma Dusén"]
[86621,"aggr","Hymenoloma crispula aggr."]
[86622,"sp","Hymenoloma compactum (Schwägr.) Ochyra"]
[86628,"sp","Hymenoloma crispulum (Hedw.) Ochyra"]
[87864,"sp","Hymenoloma mulahaceni (Höhn.) Ochyra"]
[85764,"genus","Diphyscium D.Mohr"]
[85765,"sp","Diphyscium foliosum (Hedw.) D.Mohr"]
[85790,"genus","Encalypta Hedw."]
[85791,"sp","Encalypta affinis R.Hedw."]
[85792,"subsp","Encalypta affinis R.Hedw. subsp. affinis"]
[85793,"subsp","Encalypta affinis subsp. macounii (Austin) D.G.Horton"]
[85794,"sp","Encalypta alpina Sm."]
[85795,"sp","Encalypta ciliata Hedw."]
[85796,"sp","Encalypta longicolla Bruch"]
[85797,"sp","Encalypta microstoma Bals.-Criv. & De Not."]
[85798,"sp","Encalypta streptocarpa Hedw."]
[85799,"sp","Encalypta vulgaris Hedw."]
[85800,"aggr","Encalypta rhaptocarpa aggr."]
[87867,"sp","Encalypta pilifera Funck"]
[85801,"sp","Encalypta rhaptocarpa Schwägr."]
[85802,"sp","Encalypta spathulata Müll.Hal."]
[85857,"genus","Funaria Hedw."]
[85858,"sp","Funaria attenuata (Dicks.) Lindb."]
[85862,"sp","Funaria muhlenbergii Turner"]
[85864,"sp","Funaria pulchella H.Philib."]
[85859,"sp","Funaria fascicularis (Hedw.) Lindb."]
[85860,"sp","Funaria hygrometrica Hedw."]
[85861,"sp","Funaria microstoma Schimp."]
[85863,"sp","Funaria obtusa (Hedw.) Lindb."]
[86126,"genus","Physcomitrium (Brid.) Brid."]
[86127,"sp","Physcomitrium eurystomum Sendtn."]
[86128,"subsp","Physcomitrium eurystomum Sendtn. subsp. eurystomum"]
[86129,"subsp","Physcomitrium eurystomum subsp. acuminatum (Bruch & Schimp.) Giacom."]
[86130,"sp","Physcomitrium patens (Hedw.) Mitt."]
[86131,"sp","Physcomitrium pyriforme (Hedw.) Bruch & Schimp."]
[86132,"sp","Physcomitrium sphaericum (Schkuhr) Brid."]
[86256,"genus","Pyramidula Brid."]
[86257,"sp","Pyramidula tetragona (Brid.) Brid."]
[86476,"genus","Timmia Hedw., nom. cons."]
[86477,"sp","Timmia austriaca Hedw."]
[86478,"sp","Timmia bavarica Hessl."]
[86479,"aggr","Timmia norvegica aggr."]
[86480,"sp","Timmia comata Lindb. & Arnell"]
[86481,"sp","Timmia norvegica J.E.Zetterst."]
[85474,"genus","Atrichum P.Beauv., nom. cons."]
[85475,"sp","Atrichum angustatum (Brid.) Bruch & Schimp."]
[85476,"sp","Atrichum tenellum (Röhl.) Bruch & Schimp."]
[85477,"aggr","Atrichum undulatum aggr."]
[85478,"sp","Atrichum flavisetum Mitt."]
[85479,"sp","Atrichum undulatum (Hedw.) P.Beauv."]
[86051,"genus","Oligotrichum DC., nom. cons."]
[86052,"sp","Oligotrichum hercynicum (Hedw.) Lam. & DC."]
[86197,"genus","Polytrichum Hedw."]
[86204,"sp","Polytrichum commune Hedw."]
[88056,"subsp","Polytrichum commune Hedw. subsp. commune"]
[88057,"subsp","Polytrichum commune subsp. perigoniale (Michx.) Kindb."]
[86199,"sp","Polytrichum longisetum Brid."]
[86200,"sp","Polytrichum piliferum Hedw."]
[86201,"sp","Polytrichum sexangulare Hedw."]
[86202,"sp","Polytrichum urnigerum Hedw."]
[86614,"aggr","Polytrichum alpinum aggr."]
[86198,"sp","Polytrichum alpinum Hedw."]
[87465,"sp","Polytrichum septentrionale Brid."]
[86206,"aggr","Polytrichum formosum aggr."]
[86207,"sp","Polytrichum formosum Hedw."]
[86208,"sp","Polytrichum pallidisetum Funck"]
[86209,"aggr","Polytrichum juniperinum aggr."]
[86210,"sp","Polytrichum juniperinum Hedw."]
[86211,"sp","Polytrichum strictum Brid."]
[86212,"aggr","Polytrichum nanum aggr."]
[86213,"sp","Polytrichum aloides Hedw."]
[86214,"sp","Polytrichum nanum Hedw."]
[86458,"genus","Tetraphis Hedw."]
[86459,"sp","Tetraphis pellucida Hedw."]
[86464,"genus","Tetrodontium Schwägr."]
[86465,"sp","Tetrodontium ovatum (Funck) Schwägr."]
[86466,"sp","Tetrodontium repandum (Funck) Schwägr."]
[86595,"genus","Sphagnum L."]
[86382,"sp","Sphagnum affine Renauld & Cardot"]
[86383,"sp","Sphagnum compactum Lam. & DC."]
[86384,"sp","Sphagnum contortum Schultz"]
[86385,"sp","Sphagnum cuspidatum Hoffm."]
[87969,"subsp","Sphagnum cuspidatum Hoffm. subsp. cuspidatum"]
[86388,"sp","Sphagnum fuscum (Schimp.) H.Klinggr."]
[86389,"sp","Sphagnum girgensohnii Russow"]
[86392,"sp","Sphagnum majus (Russow) C.E.O.Jensen"]
[86393,"subsp","Sphagnum majus (Russow) C.E.O.Jensen subsp. majus"]
[86394,"sp","Sphagnum molle Sull."]
[86395,"sp","Sphagnum papillosum Lindb."]
[86396,"sp","Sphagnum platyphyllum (Braithw.) Warnst."]
[86397,"sp","Sphagnum quinquefarium (Braithw.) Warnst."]
[86398,"sp","Sphagnum riparium Ångstr."]
[86399,"sp","Sphagnum russowii Warnst."]
[86400,"sp","Sphagnum squarrosum Crome"]
[86401,"sp","Sphagnum subfulvum Sjors"]
[86402,"subsp","Sphagnum subfulvum Sjors subsp. subfulvum"]
[86403,"sp","Sphagnum subnitens Russow & Warnst."]
[86404,"subsp","Sphagnum subnitens Russow & Warnst. subsp. subnitens"]
[86584,"subsp","Sphagnum subnitens subsp. ferrugineum Flatberg"]
[86405,"sp","Sphagnum subsecundum Nees"]
[86406,"sp","Sphagnum tenellum (Brid.) Brid."]
[86407,"sp","Sphagnum teres (Schimp.) Ångstr."]
[86408,"sp","Sphagnum warnstorfii Russow"]
[86409,"aggr","Sphagnum capillifolium aggr."]
[86410,"sp","Sphagnum capillifolium (Ehrh.) Hedw."]
[86411,"sp","Sphagnum rubellum Wilson"]
[86412,"aggr","Sphagnum denticulatum aggr."]
[86413,"sp","Sphagnum auriculatum Schimp."]
[86414,"sp","Sphagnum inundatum Russow"]
[86611,"aggr","Sphagnum fimbriatum aggr."]
[86386,"sp","Sphagnum fimbriatum Wilson"]
[88160,"aggr","Sphagnum magellanicum aggr."]
[88147,"sp","Sphagnum divinum Flatberg & K.Hassel"]
[88146,"sp","Sphagnum medium Limpr."]
[86415,"aggr","Sphagnum palustre aggr."]
[86416,"sp","Sphagnum centrale C.E.O.Jensen"]
[86417,"sp","Sphagnum palustre L."]
[86418,"subsp","Sphagnum palustre L. subsp. palustre"]
[86419,"aggr","Sphagnum recurvum aggr."]
[86420,"sp","Sphagnum angustifolium (Russow) C.E.O.Jensen"]
[86421,"sp","Sphagnum balticum (Russow) C.E.O.Jensen"]
[86422,"sp","Sphagnum fallax (H.Klinggr.) H.Klinggr."]
[86423,"sp","Sphagnum flexuosum Dozy & Molk."]

{"sheet":"Substrat","index":6,"n_rows":339,"n_cols":6,"rows_kept":339,"cut":false,"hidden":false,"merged":[]}
["TEXT_D","CODE_SWISSLICHENS","KUERZEL",null,"TEXT_F","TEXT_I"]
["Borke eines Baumes",302,"e1","e1 : Borke eines Baumes","écorce d'un arbre","corteccia di un albero"]
["Borke eines Strauchs",9,"e2","e2 : Borke eines Strauchs","écorce d' un arbuste","corteccia di Cespuglio"]
["Borke eines Zwergstrauchs",224,"e3","e3 : Borke eines Zwergstrauchs","écorce d'un arbrisseau nain","corteccia di Cespuglio nano"]
["Borke eines Nadelbaums",49,"e4","e4 : Borke eines Nadelbaums","écorce d'un conifère","corteccia di un aghifoglia"]
["Borke eines Laubbaums",99,"e5","e5 : Borke eines Laubbaums","écorce d'un feuillu","corteccia di Latifoglia"]
["Borke eines Obstbaum",242,"e6","e6 : Borke eines Obstbaum","écorce d'un arbre fruitier","corteccia di un albero da frutta"]
["Abies alba (Borke)",11,"e10","e10 : Borke von Abies alba","écorce d' Abies alba","corteccia di Abies alba"]
["Abies excelsior (Borke)",234,"e11","e11 : Borke von Abies excelsior","écorce de Abies excelsior","corteccia di Abies excelsior"]
["Abies sp. (Borke)",30,"e12","e12 : Borke von Abies sp.","écorce d' Abies sp.","corteccia di Abies sp."]
["Acer campestre (Borke)",56,"e13","e13 : Borke von Acer campestre","écorce de Acer campestre","corteccia di Acer campestre"]
["Acer opalus (Borke)",59,"e14","e14 : Borke von Acer opalus","écorce d' Acer opalus","corteccia di Acer opalus"]
["Acer platanoides (Borke)",57,"e15","e15 : Borke von Acer platanoides","écorce d' Acer platanoides","corteccia di Acer platanoides"]
["Acer pseudoplatanus (Borke)",58,"e16","e16 : Borke von Acer pseudoplatanus","écorce d' Acer pseudoplatanus","corteccia di Acer pseudoplatanus"]
["Acer sp. (Borke)",202,"e17","e17 : Borke von Acer sp.","écorce d' Acer sp.","corteccia di Acer sp."]
["Aesculus hippocastanum (Borke)",89,"e18","e18 : Borke von Aesculus hippocastanum","écorce d' Aesculus hippocastanum","corteccia di Aesculus hippocastanum"]
["Alnus glutinosa (Borke)",63,"e19","e19 : Borke von Alnus glutinosa","écorce d' Alnus glutinosa","corteccia di Alnus glutinosa"]
["Alnus incana (Borke)",64,"e20","e20 : Borke von Alnus incana","écorce d' Alnus incana","corteccia di Alnus incana"]
["Alnus sp. (Borke)",204,"e21","e21 : Borke von Alnus sp.","écorce d' Alnus sp.","corteccia di Alnus sp."]
["Alnus viridis (Borke)",5,"e22","e22 : Borke von Alnus viridis","écorce d' Alnus viridis","corteccia di Alnus viridis"]
["Amelanchier ovalis (Borke)",102,"e23","e23 : Borke von Amelanchier ovalis","écorce d' Amelanchier ovalis","corteccia di Amelanchier ovalis"]
["Arctostaphylos uva-ursi (Borke)",129,"e24","e24 : Borke von Arctostaphylos uva-ursi","écorce d' Arctostaphylos uva-ursi","corteccia di Arctostaphylos uva-ursi"]
["Berberis vulgaris (Borke)",100,"e25","e25 : Borke von Berberis vulgaris","écorce de Berberis vulgaris","corteccia di Berberis vulgaris"]
["Betula alba (Borke)",244,"e26","e26 : Borke von Betula alba","écorce de Betula alba","corteccia di Betula alba"]
["Betula pendula (Borke)",65,"e27","e27 : Borke von Betula pendula","écorce de Betula pendula","corteccia di Betula pendula"]
["Betula pubescens (Borke)",66,"e28","e28 : Borke von Betula pubescens","écorce de Betula pubescens","corteccia di Betula pubescens"]
["Betula sp. (Borke)",205,"e29","e29 : Borke von Betula sp.","écorce de Betula sp.","corteccia di Betula sp."]
["Buxus sempervirens (Borke)",101,"e30","e30 : Borke von Buxus sempervirens","écorce de Buxus sempervirens","corteccia di Buxus sempervirens"]
["Calluna sp. (Borke)",228,"e31","e31 : Borke von Calluna sp.","écorce de Calluna sp.","corteccia di Calluna sp."]
["Carpinus betulus (Borke)",67,"e32","e32 : Borke von Carpinus betulus","écorce de Carpinus betulus","corteccia di Carpinus betulus"]
["Castanea sativa (Borke)",62,"e33","e33 : Borke von Castanea sativa","écorce de Castanea sativa","corteccia di Castanea sativa"]
["Cedrus sp. (Borke)",31,"e34","e34 : Borke von Cedrus sp.","écorce de Cedrus sp.","corteccia di Cedrus sp."]
["Celtis australis (Borke)",68,"e35","e35 : Borke von Celtis australis","écorce de Celtis australis","corteccia di Celtis australis"]
["Chamaecyparis sp. (Borke)",32,"e36","e36 : Borke von Chamaecyparis sp.","écorce de Chamaecyparis sp.","corteccia di Chamaecyparis sp."]
["Clematis vitalba (Borke)",124,"e37","e37 : Borke von Clematis vitalba","écorce de Clematis vitalba","corteccia di Clematis vitalba"]
["Cornus mas (Borke)",105,"e38","e38 : Borke von Cornus mas","écorce de Cornus mas","corteccia di Cornus mas"]
["Cornus sanguinea (Borke)",104,"e39","e39 : Borke von Cornus sanguinea","écorce de Cornus sanguinea","corteccia di Cornus sanguinea"]
["Corylus avellana (Borke)",106,"e40","e40 : Borke von Corylus avellana","écorce de Corylus avellana","corteccia di Corylus avellana"]
["Crataegus sp. (Borke)",118,"e41","e41 : Borke von Crataegus sp.","écorce de Crataegus sp.","corteccia di Crataegus sp."]
["Crinalis sp. (Borke)",236,"e42","e42 : Borke von Crinalis sp.","écorce de Crinalis sp.","corteccia di Crinalis sp."]
["Cryptomeria sp. (Borke)",33,"e43","e43 : Borke von Cryptomeria sp.","écorce de Cryptomeria sp.","corteccia di Cryptomeria sp."]
["Cydonia oblonga (Borke)",300,"e44","e44 : Borke von Cydonia oblonga","écorce de Cydonia oblonga","corteccia di Cydonia oblonga"]
["Daphne mezereum (Borke)",247,"e45","e45 : Borke von Daphne mezereum","écorce de Daphne mezereum","corteccia di Daphne mezereum"]
["Evonymus sp. (Borke)",111,"e46","e46 : Borke von Evonymus sp.","écorce de Evonymus sp.","corteccia di Evonymus sp."]
["Fagus sylvatica (Borke)",50,"e47","e47 : Borke von Fagus sylvatica","écorce de Fagus sylvatica","corteccia di Fagus sylvatica"]
["Fraxinus excelsior (Borke)",60,"e48","e48 : Borke von Fraxinus excelsior","écorce de Fraxinus excelsior","corteccia di Fraxinus excelsior"]
["Fraxinus ornus (Borke)",61,"e49","e49 : Borke von Fraxinus ornus","écorce de Fraxinus ornus","corteccia di Fraxinus ornus"]
["Fraxinus sp. (Borke)",203,"e50","e50 : Borke von Fraxinus sp.","écorce de Fraxinus sp.","corteccia di Fraxinus sp."]
["Hedera helix (Borke)",123,"e51","e51 : Borke von Hedera helix","écorce de Hedera helix","corteccia di Hedera helix"]
["Hippophae rhamnoides (Borke)",113,"e52","e52 : Borke von Hippophae rhamnoides","écorce de Hippophae rhamnoides","corteccia di Hippophae rhamnoides"]
["Ilex aquifolium (Borke)",6,"e53","e53 : Borke von Ilex aquifolium","écorce de Ilex aquifolium","corteccia di Ilex aquifolium"]
["Juglans regia (Borke)",69,"e54","e54 : Borke von Juglans regia","écorce de Juglans regia","corteccia di Juglans regia"]
["Juglans sp. (Borke)",206,"e55","e55 : Borke von Juglans sp.","écorce de Juglans sp.","corteccia di Juglans sp."]
["Juniperus communis (Borke)",2,"e56","e56 : Borke von Juniperus communis","écorce de Juniperus communis","corteccia di Juniperus communis"]
["Juniperus sp. (Borke)",226,"e57","e57 : Borke von Juniperus sp.","écorce de Juniperus sp.","corteccia di Juniperus sp."]
["Laburnum anagyroides (Borke)",7,"e58","e58 : Borke von Laburnum anagyroides","écorce de Laburnum anagyroides","corteccia di Laburnum anagyroides"]
["Larix decidua (Borke)",20,"e59","e59 : Borke von Larix decidua","écorce de Larix decidua","corteccia di Larix decidua"]
["Ligustrum vulgare (Borke)",110,"e60","e60 : Borke von Ligustrum vulgare","écorce de Ligustrum vulgare","corteccia di Ligustrum vulgare"]
["Liriodendron tulipifera (Borke)",90,"e61","e61 : Borke von Liriodendron tulipifera","écorce de Liriodendron tulipifera","corteccia di Liriodendron tulipifera"]
["Lonicera sp. (Borke)",103,"e62","e62 : Borke von Lonicera sp.","écorce de Lonicera sp.","corteccia di Lonicera sp."]
["Malus silvestris (Borke)",71,"e63","e63 : Borke von Malus silvestris","écorce de Malus silvestris","corteccia di Malus silvestris"]
["Malus sp. (Borke)",207,"e64","e64 : Borke von Malus sp.","écorce de Malus sp.","corteccia di Malus sp."]
["Metasequoia sp. (Borke)",34,"e65","e65 : Borke von Metasequoia sp.","écorce de Metasequoia sp.","corteccia di Metasequoia sp."]
["Morus (Borke)",239,"e66","e66 : Borke von Morus","écorce de Morus","corteccia di Morus"]
["Olea europaea (Borke)",241,"e67","e67 : Borke von Olea europaea","écorce de Olea europaea","corteccia di Olea europaea"]
["Ostrya carpinifolia (Borke)",70,"e68","e68 : Borke von Ostrya carpinifolia","écorce de Ostrya carpinifolia","corteccia di Ostrya carpinifolia"]
["Picea abies (Borke)",10,"e69","e69 : Borke von Picea abies","écorce de Picea abies","corteccia di Picea abies"]
["Picea excelsa (Borke)",130,"e70","e70 : Borke von Picea excelsa","écorce de Picea excelsa","corteccia di Picea excelsa"]
["Picea sp. (Borke)",35,"e71","e71 : Borke von Picea sp.","écorce de Picea sp.","corteccia di Picea sp."]
["Pinus cembra (Borke)",19,"e72","e72 : Borke von Pinus cembra","écorce de Pinus cembra","corteccia di Pinus cembra"]
["Pinus mugo prostrata (Borke)",1,"e73","e73 : Borke von Pinus mugo prostrata","écorce de Pinus mugo prostrata","corteccia di Pinus mugo prostrata"]
["Pinus mugo arborea (Borke)",18,"e74","e74 : Borke von Pinus mugo arborea","écorce de Pinus mugo arborea","corteccia di Pinus mugo arborea"]
["Pinus sp. (Borke)",36,"e75","e75 : Borke von Pinus sp.","écorce de Pinus sp.","corteccia di Pinus sp."]
["Pinus strobus (Borke)",17,"e76","e76 : Borke von Pinus strobus","écorce de Pinus strobus","corteccia di Pinus strobus"]
["Pinus sylvestris (Borke)",15,"e77","e77 : Borke von Pinus sylvestris","écorce de Pinus sylvestris","corteccia di Pinus sylvestris"]
["Platanus sp. (Borke)",215,"e78","e78 : Borke von Platanus sp.","écorce de Platanus sp.","corteccia di Platanus sp."]
["Populus alba/canescens (Borke)",73,"e79","e79 : Borke von Populus alba/canescens","écorce de Populus alba/canescens","corteccia di Populus alba/canescens"]
["Populus nigra (Borke)",74,"e80","e80 : Borke von Populus nigra","écorce de Populus nigra","corteccia di Populus nigra"]
["Populus sp. (Borke)",76,"e81","e81 : Borke von Populus sp.","écorce de Populus sp.","corteccia di Populus sp."]
["Populus tremula (Borke)",75,"e82","e82 : Borke von Populus tremula","écorce de Populus tremula","corteccia di Populus tremula"]
["Prunus avium (Borke)",77,"e83","e83 : Borke von Prunus avium","écorce de Prunus avium","corteccia di Prunus avium"]
["Prunus cerasus (Borke)",240,"e84","e84 : Borke von Prunus cerasus","écorce de Prunus cerasus","corteccia di Prunus cerasus"]
["Prunus mahaleb (Borke)",117,"e85","e85 : Borke von Prunus mahaleb","écorce de Prunus mahaleb","corteccia di Prunus mahaleb"]
["Prunus padus (Borke)",8,"e86","e86 : Borke von Prunus padus","écorce de Prunus padus","corteccia di Prunus padus"]
["Prunus sp. (Borke)",209,"e87","e87 : Borke von Prunus sp.","écorce de Prunus sp.","corteccia di Prunus sp."]
["Prunus spinosa (Borke)",116,"e88","e88 : Borke von Prunus spinosa","écorce de Prunus spinosa","corteccia di Prunus spinosa"]
["Pseudotsuga menziesii (Borke)",22,"e89","e89 : Borke von Pseudotsuga menziesii","écorce de Pseudotsuga menziesii","corteccia di Pseudotsuga menziesii"]
["Pyrus communis (Borke)",72,"e90","e90 : Borke von Pyrus communis","écorce de Pyrus communis","corteccia di Pyrus communis"]
["Pyrus sp. (Borke)",208,"e91","e91 : Borke von Pyrus sp.","écorce de Pyrus sp.","corteccia di Pyrus sp."]
["Quercus cerris (Borke)",54,"e92","e92 : Borke von Quercus cerris","écorce de Quercus cerris","corteccia di Quercus cerris"]
["Quercus petraea (Borke)",52,"e93","e93 : Borke von Quercus petraea","écorce de Quercus petraea","corteccia di Quercus petraea"]
["Quercus pubescens (Borke)",53,"e94","e94 : Borke von Quercus pubescens","écorce de Quercus pubescens","corteccia di Quercus pubescens"]
["Quercus robur (Borke)",51,"e95","e95 : Borke von Quercus robur","écorce de Quercus robur","corteccia di Quercus robur"]
["Quercus rubra (Borke)",55,"e96","e96 : Borke von Quercus rubra","écorce de Quercus rubra","corteccia di Quercus rubra"]
["Quercus sessiliflora (Borke)",238,"e97","e97 : Borke von Quercus sessiliflora","écorce de Quercus sessiliflora","corteccia di Quercus sessiliflora"]
["Quercus sp. (Borke)",201,"e98","e98 : Borke von Quercus sp.","écorce de Quercus sp.","corteccia di Quercus sp."]
["Rhamnus cathartica (Borke)",109,"e99","e99 : Borke von Rhamnus cathartica","écorce de Rhamnus cathartica","corteccia di Rhamnus cathartica"]
["Rhamnus frangula (Borke)",112,"e100","e100 : Borke von Rhamnus frangula","écorce de Rhamnus frangula","corteccia di Rhamnus frangula"]
["Rhamnus sp. (Borke)",222,"e101","e101 : Borke von Rhamnus sp.","écorce de Rhamnus sp.","corteccia di Rhamnus sp."]
["Rhododendron ferrugineum (Borke)",230,"e102","e102 : Borke von Rhododendron ferrugineum","écorce de Rhododendron ferrugineum","corteccia di Rhododendron ferrugineum"]
["Rhododendron hirsutum (Borke)",231,"e103","e103 : Borke von Rhododendron hirsutum","écorce de Rhododendron hirsutum","corteccia di Rhododendron hirsutum"]
["Rhododendron sp. (Borke)",225,"e104","e104 : Borke von Rhododendron sp.","écorce de Rhododendron sp.","corteccia di Rhododendron sp."]
["Ribes sp. (Borke)",245,"e105","e105 : Borke von Ribes sp.","écorce de Ribes sp.","corteccia di Ribes sp."]
["Robinia pseudacacia (Borke)",78,"e106","e106 : Borke von Robinia pseudacacia","écorce de Robinia pseudacacia","corteccia di Robinia pseudacacia"]
["Rosa canina (Borke)",122,"e107","e107 : Borke von Rosa canina","écorce de Rosa canina","corteccia di Rosa canina"]
["Rosa sp. (Borke)",301,"e108","e108 : Borke von Rosa sp.","écorce de Rosa sp.","corteccia di Rosa sp."]
["Rubus fruticosus (Borke)",120,"e109","e109 : Borke von Rubus fruticosus","écorce de Rubus fruticosus","corteccia di Rubus fruticosus"]
["Rubus idaeus (Borke)",121,"e110","e110 : Borke von Rubus idaeus","écorce de Rubus idaeus","corteccia di Rubus idaeus"]
["Salix alba/rubens (Borke)",210,"e111","e111 : Borke von Salix alba/rubens","écorce de Salix alba/rubens","corteccia di Salix alba/rubens"]
["Salix caprea (Borke)",211,"e112","e112 : Borke von Salix caprea","écorce de Salix caprea","corteccia di Salix caprea"]
["Salix sp. (Borke)",80,"e113","e113 : Borke von Salix sp.","écorce de Salix sp.","corteccia di Salix sp."]
["Sambucus nigra (Borke)",107,"e114","e114 : Borke von Sambucus nigra","écorce de Sambucus nigra","corteccia di Sambucus nigra"]
["Sambucus racemosa (Borke)",108,"e115","e115 : Borke von Sambucus racemosa","écorce de Sambucus racemosa","corteccia di Sambucus racemosa"]
["Sambucus sp. (Borke)",221,"e116","e116 : Borke von Sambucus sp.","écorce de Sambucus sp.","corteccia di Sambucus sp."]
["Sarothamnus sp. (Borke)",223,"e117","e117 : Borke von Sarothamnus sp.","écorce de Sarothamnus sp.","corteccia di Sarothamnus sp."]
["Sequoiadendron sp. (Borke)",37,"e118","e118 : Borke von Sequoiadendron sp.","écorce de Sequoiadendron sp.","corteccia di Sequoiadendron sp."]
["Sorbus aria (Borke)",81,"e119","e119 : Borke von Sorbus aria","écorce de Sorbus aria","corteccia di Sorbus aria"]
["Sorbus aucuparia (Borke)",82,"e120","e120 : Borke von Sorbus aucuparia","écorce de Sorbus aucuparia","corteccia di Sorbus aucuparia"]
["Sorbus domestica (Borke)",83,"e121","e121 : Borke von Sorbus domestica","écorce de Sorbus domestica","corteccia di Sorbus domestica"]
["Sorbus sp. (Borke)",212,"e122","e122 : Borke von Sorbus sp.","écorce de Sorbus sp.","corteccia di Sorbus sp."]
["Sorbus torminalis (Borke)",84,"e123","e123 : Borke von Sorbus torminalis","écorce de Sorbus torminalis","corteccia di Sorbus torminalis"]
["Syringa vulgaris (Borke)",246,"e124","e124 : Borke von Syringa vulgaris","écorce de Syringa vulgaris","corteccia di Syringa vulgaris"]
["Taxus baccata (Borke)",25,"e125","e125 : Borke von Taxus baccata","écorce de Taxus baccata","corteccia di Taxus baccata"]
["Thuja sp. (Borke)",38,"e126","e126 : Borke von Thuja sp.","écorce de Thuja sp.","corteccia di Thuja sp."]
["Tilia cordata (Borke)",85,"e127","e127 : Borke von Tilia cordata","écorce de Tilia cordata","corteccia di Tilia cordata"]
["Tilia grandiflora (Borke)",232,"e128","e128 : Borke von Tilia grandiflora","écorce de Tilia grandiflora","corteccia di Tilia grandiflora"]
["Tilia platyphyllos (Borke)",86,"e129","e129 : Borke von Tilia platyphyllos","écorce de Tilia platyphyllos","corteccia di Tilia platyphyllos"]
["Tilia sp. (Borke)",213,"e130","e130 : Borke von Tilia sp.","écorce de Tilia sp.","corteccia di Tilia sp."]
["Tsuga sp. (Borke)",39,"e131","e131 : Borke von Tsuga sp.","écorce de Tsuga sp.","corteccia di Tsuga sp."]
["Ulmus glabra (Borke)",88,"e132","e132 : Borke von Ulmus glabra","écorce d' Ulmus glabra","corteccia di Ulmus glabra"]
["Ulmus minor (Borke)",87,"e133","e133 : Borke von Ulmus minor","écorce d' Ulmus minor","corteccia di Ulmus minor"]
["Ulmus scaber (Borke)",243,"e134","e134 : Borke von Ulmus scaber","écorce d' Ulmus scaber","corteccia di Ulmus scaber"]
["Ulmus sp. (Borke)",214,"e135","e135 : Borke von Ulmus sp.","écorce d' Ulmus sp.","corteccia di Ulmus sp."]
["Vaccinium myrtillus (Borke)",125,"e136","e136 : Borke von Vaccinium myrtillus","écorce de Vaccinium myrtillus","corteccia di Vaccinium myrtillus"]
["Vaccinium oxycoccus (Borke)",128,"e137","e137 : Borke von Vaccinium oxycoccus","écorce de Vaccinium oxycoccus","corteccia di Vaccinium oxycoccus"]
["Vaccinium sp. (Borke)",227,"e138","e138 : Borke von Vaccinium sp.","écorce de Vaccinium sp.","corteccia di Vaccinium sp."]
["Vaccinium uliginosum (Borke)",127,"e139","e139 : Borke von Vaccinium uliginosum","écorce de Vaccinium uliginosum","corteccia di Vaccinium uliginosum"]
["Vaccinium vitis-idaea (Borke)",126,"e140","e140 : Borke von Vaccinium vitis-idaea","écorce de Vaccinium vitis-idaea","corteccia di Vaccinium vitis-idaea"]
["Viburnum lantana (Borke)",114,"e141","e141 : Borke von Viburnum lantana","écorce de Viburnum lantana","corteccia di Viburnum lantana"]
["Viburnum opulus (Borke)",115,"e142","e142 : Borke von Viburnum opulus","écorce de Viburnum opulus","corteccia di Viburnum opulus"]
["Vitis sp. (Borke)",229,"e143","e143 : Borke von Vitis sp.","écorce de Vitis sp.","corteccia di Vitis sp."]
["Larix sp. (Borke)",304,"e144","e144 : Borke von Larix sp.","écorce de Larix sp.","corteccia di Larix sp."]
["Pinus nigra (Borke)",16,"e145","e145 : Borke von Pinus nigra","écorce de Pinus nigra","corteccia di Pinus nigra"]
["Holz",235,"l1","l1 : Holz","bois mort","Legno"]
["Sträuchern (Holz)",501,"l2","l2 : Holz von Sträuchern","bois mort d'arbuste","Legno di cespuglio"]
["Zwergsträuchern (Holz)",502,"l3","l3 : Holz von Zwergsträuchern","bois mort d'arbrisseau nain","Legno di cespuglio nano"]
["Nadelbäumen (Holz)",303,"l4","l4 : Holz von Nadelbäumen","bois mort de conifère","Legno di aghifoglia"]
["Laubbäumen (Holz)",304,"l5","l5 : Holz von Laubbäumen","bois mort de feuillu","Legno di latifoglia"]
["Obstbäumen (Holz)",500,"l6","l6 : Holz von Obstbäumen","bois mort d'un arbre fruitier","Legno di albero da frutta"]
["Abies alba (Holz)",3,"l10","l10 : Holz von Abies alba","bois mort de Abies alba","Legno di Abies alba"]
["Abies excelsior (Holz)",504,"l11","l11 : Holz von Abies excelsior","bois mort de Abies excelsior","Legno di Abies excelsior"]
["Abies sp. (Holz)",505,"l12","l12 : Holz von Abies sp.","bois mort de Abies sp.","Legno di Abies sp."]
["Acer campestre (Holz)",506,"l13","l13 : Holz von Acer campestre","bois mort de Acer campestre","Legno di Acer campestre"]
["Acer opalus (Holz)",507,"l14","l14 : Holz von Acer opalus","bois mort de Acer opalus","Legno di Acer opalus"]
["Acer platanoides (Holz)",508,"l15","l15 : Holz von Acer platanoides","bois mort de Acer platanoides","Legno di Acer platanoides"]
["Acer pseudoplatanus (Holz)",4,"l16","l16 : Holz von Acer pseudoplatanus","bois mort de Acer pseudoplatanus","Legno di Acer pseudoplatanus"]
["Acer sp. (Holz)",509,"l17","l17 : Holz von Acer sp.","bois mort de Acer sp.","Legno di Acer sp."]
["Aesculus hippocastanum (Holz)",510,"l18","l18 : Holz von Aesculus hippocastanum","bois mort de Aesculus hippocastanum","Legno di Aesculus hippocastanum"]
["Alnus glutinosa (Holz)",12,"l19","l19 : Holz von Alnus glutinosa","bois mort de Alnus glutinosa","Legno di Alnus glutinosa"]
["Alnus incana (Holz)",13,"l20","l20 : Holz von Alnus incana","bois mort de Alnus incana","Legno di Alnus incana"]
["Alnus sp. (Holz)",511,"l21","l21 : Holz von Alnus sp.","bois mort de Alnus sp.","Legno di Alnus sp."]
["Alnus viridis (Holz)",14,"l22","l22 : Holz von Alnus viridis","bois mort de Alnus viridis","Legno di Alnus viridis"]
["Amelanchier ovalis (Holz)",512,"l23","l23 : Holz von Amelanchier ovalis","bois mort de Amelanchier ovalis","Legno di Amelanchier ovalis"]
["Arctostaphylos uva-ursi (Holz)",513,"l24","l24 : Holz von Arctostaphylos uva-ursi","bois mort de Arctostaphylos uva-ursi","Legno di Arctostaphylos uva-ursi"]
["Berberis vulgaris (Holz)",514,"l25","l25 : Holz von Berberis vulgaris","bois mort de Berberis vulgaris","Legno di Berberis vulgaris"]
["Betula alba (Holz)",515,"l26","l26 : Holz von Betula alba","bois mort de Betula alba","Legno di Betula alba"]
["Betula pendula (Holz)",516,"l27","l27 : Holz von Betula pendula","bois mort de Betula pendula","Legno di Betula pendula"]
["Betula pubescens (Holz)",517,"l28","l28 : Holz von Betula pubescens","bois mort de Betula pubescens","Legno di Betula pubescens"]
["Betula sp. (Holz)",21,"l29","l29 : Holz von Betula sp.","bois mort de Betula sp.","Legno di Betula sp."]
["Buxus sempervirens (Holz)",518,"l30","l30 : Holz von Buxus sempervirens","bois mort de Buxus sempervirens","Legno di Buxus sempervirens"]
["Calluna sp. (Holz)",519,"l31","l31 : Holz von Calluna sp.","bois mort de Calluna sp.","Legno di Calluna sp."]
["Carpinus betulus (Holz)",23,"l32","l32 : Holz von Carpinus betulus","bois mort de Carpinus betulus","Legno di Carpinus betulus"]
["Castanea sativa (Holz)",24,"l33","l33 : Holz von Castanea sativa","bois mort de Castanea sativa","Legno di Castanea sativa"]
["Cedrus sp. (Holz)",520,"l34","l34 : Holz von Cedrus sp.","bois mort de Cedrus sp.","Legno di Cedrus sp."]
["Celtis australis (Holz)",521,"l35","l35 : Holz von Celtis australis","bois mort de Celtis australis","Legno di Celtis australis"]
["Chamaecyparis sp. (Holz)",522,"l36","l36 : Holz von Chamaecyparis sp.","bois mort de Chamaecyparis sp.","Legno di Chamaecyparis sp."]
["Clematis vitalba (Holz)",523,"l37","l37 : Holz von Clematis vitalba","bois mort de Clematis vitalba","Legno di Clematis vitalba"]
["Cornus mas (Holz)",524,"l38","l38 : Holz von Cornus mas","bois mort de Cornus mas","Legno di Cornus mas"]
["Cornus sanguinea (Holz)",525,"l39","l39 : Holz von Cornus sanguinea","bois mort de Cornus sanguinea","Legno di Cornus sanguinea"]
["Corylus avellana (Holz)",526,"l40","l40 : Holz von Corylus avellana","bois mort de Corylus avellana","Legno di Corylus avellana"]
["Crataegus sp. (Holz)",527,"l41","l41 : Holz von Crataegus sp.","bois mort de Crataegus sp.","Legno di Crataegus sp."]
["Crinalis sp. (Holz)",528,"l42","l42 : Holz von Crinalis sp.","bois mort de Crinalis sp.","Legno di Crinalis sp."]
["Cryptomeria sp. (Holz)",529,"l43","l43 : Holz von Cryptomeria sp.","bois mort de Cryptomeria sp.","Legno di Cryptomeria sp."]
["Cydonia oblonga (Holz)",530,"l44","l44 : Holz von Cydonia oblonga","bois mort de Cydonia oblonga","Legno di Cydonia oblonga"]
["Daphne mezereum (Holz)",531,"l45","l45 : Holz von Daphne mezereum","bois mort de Daphne mezereum","Legno di Daphne mezereum"]
["Evonymus sp. (Holz)",532,"l46","l46 : Holz von Evonymus sp.","bois mort de Evonymus sp.","Legno di Evonymus sp."]
["Fagus sylvatica (Holz)",26,"l47","l47 : Holz von Fagus sylvatica","bois mort de Fagus sylvatica","Legno di Fagus sylvatica"]
["Fraxinus excelsior (Holz)",27,"l48","l48 : Holz von Fraxinus excelsior","bois mort de Fraxinus excelsior","Legno di Fraxinus excelsior"]
["Fraxinus ornus (Holz)",533,"l49","l49 : Holz von Fraxinus ornus","bois mort de Fraxinus ornus","Legno di Fraxinus ornus"]
["Fraxinus sp. (Holz)",534,"l50","l50 : Holz von Fraxinus sp.","bois mort de Fraxinus sp.","Legno di Fraxinus sp."]
["Hedera helix (Holz)",535,"l51","l51 : Holz von Hedera helix","bois mort de Hedera helix","Legno di Hedera helix"]
["Hippophae rhamnoides (Holz)",536,"l52","l52 : Holz von Hippophae rhamnoides","bois mort de Hippophae rhamnoides","Legno di Hippophae rhamnoides"]
["Ilex aquifolium (Holz)",537,"l53","l53 : Holz von Ilex aquifolium","bois mort de Ilex aquifolium","Legno di Ilex aquifolium"]
["Juglans regia (Holz)",538,"l54","l54 : Holz von Juglans regia","bois mort de Juglans regia","Legno di Juglans regia"]
["Juglans sp. (Holz)",539,"l55","l55 : Holz von Juglans sp.","bois mort de Juglans sp.","Legno di Juglans sp."]
["Juniperus communis (Holz)",540,"l56","l56 : Holz von Juniperus communis","bois mort de Juniperus communis","Legno di Juniperus communis"]
["Juniperus sp. (Holz)",541,"l57","l57 : Holz von Juniperus sp.","bois mort de Juniperus sp.","Legno di Juniperus sp."]
["Laburnum anagyroides (Holz)",542,"l58","l58 : Holz von Laburnum anagyroides","bois mort de Laburnum anagyroides","Legno di Laburnum anagyroides"]
["Larix decidua (Holz)",28,"l59","l59 : Holz von Larix decidua","bois mort de Larix decidua","Legno di Larix decidua"]
["Ligustrum vulgare (Holz)",543,"l60","l60 : Holz von Ligustrum vulgare","bois mort de Ligustrum vulgare","Legno di Ligustrum vulgare"]
["Liriodendron tulipifera (Holz)",544,"l61","l61 : Holz von Liriodendron tulipifera","bois mort de Liriodendron tulipifera","Legno di Liriodendron tulipifera"]
["Lonicera sp. (Holz)",545,"l62","l62 : Holz von Lonicera sp.","bois mort de Lonicera sp.","Legno di Lonicera sp."]
["Malus silvestris (Holz)",546,"l63","l63 : Holz von Malus silvestris","bois mort de Malus silvestris","Legno di Malus silvestris"]
["Malus sp. (Holz)",547,"l64","l64 : Holz von Malus sp.","bois mort de Malus sp.","Legno di Malus sp."]
["Metasequoia sp. (Holz)",548,"l65","l65 : Holz von Metasequoia sp.","bois mort de Metasequoia sp.","Legno di Metasequoia sp."]
["Morus sp. (Holz)",549,"l66","l66 : Holz von Morus sp.","bois mort de Morus sp.","Legno di Morus sp."]
["Olea europaea (Holz)",550,"l67","l67 : Holz von Olea europaea","bois mort de Olea europaea","Legno di Olea europaea"]
["Ostrya carpinifolia (Holz)",551,"l68","l68 : Holz von Ostrya carpinifolia","bois mort de Ostrya carpinifolia","Legno di Ostrya carpinifolia"]
["Picea abies (Holz)",29,"l69","l69 : Holz von Picea abies","bois mort de Picea abies","Legno di Picea abies"]
["Picea excelsa (Holz)",552,"l70","l70 : Holz von Picea excelsa","bois mort de Picea excelsa","Legno di Picea excelsa"]
["Picea sp. (Holz)",237,"l71","l71 : Holz von Picea sp.","bois mort de Picea sp","Legno di Picea sp"]
["Pinus cembra (Holz)",40,"l72","l72 : Holz von Pinus cembra","bois mort de Pinus cembra","Legno di Pinus cembra"]
["Pinus mugo arborea (Holz)",41,"l74","l74 : Holz von Pinus mugo arborea","bois mort de Pinus mugo arborea","Legno di Pinus mugo arborea"]
["Pinus mugo prostrata (Holz)",42,"l73","l73 : Holz von Pinus mugo prostrata","bois mort de Pinus mugo prostrata","Legno di Pinus mugo prostrata"]
["Pinus sp. (Holz)",305,"l75","l75 : Holz von Pinus sp.","bois mort de Pinus sp.","Legno di Pinus sp."]
["Pinus strobus (Holz)",554,"l76","l76 : Holz von Pinus strobus","bois mort de Pinus strobus","Legno di Pinus strobus"]
["Pinus sylvestris (Holz)",43,"l77","l77 : Holz von Pinus sylvestris","bois mort de Pinus sylvestris","Legno di Pinus sylvestris"]
["Platanus sp. (Holz)",555,"l78","l78 : Holz von Platanus sp.","bois mort de Platanus sp.","Legno di Platanus sp."]
["Populus alba/canescens (Holz)",556,"l79","l79 : Holz von Populus alba/canescens","bois mort de Populus alba/canescens","Legno di Populus alba/canescens"]
["Populus nigra (Holz)",557,"l80","l80 : Holz von Populus nigra","bois mort de Populus nigra","Legno di Populus nigra"]
["Populus sp. (Holz)",44,"l81","l81 : Holz von Populus sp.","bois mort de Populus sp.","Legno di Populus sp."]
["Populus tremula (Holz)",558,"l82","l82 : Holz von Populus tremula","bois mort de Populus tremula","Legno di Populus tremula"]
["Prunus avium (Holz)",559,"l83","l83 : Holz von Prunus avium","bois mort de Prunus avium","Legno di Prunus avium"]
["Prunus cerasus (Holz)",560,"l84","l84 : Holz von Prunus cerasus","bois mort de Prunus cerasus","Legno di Prunus cerasus"]
["Prunus mahaleb (Holz)",561,"l85","l85 : Holz von Prunus mahaleb","bois mort de Prunus mahaleb","Legno di Prunus mahaleb"]
["Prunus padus (Holz)",562,"l86","l86 : Holz von Prunus padus","bois mort de Prunus padus","Legno di Prunus padus"]
["Prunus sp. (Holz)",563,"l87","l87 : Holz von Prunus sp.","bois mort de Prunus sp.","Legno di Prunus sp."]
["Prunus spinosa (Holz)",564,"l88","l88 : Holz von Prunus spinosa","bois mort de Prunus spinosa","Legno di Prunus spinosa"]
["Pseudotsuga menziesii (Holz)",565,"l89","l89 : Holz von Pseudotsuga menziesii","bois mort de Pseudotsuga menziesii","Legno di Pseudotsuga menziesii"]
["Pyrus communis (Holz)",566,"l90","l90 : Holz von Pyrus communis","bois mort de Pyrus communis","Legno di Pyrus communis"]
["Pyrus sp. (Holz)",567,"l91","l91 : Holz von Pyrus sp.","bois mort de Pyrus sp.","Legno di Pyrus sp."]
["Quercus cerris (Holz)",568,"l92","l92 : Holz von Quercus cerris","bois mort de Quercus cerris","Legno di Quercus cerris"]
["Quercus petraea (Holz)",569,"l93","l93 : Holz von Quercus petraea","bois mort de Quercus petraea","Legno di Quercus petraea"]
["Quercus pubescens (Holz)",570,"l94","l94 : Holz von Quercus pubescens","bois mort de Quercus pubescens","Legno di Quercus pubescens"]
["Quercus robur (Holz)",571,"l95","l95 : Holz von Quercus robur","bois mort de Quercus robur","Legno di Quercus robur"]
["Quercus rubra (Holz)",572,"l96","l96 : Holz von Quercus rubra","bois mort de Quercus rubra","Legno di Quercus rubra"]
["Quercus sessiliflora (Holz)",573,"l97","l97 : Holz von Quercus sessiliflora","bois mort de Quercus sessiliflora","Legno di Quercus sessiliflora"]
["Quercus sp. (Holz)",45,"l98","l98 : Holz von Quercus sp.","bois mort de Quercus sp.","Legno di Quercus sp."]
["Rhamnus cathartica (Holz)",574,"l99","l99 : Holz von Rhamnus cathartica","bois mort de Rhamnus cathartica","Legno di Rhamnus cathartica"]
["Rhamnus frangula (Holz)",575,"l100","l100 : Holz von Rhamnus frangula","bois mort de Rhamnus frangula","Legno di Rhamnus frangula"]
["Rhamnus sp. (Holz)",576,"l101","l101 : Holz von Rhamnus sp.","bois mort de Rhamnus sp.","Legno di Rhamnus sp."]
["Rhododendron ferrugineum (Holz)",577,"l102","l102 : Holz von Rhododendron ferrugineum","bois mort de Rhododendron ferrugineum","Legno di Rhododendron ferrugineum"]
["Rhododendron hirsutum (Holz)",578,"l103","l103 : Holz von Rhododendron hirsutum","bois mort de Rhododendron hirsutum","Legno di Rhododendron hirsutum"]
["Rhododendron sp. (Holz)",579,"l104","l104 : Holz von Rhododendron sp.","bois mort de Rhododendron sp.","Legno di Rhododendron sp."]
["Ribes sp. (Holz)",580,"l105","l105 : Holz von Ribes sp.","bois mort de Ribes sp.","Legno di Ribes sp."]
["Robinia pseudacacia (Holz)",581,"l106","l106 : Holz von Robinia pseudacacia","bois mort de Robinia pseudacacia","Legno di Robinia pseudacacia"]
["Rosa canina (Holz)",582,"l107","l107 : Holz von Rosa canina","bois mort de Rosa canina","Legno di Rosa canina"]
["Rosa sp. (Holz)",583,"l108","l108 : Holz von Rosa sp.","bois mort de Rosa sp.","Legno di Rosa sp."]
["Rubus fruticosus (Holz)",584,"l109","l109 : Holz von Rubus fruticosus","bois mort de Rubus fruticosus","Legno di Rubus fruticosus"]
["Rubus idaeus (Holz)",585,"l110","l110 : Holz von Rubus idaeus","bois mort de Rubus idaeus","Legno di Rubus idaeus"]
["Salix alba/rubens (Holz)",586,"l111","l111 : Holz von Salix alba/rubens","bois mort de Salix alba/rubens","Legno di Salix alba/rubens"]
["Salix caprea (Holz)",587,"l112","l112 : Holz von Salix caprea","bois mort de Salix caprea","Legno di Salix caprea"]
["Salix sp. (Holz)",46,"l113","l113 : Holz von Salix sp.","bois mort de Salix sp.","Legno di Salix sp."]
["Sambucus nigra (Holz)",588,"l114","l114 : Holz von Sambucus nigra","bois mort de Sambucus nigra","Legno di Sambucus nigra"]
["Sambucus racemosa (Holz)",589,"l115","l115 : Holz von Sambucus racemosa","bois mort de Sambucus racemosa","Legno di Sambucus racemosa"]
["Sambucus sp. (Holz)",590,"l116","l116 : Holz von Sambucus sp.","bois mort de Sambucus sp.","Legno di Sambucus sp."]
["Sarothamnus sp. (Holz)",591,"l117","l117 : Holz von Sarothamnus sp.","bois mort de Sarothamnus sp.","Legno di Sarothamnus sp."]
["Sequoiadendron sp. (Holz)",592,"l118","l118 : Holz von Sequoiadendron sp.","bois mort de Sequoiadendron sp.","Legno di Sequoiadendron sp."]
["Sorbus aria (Holz)",593,"l119","l119 : Holz von Sorbus aria","bois mort de Sorbus aria","Legno di Sorbus aria"]
["Sorbus aucuparia (Holz)",302,"l120","l120 : Holz von Sorbus aucuparia","bois mort de Sorbus aucuparia","Legno di Sorbus aucuparia"]
["Sorbus domestica (Holz)",594,"l121","l121 : Holz von Sorbus domestica","bois mort de Sorbus domestica","Legno di Sorbus domestica"]
["Sorbus sp. (Holz)",595,"l122","l122 : Holz von Sorbus sp.","bois mort de Sorbus sp.","Legno di Sorbus sp."]
["Sorbus torminalis (Holz)",596,"l123","l123 : Holz von Sorbus torminalis","bois mort de Sorbus torminalis","Legno di Sorbus torminalis"]
["Syringa vulgaris (Holz)",597,"l124","l124 : Holz von Syringa vulgaris","bois mort de Syringa vulgaris","Legno di Syringa vulgaris"]
["Taxus baccata (Holz)",598,"l125","l125 : Holz von Taxus baccata","bois mort de Taxus baccata","Legno di Taxus baccata"]
["Thuja sp. (Holz)",599,"l126","l126 : Holz von Thuja sp.","bois mort de Thuja sp.","Legno di Thuja sp."]
["Tilia cordata (Holz)",600,"l127","l127 : Holz von Tilia cordata","bois mort de Tilia cordata","Legno di Tilia cordata"]
["Tilia grandiflora (Holz)",601,"l128","l128 : Holz von Tilia grandiflora","bois mort de Tilia grandiflora","Legno di Tilia grandiflora"]
["Tilia platyphyllos (Holz)",602,"l129","l129 : Holz von Tilia platyphyllos","bois mort de Tilia platyphyllos","Legno di Tilia platyphyllos"]
["Tilia sp. (Holz)",603,"l130","l130 : Holz von Tilia sp.","bois mort de Tilia sp.","Legno di Tilia sp."]
["Tsuga sp. (Holz)",604,"l131","l131 : Holz von Tsuga sp.","bois mort de Tsuga sp.","Legno di  Tsuga sp."]
["Ulmus glabra (Holz)",605,"l132","l132 : Holz von Ulmus glabra","bois mort de Ulmus glabra","Legno di Ulmus glabra"]
["Ulmus minor (Holz)",606,"l133","l133 : Holz von Ulmus minor","bois mort de Ulmus minor","Legno di Ulmus minor"]
["Ulmus scaber (Holz)",607,"l134","l134 : Holz von Ulmus scaber","bois mort de Ulmus scaber","Legno di Ulmus scaber"]
["Ulmus sp. (Holz)",608,"l135","l135 : Holz von Ulmus sp.","bois mort de Ulmus sp.","Legno di Ulmus sp."]
["Vaccinium myrtillus (Holz)",609,"l136","l136 : Holz von Vaccinium myrtillus","bois mort de Vaccinium myrtillus","Legno di Vaccinium myrtillus"]
["Vaccinium oxycoccus (Holz)",610,"l137","l137 : Holz von Vaccinium oxycoccus","bois mort de Vaccinium oxycoccus","Legno di Vaccinium oxycoccus"]
["Vaccinium sp. (Holz)",611,"l138","l138 : Holz von Vaccinium sp.","bois mort de Vaccinium sp.","Legno di Vaccinium sp."]
["Vaccinium uliginosum (Holz)",612,"l139","l139 : Holz von Vaccinium uliginosum","bois mort de Vaccinium uliginosum","Legno di Vaccinium uliginosum"]
["Vaccinium vitis-idaea (Holz)",613,"l140","l140 : Holz von Vaccinium vitis-idaea","bois mort de Vaccinium vitis-idaea","Legno di  Vaccinium vitis-idaea"]
["Viburnum lantana (Holz)",614,"l141","l141 : Holz von Viburnum lantana","bois mort de Viburnum lantana","Legno di Viburnum lantana"]
["Viburnum opulus (Holz)",615,"l142","l142 : Holz von Viburnum opulus","bois mort de Viburnum opulus","Legno di Viburnum opulus"]
["Vitis sp. (Holz)",616,"l143","l143 : Holz von Vitis sp.","bois mort de Vitis sp.","Legno di Vitis sp."]
["Larix sp. (Holz)",675,"l144","l144 : Holz von Larix sp.","bois mort de Larix sp.","Legno di Larix sp."]
["Pinus nigra (Holz)",553,"l145","l145 : Holz von Pinus nigra","bois mort de Pinus nigra","Legno di Pinus nigra"]
["Sand",657,"t10","t10 : Sand","sable","Sabbia"]
["Erde",658,"t20","t20 : Erde","terre, sol","Terra"]
["Saure Erde (HCL-)",659,"t21","t21 : Saure Erde (HCL-)","sol acide (HCl-)","Terra acida (HCl-)"]
["Saure (HCL-), nährstoffarme Erde",660,"t22","t22 : Saure (HCL-), nährstoffarme Erde","sol acide (HCl-), pauvre en nutriment","Terra acida (HCl-), povera di sostanze nutritive"]
["Saure (HCL-), nährstoffreiche Erde",661,"t23","t23 : Saure (HCL-), nährstoffreiche Erde","sol acide (HCl-), riche en nutriment","Terra acida (HCl-), ricca di sostanze nutritive"]
["Kalkhaltige Erde (HCl+)",662,"t25","t25 : Kalkhaltige Erde (HCl+)","sol calcaire (HCl+)","Terra calcarea (HCl+)"]
["Kalkhaltige (HCl+), nährstoffarme Erde",663,"t26","t26 : Kalkhaltige (HCl+), nährstoffarme Erde","sol calcaire (HCl+), pauvre en nutriment","Terra calcarea (HCl+), povera di sostanze nutritive"]
["Kalkhaltige (HCl+), nährstoffreiche  Erde",664,"t27","t27 : Kalkhaltige (HCl+), nährstoffreiche : Erde","sol calcaire (HCl+), riche en nutriment","Terra calcarea (HCl+), ricca di sostanze nutritive"]
["(Roh)Humus",665,"t30","t30 : (Roh)Humus","humus brut","Humus"]
["Torf",666,"t40","t40 : Torf","tourbe","Torba"]
["Moos- und Pflanzenreste (Abgestorben, unverholzt)",667,"t50","t50 : Moos- und Pflanzenreste (Abgestorben, unverholzt)","débris végétaux","Resti di muschi e vegetali (piante morte, non lignificate)"]
["Gestein",617,"s1","s1 : Gestein","roche","Roccia"]
["HCl- (Silikatgestein)",47,"s2","s2 : HCl- (Silikatgestein)","roche acide (HCl-)","HCl- (roccia silicea)"]
["HCl+ (Kalkgestein)",48,"s3","s3 : HCl+ (Kalkgestein)","roche basique (HCL+)","HCl+ (roccia calcare)"]
["Flysch",618,"s10","s10 : Flysch","flysch","Flysch"]
["Nagelfluh",619,"s20","s20 : Nagelfluh","conglomérat","Conglomerato"]
["Schiefer",620,"s30","s30 : Schiefer","schiste","Scisto "]
["Silikat-Schiefer",621,"s31","s31 : Silikat-Schiefer","schiste acide (HCl-)","Scisto acido, non calcareo (HCl-)"]
["Kalk-Schiefer",622,"s32","s32 : Kalk-Schiefer","schiste basique (HCl+)","Scisto basico, ricco di calcare (HCL+)"]
["Magmatisches Gestein",623,"s100","s100 : Magmatisches Gestein","roche  ignée","Roccia magmatica"]
["Quartzit",624,"s110","s110 : Quartzit","quartzite","Quarzite"]
["Granit",402,"s111","s111 : Granit","granite","Granito"]
["Syenit",625,"s112","s112 : Syenit","syénite","Sienite"]
["Basisches Gestein",626,"s120","s120 : Basisches Gestein","roche siliceuse basique","Roccia basica"]
["Diorit",627,"s121","s121 : Diorit","diorite","Diorite"]
["Gabbro",628,"s122","s122 : Gabbro","gabbro","Gabbro"]
["Peridotit",629,"s123","s123 : Peridotit","péridotite","Peridotite"]
["Sediment",630,"s200","s200 : Sediment","roche sédimentaire","Sedimento"]
["Silikatisches Sediment",631,"s210","s210 : Silikatisches Sediment","roche sédimentaire siliceuse","Sedimento siliceo"]
["Sandstein silikatisch",632,"s211","s211 : Sandstein silikatisch","grès siliceux","Arenite silicea"]
["Argilite (Tonschiefer)",633,"s212","s212 : Argilite (Tonschiefer)","argilite","Argillite"]
["Radiolarit (Kieselschiefer)",634,"s213","s213 : Radiolarit (Kieselschiefer)","radiolarite","Radiolarite"]
["Verrucano",635,"s214","s214 : Verrucano","verrucano","Verrucano"]
["Kalksediment",636,"s220","s220 : Kalksediment","roche sédimentaire calcaire","Sedimento calcareo"]
["Kalk",637,"s221","s221 : Kalk","calcaire compact","Calcare"]
["Kalksandstein",639,"s222","s222 : Kalksandstein","grès calcaire","Arenite calcarea"]
["Dolomit",640,"s223","s223 : Dolomit","dolomie","Dolomia"]
["Rauwacke",641,"s224","s224 : Rauwacke","cornieule","Dolomia cariata"]
["Gips",642,"s225","s225 : Gips","gypse","Gesso"]
["Kalktuff",643,"s226","s226 : Kalktuff","tuff calcaire","Tufo calcareo"]
["Mergel",644,"s227","s227 : Mergel","marne","Marna"]
["Metamorphes Gestein",645,"s300","s300 : Metamorphes Gestein","roche métamorphique","Roccia metamorfica"]
["Metamorphes Silikatgestein",646,"s310","s310 : Metamorphes Silikatgestein","roche métamorphique siliceuses","Roccia silicea metamorfica"]
["Gneiss",647,"s311","s311 : Gneiss","gneiss","Gneiss"]
["Amphibolite",648,"s312","s312 : Amphibolite","amphibolite","Anfibolite"]
["Serpentinit",649,"s313","s313 : Serpentinit","serpentine","Serpentinite"]
["Phyllit",650,"s314","s314 : Phyllit","phyllite","Fillade"]
["Metamorphes Kalkgestein",651,"s320","s320 : Metamorphes Kalkgestein","roche métamorphique calcaire","Roccia calcarea metamorfica"]
["Marmor",652,"s321","s321 : Marmor","marbre","Marmo"]
["Anthropoge Gesteine",653,"s400","s400 : Anthropoge Gesteine","roche anthropogène","Roccia di origine antropica"]
["Zement",654,"s410","s410 : Zement","ciment","Cemento"]
["Beton",400,"s411","s411 : Beton","béton","Calcestruzzo"]
["gebranntes tonhaltiges Material (Ziegel etc.)",655,"s412","s412 : gebranntes tonhaltiges Material (Ziegel etc.)","terre cuite (tuile, etc.)","Laterizio"]
["Eternit",656,"s413","s413 : Eternit","éternit","Eternit"]

{"sheet":"Substrat_M","index":7,"n_rows":20,"n_cols":2,"rows_kept":20,"cut":false,"hidden":false,"merged":[[0,0,0,1]]}
["Substratliste Moose"]
[]
["Code","Text"]
["a","Wasser"]
["b","Schlamm"]
["c","feuchte bis nasse Erde"]
["d","frische bis trockene Erde"]
["e","Rohhumus oder Torf"]
["f","Totholz"]
["g","lebende Bäume"]
["h","über anderen Moosen"]
["i","nährstoffreiches, organisches Material"]
["j","Kalktuff"]
["k","Gesteinsrohboden, kalkreich"]
["l","Gesteinsrohboden, kalkarm"]
["m","kalkhaltiges Gestein, trocken"]
["n","kalkhaltiges Gestein, feuht"]
["o","kalkhaltiges Gestein, trocken"]
["p","kalkhaltiges Gestein, feucht"]
["q","weitere Substrate"]